{"text_format":"3","workbook":"xlsx","n_sheets":1,"sheets":["Sheet1"],"not_rendered":{"defined_names":1},"read":"whole","date_system":"1900"}

{"sheet":"Sheet1","index":0,"n_rows":308,"n_cols":18,"rows_kept":308,"merged":[[0,0,0,17],[1,0,1,17],[2,0,3,0],[2,1,2,2],[2,3,3,3],[2,4,3,4],[2,5,3,5],[2,6,3,6],[2,7,3,7],[2,8,3,8],[2,9,2,10],[2,11,2,12],[4,0,6,0],[4,1,6,1],[4,2,5,2],[4,3,5,3],[4,4,5,4],[4,5,5,5],[4,6,6,6],[4,7,6,7],[4,8,6,8],[4,9,6,9],[4,10,6,10],[7,0,8,0],[7,1,8,1],[7,2,8,2],[7,3,8,3],[7,6,8,6],[7,8,8,8],[7,9,8,9],[7,10,8,10],[9,0,10,0],[9,1,10,1],[9,2,10,2],[9,3,10,3],[9,6,10,6],[9,8,10,8],[9,9,10,9],[9,10,10,10],[11,0,12,0],[11,1,12,1],[11,2,12,2],[11,3,12,3],[11,6,12,6],[11,8,12,8],[11,9,12,9],[11,10,12,10],[13,0,14,0],[13,1,14,1],[13,2,14,2],[13,3,14,3],[13,6,14,6],[13,8,14,8],[13,9,14,9],[13,10,14,10],[15,0,16,0],[15,1,16,1],[15,2,16,2],[15,3,16,3],[15,6,16,6],[15,8,16,8],[15,9,16,9],[15,10,16,10],[17,0,18,0],[17,1,18,1],[17,2,18,2],[17,3,18,3],[17,6,18,6],[17,8,18,8],[17,9,18,9],[17,10,18,10],[19,0,20,0],[19,1,20,1],[19,2,20,2],[19,3,20,3],[19,6,20,6],[19,8,20,8],[19,9,20,9],[19,10,20,10],[21,0,22,0],[21,1,22,1],[21,2,22,2],[21,3,22,3],[21,6,22,6],[21,8,22,8],[21,9,22,9],[21,10,22,10],[23,0,24,0],[23,1,24,1],[23,2,24,2],[23,3,24,3],[23,6,24,6],[23,8,24,8],[23,9,24,9],[25,0,26,0],[25,1,26,1],[25,2,26,2],[25,3,26,3],[25,6,26,6],[25,8,26,8],[25,9,26,9],[27,0,28,0],[27,1,28,1],[27,2,28,2],[27,3,28,3],[27,6,28,6],[27,8,28,8],[27,9,28,9],[29,0,30,0],[29,1,30,1],[29,2,30,2],[29,3,30,3],[29,6,30,6],[29,8,30,8],[29,9,30,9],[31,0,32,0],[31,1,32,1],[31,2,32,2],[31,3,32,3],[31,6,32,6],[31,8,32,8],[31,9,32,9],[33,0,34,0],[33,1,34,1],[33,2,34,2],[33,3,34,3],[33,6,34,6],[33,8,34,8],[33,9,34,9],[35,0,36,0],[35,1,36,1],[35,2,36,2],[35,3,36,3],[35,6,36,6],[35,8,36,8],[35,9,36,9],[37,0,38,0],[37,1,38,1],[37,2,38,2],[37,3,38,3],[37,6,38,6],[37,8,38,8],[37,9,38,9],[39,0,40,0],[39,1,40,1],[39,2,40,2],[39,3,40,3],[39,6,40,6],[39,8,40,8],[39,9,40,9],[41,0,42,0],[41,1,42,1],[41,2,42,2],[41,3,42,3],[41,6,42,6],[41,8,42,8],[41,9,42,9],[43,0,44,0],[43,1,44,1],[43,2,44,2],[43,3,44,3],[43,6,44,6],[43,8,44,8],[43,9,44,9],[45,0,46,0],[45,1,46,1],[45,2,46,2],[45,3,46,3],[45,6,46,6],[45,8,46,8],[45,9,46,9],[47,0,48,0],[47,1,48,1],[47,2,48,2],[47,3,48,3],[47,6,48,6],[47,8,48,8],[47,9,48,9],[49,0,50,0],[49,1,50,1],[49,2,50,2],[49,3,50,3],[49,6,50,6],[49,8,50,8],[49,9,50,9],[51,0,52,0],[51,1,52,1],[51,2,52,2],[51,3,52,3],[51,6,52,6],[51,8,52,8],[51,9,52,9],[53,0,54,0],[53,1,54,1],[53,2,54,2],[53,3,54,3],[53,6,54,6],[53,8,54,8],[53,9,54,9],[55,0,56,0],[55,1,56,1],[55,2,56,2],[55,3,56,3],[55,6,56,6],[55,8,56,8],[55,9,56,9],[57,0,58,0],[57,1,58,1],[57,2,58,2],[57,3,58,3],[57,6,58,6],[57,8,58,8],[57,9,58,9],[59,0,60,0],[59,1,60,1],[59,2,60,2],[59,3,60,3],[59,6,60,6],[59,8,60,8],[59,9,60,9],[61,0,62,0],[61,1,62,1],[61,2,62,2],[61,3,62,3],[61,6,62,6],[61,8,62,8],[61,9,62,9],[63,0,64,0],[63,1,64,1],[63,2,64,2],[63,3,64,3],[63,6,64,6],[63,8,64,8],[63,9,64,9],[65,0,66,0],[65,1,66,1],[65,2,66,2],[65,3,66,3],[65,6,66,6],[65,8,66,8],[65,9,66,9],[67,0,68,0],[67,1,68,1],[67,2,68,2],[67,3,68,3],[67,6,68,6],[67,8,68,8],[67,9,68,9],[69,0,70,0],[69,1,70,1],[69,2,70,2],[69,3,70,3],[69,6,70,6],[69,8,70,8],[69,9,70,9],[71,0,72,0],[71,1,72,1],[71,2,72,2],[71,3,72,3],[71,6,72,6],[71,8,72,8],[71,9,72,9],[73,0,74,0],[73,1,74,1],[73,2,74,2],[73,3,74,3],[73,6,74,6],[73,8,74,8],[73,9,74,9],[75,0,76,0],[75,1,76,1],[75,2,76,2],[75,3,76,3],[75,6,76,6],[75,8,76,8],[75,9,76,9],[77,0,78,0],[77,1,78,1],[77,2,78,2],[77,3,78,3],[77,6,78,6],[77,8,78,8],[77,9,78,9],[79,0,80,0],[79,1,80,1],[79,2,80,2],[79,3,80,3],[79,6,80,6],[79,8,80,8],[79,9,80,9],[81,0,82,0],[81,1,82,1],[81,2,82,2],[81,3,82,3],[81,6,82,6],[81,8,82,8],[81,9,82,9],[83,0,84,0],[83,1,84,1],[83,2,84,2],[83,3,84,3],[83,6,84,6],[83,8,84,8],[83,9,84,9],[85,0,86,0],[85,1,86,1],[85,2,86,2],[85,3,86,3],[85,6,86,6],[85,8,86,8],[85,9,86,9],[87,0,88,0],[87,1,88,1],[87,2,88,2],[87,3,88,3],[87,6,88,6],[87,8,88,8],[87,9,88,9],[89,0,90,0],[89,1,90,1],[89,2,90,2],[89,3,90,3],[89,6,90,6],[89,8,90,8],[89,9,90,9],[91,0,92,0],[91,1,92,1],[91,2,92,2],[91,3,92,3],[91,6,92,6],[91,8,92,8],[91,9,92,9],[93,0,94,0],[93,1,94,1],[93,2,94,2],[93,3,94,3],[93,6,94,6],[93,8,94,8],[93,9,94,9],[95,0,96,0],[95,1,96,1],[95,2,96,2],[95,3,96,3],[95,6,96,6],[95,8,96,8],[95,9,96,9],[97,0,98,0],[97,1,98,1],[97,2,98,2],[97,3,98,3],[97,6,98,6],[97,8,98,8],[97,9,98,9],[99,0,100,0],[99,1,100,1],[99,2,100,2],[99,3,100,3],[99,6,100,6],[99,8,100,8],[99,9,100,9],[101,0,102,0],[101,1,102,1],[101,2,102,2],[101,3,102,3],[101,6,102,6],[101,8,102,8],[101,9,102,9],[103,0,104,0],[103,1,104,1],[103,2,104,2],[103,3,104,3],[103,6,104,6],[103,8,104,8],[103,9,104,9],[105,0,106,0],[105,1,106,1],[105,2,106,2],[105,3,106,3],[105,6,106,6],[105,8,106,8],[105,9,106,9],[107,0,108,0],[107,1,108,1],[107,2,108,2],[107,3,108,3],[107,6,108,6],[107,8,108,8],[107,9,108,9],[109,0,110,0],[109,1,110,1],[109,2,110,2],[109,3,110,3],[109,6,110,6],[109,8,110,8],[109,9,110,9],[111,0,112,0],[111,1,112,1],[111,2,112,2],[111,3,112,3],[111,6,112,6],[111,8,112,8],[111,9,112,9],[113,0,114,0],[113,1,114,1],[113,2,114,2],[113,3,114,3],[113,6,114,6],[113,8,114,8],[113,9,114,9],[115,0,116,0],[115,1,116,1],[115,2,116,2],[115,3,116,3],[115,6,116,6],[115,8,116,8],[115,9,116,9],[117,0,118,0],[117,1,118,1],[117,2,118,2],[117,3,118,3],[117,6,118,6],[117,8,118,8],[117,9,118,9],[119,0,120,0],[119,1,120,1],[119,2,120,2],[119,3,120,3],[119,6,120,6],[119,8,120,8],[119,9,120,9],[121,0,122,0],[121,1,122,1],[121,2,122,2],[121,3,122,3],[121,6,122,6],[121,8,122,8],[121,9,122,9],[123,0,124,0],[123,1,124,1],[123,2,124,2],[123,3,124,3],[123,6,124,6],[123,8,124,8],[123,9,124,9],[125,0,126,0],[125,1,126,1],[125,2,126,2],[125,3,126,3],[125,6,126,6],[125,8,126,8],[125,9,126,9],[127,0,128,0],[127,1,128,1],[127,2,128,2],[127,3,128,3],[127,6,128,6],[127,8,128,8],[127,9,128,9],[129,0,130,0],[129,1,130,1],[129,2,130,2],[129,3,130,3],[129,6,130,6],[129,8,130,8],[129,9,130,9],[131,0,132,0],[131,1,132,1],[131,2,132,2],[131,3,132,3],[131,6,132,6],[131,8,132,8],[131,9,132,9],[133,0,134,0],[133,1,134,1],[133,2,134,2],[133,3,134,3],[133,6,134,6],[133,8,134,8],[133,9,134,9],[135,0,136,0],[135,1,136,1],[135,2,136,2],[135,3,136,3],[135,6,136,6],[135,8,136,8],[135,9,136,9],[137,0,138,0],[137,1,138,1],[137,2,138,2],[137,3,138,3],[137,6,138,6],[137,8,138,8],[137,9,138,9],[139,0,140,0],[139,1,140,1],[139,2,140,2],[139,3,140,3],[139,6,140,6],[139,8,140,8],[139,9,140,9],[141,0,142,0],[141,1,142,1],[141,2,142,2],[141,3,142,3],[141,6,142,6],[141,8,142,8],[141,9,142,9],[143,0,144,0],[143,1,144,1],[143,2,144,2],[143,3,144,3],[143,6,144,6],[143,8,144,8],[143,9,144,9],[145,0,146,0],[145,1,146,1],[145,2,146,2],[145,3,146,3],[145,6,146,6],[145,8,146,8],[145,9,146,9],[147,0,148,0],[147,1,148,1],[147,2,148,2],[147,3,148,3],[147,6,148,6],[147,8,148,8],[147,9,148,9],[149,0,150,0],[149,1,150,1],[149,2,150,2],[149,3,150,3],[149,6,150,6],[149,8,150,8],[149,9,150,9],[151,0,152,0],[151,1,152,1],[151,2,152,2],[151,3,152,3],[151,6,152,6],[151,8,152,8],[151,9,152,9],[153,0,154,0],[153,1,154,1],[153,2,154,2],[153,3,154,3],[153,6,154,6],[153,8,154,8],[153,9,154,9],[155,0,156,0],[155,1,156,1],[155,2,156,2],[155,3,156,3],[155,6,156,6],[155,8,156,8],[155,9,156,9],[157,0,158,0],[157,1,158,1],[157,2,158,2],[157,3,158,3],[157,6,158,6],[157,8,158,8],[157,9,158,9],[159,0,160,0],[159,1,160,1],[159,2,160,2],[159,3,160,3],[159,6,160,6],[159,8,160,8],[159,9,160,9],[161,0,162,0],[161,1,162,1],[161,2,162,2],[161,3,162,3],[161,6,162,6],[161,8,162,8],[161,9,162,9],[163,0,164,0],[163,1,164,1],[163,2,164,2],[163,3,164,3],[163,6,164,6],[163,8,164,8],[163,9,164,9],[165,0,166,0],[165,1,166,1],[165,2,166,2],[165,3,166,3],[165,6,166,6],[165,8,166,8],[165,9,166,9],[167,0,168,0],[167,1,168,1],[167,2,168,2],[167,3,168,3],[167,6,168,6],[167,8,168,8],[167,9,168,9],[169,0,170,0],[169,1,170,1],[169,2,170,2],[169,3,170,3],[169,6,170,6],[169,8,170,8],[169,9,170,9],[171,0,172,0],[171,1,172,1],[171,2,172,2],[171,3,172,3],[171,6,172,6],[171,8,172,8],[171,9,172,9],[173,0,174,0],[173,1,174,1],[173,2,174,2],[173,3,174,3],[173,6,174,6],[173,8,174,8],[173,9,174,9],[175,0,176,0],[175,1,176,1],[175,2,176,2],[175,3,176,3],[175,6,176,6],[175,8,176,8],[175,9,176,9],[177,0,178,0],[177,1,178,1],[177,2,178,2],[177,3,178,3],[177,6,178,6],[177,8,178,8],[177,9,178,9],[179,0,180,0],[179,1,180,1],[179,2,180,2],[179,3,180,3],[179,6,180,6],[179,8,180,8],[179,9,180,9],[181,0,182,0],[181,1,182,1],[181,2,182,2],[181,3,182,3],[181,6,182,6],[181,8,182,8],[181,9,182,9],[183,0,184,0],[183,1,184,1],[183,2,184,2],[183,3,184,3],[183,6,184,6],[183,8,184,8],[183,9,184,9],[185,0,186,0],[185,1,186,1],[185,2,186,2],[185,3,186,3],[185,6,186,6],[185,8,186,8],[185,9,186,9],[187,0,188,0],[187,1,188,1],[187,2,188,2],[187,3,188,3],[187,6,188,6],[187,8,188,8],[187,9,188,9],[189,0,190,0],[189,1,190,1],[189,2,190,2],[189,3,190,3],[189,6,190,6],[189,8,190,8],[189,9,190,9],[191,0,192,0],[191,1,192,1],[191,2,192,2],[191,3,192,3],[191,6,192,6],[191,8,192,8],[191,9,192,9],[193,0,194,0],[193,1,194,1],[193,2,194,2],[193,3,194,3],[193,6,194,6],[193,8,194,8],[193,9,194,9],[195,0,196,0],[195,1,196,1],[195,2,196,2],[195,3,196,3],[195,6,196,6],[195,8,196,8],[195,9,196,9],[197,0,198,0],[197,1,198,1],[197,2,198,2],[197,3,198,3],[197,6,198,6],[197,8,198,8],[197,9,198,9],[199,0,200,0],[199,1,200,1],[199,2,200,2],[199,3,200,3],[199,6,200,6],[199,8,200,8],[199,9,200,9],[201,0,202,0],[201,1,202,1],[201,2,202,2],[201,3,202,3],[201,6,202,6],[201,8,202,8],[201,9,202,9],[203,0,204,0],[203,1,204,1],[203,2,204,2],[203,3,204,3],[203,6,204,6],[203,8,204,8],[203,9,204,9],[205,0,206,0],[205,1,206,1],[205,2,206,2],[205,3,206,3],[205,6,206,6],[205,8,206,8],[205,9,206,9],[207,0,208,0],[207,1,208,1],[207,2,208,2],[207,3,208,3],[207,6,208,6],[207,8,208,8],[207,9,208,9],[209,0,210,0],[209,1,210,1],[209,2,210,2],[209,3,210,3],[209,6,210,6],[209,8,210,8],[209,9,210,9],[211,0,212,0],[211,1,212,1],[211,2,212,2],[211,3,212,3],[211,6,212,6],[211,8,212,8],[211,9,212,9],[213,0,214,0],[213,1,214,1],[213,2,214,2],[213,3,214,3],[213,6,214,6],[213,8,214,8],[213,9,214,9],[215,0,216,0],[215,1,216,1],[215,2,216,2],[215,3,216,3],[215,6,216,6],[215,8,216,8],[215,9,216,9],[217,0,218,0],[217,1,218,1],[217,2,218,2],[217,3,218,3],[217,6,218,6],[217,8,218,8],[217,9,218,9],[219,0,220,0],[219,1,220,1],[219,2,220,2],[219,3,220,3],[219,6,220,6],[219,8,220,8],[219,9,220,9],[221,0,222,0],[221,1,222,1],[221,2,222,2],[221,3,222,3],[221,6,222,6],[221,8,222,8],[221,9,222,9],[223,0,224,0],[223,1,224,1],[223,2,224,2],[223,3,224,3],[223,6,224,6],[223,8,224,8],[223,9,224,9],[225,0,226,0],[225,1,226,1],[225,2,226,2],[225,3,226,3],[225,6,226,6],[225,8,226,8],[225,9,226,9],[227,0,228,0],[227,1,228,1],[227,2,228,2],[227,3,228,3],[227,6,228,6],[227,8,228,8],[227,9,228,9],[229,0,230,0],[229,1,230,1],[229,2,230,2],[229,3,230,3],[229,6,230,6],[229,8,230,8],[229,9,230,9],[231,0,232,0],[231,1,232,1],[231,2,232,2],[231,3,232,3],[231,6,232,6],[231,8,232,8],[231,9,232,9],[233,0,234,0],[233,1,234,1],[233,2,234,2],[233,3,234,3],[233,6,234,6],[233,8,234,8],[233,9,234,9],[235,0,236,0],[235,1,236,1],[235,2,236,2],[235,3,236,3],[235,6,236,6],[235,8,236,8],[235,9,236,9],[237,0,238,0],[237,1,238,1],[237,2,238,2],[237,3,238,3],[237,6,238,6],[237,8,238,8],[237,9,238,9],[239,0,240,0],[239,1,240,1],[239,2,240,2],[239,3,240,3],[239,6,240,6],[239,8,240,8],[239,9,240,9],[241,0,242,0],[241,1,242,1],[241,2,242,2],[241,3,242,3],[241,6,242,6],[241,8,242,8],[241,9,242,9],[243,0,244,0],[243,1,244,1],[243,2,244,2],[243,3,244,3],[243,6,244,6],[243,8,244,8],[243,9,244,9],[245,0,246,0],[245,1,246,1],[245,2,246,2],[245,3,246,3],[245,6,246,6],[245,8,246,8],[245,9,246,9],[247,0,248,0],[247,1,248,1],[247,2,248,2],[247,3,248,3],[247,6,248,6],[247,8,248,8],[247,9,248,9],[249,0,250,0],[249,1,250,1],[249,2,250,2],[249,3,250,3],[249,6,250,6],[249,8,250,8],[249,9,250,9],[251,0,252,0],[251,1,252,1],[251,2,252,2],[251,3,252,3],[251,6,252,6],[251,8,252,8],[251,9,252,9],[253,0,254,0],[253,1,254,1],[253,2,254,2],[253,3,254,3],[253,6,254,6],[253,8,254,8],[253,9,254,9],[255,0,256,0],[255,1,256,1],[255,2,256,2],[255,3,256,3],[255,6,256,6],[255,8,256,8],[255,9,256,9],[257,0,258,0],[257,1,258,1],[257,2,258,2],[257,3,258,3],[257,6,258,6],[257,8,258,8],[257,9,258,9],[259,0,260,0],[259,1,260,1],[259,2,260,2],[259,3,260,3],[259,6,260,6],[259,8,260,8],[259,9,260,9],[261,0,262,0],[261,1,262,1],[261,2,262,2],[261,3,262,3],[261,6,262,6],[261,7,262,7],[261,8,262,8],[261,9,262,9],[277,0,278,0],[277,1,278,1],[277,2,278,2],[277,3,278,3],[277,6,278,6],[277,7,278,7],[277,8,278,8],[277,9,278,9],[279,0,280,0],[279,1,280,1],[279,2,280,2],[279,3,280,3],[279,6,280,6],[279,7,280,7],[279,8,280,8],[279,9,280,9],[281,0,282,0],[281,1,282,1],[281,2,282,2],[281,3,282,3],[281,6,282,6],[281,7,282,7],[281,8,282,8],[281,9,282,9],[283,0,284,0],[283,1,284,1],[283,2,284,2],[283,3,284,3],[283,6,284,6],[283,7,284,7],[283,8,284,8],[283,9,284,9],[285,0,286,0],[285,1,286,1],[285,2,286,2],[285,3,286,3],[285,6,286,6],[285,7,286,7],[285,8,286,8],[285,9,286,9],[287,0,288,0],[287,1,288,1],[287,2,288,2],[287,3,288,3],[287,6,288,6],[287,7,288,7],[287,8,288,8],[287,9,288,9],[289,0,290,0],[289,1,290,1],[289,2,290,2],[289,3,290,3],[289,6,290,6],[289,7,290,7],[289,8,290,8],[289,9,290,9],[291,0,292,0],[291,1,292,1],[291,2,292,2],[291,3,292,3],[291,6,292,6],[291,7,292,7],[291,8,292,8],[291,9,292,9],[293,0,294,0],[293,1,294,1],[293,2,294,2],[293,3,294,3],[293,6,294,6],[293,7,294,7],[293,8,294,8],[293,9,294,9]],"merged_total":2098,"flags":["merged_cut"]}
["双牌县公共文化服务领域基层政务公开标准目录 \n "]
["编制单位：双牌县文化旅游广电体育局                                                                                                     "]
["序 号","公开事项",null,"事项类型","公开内容\n(要素)        ","公开内容标题","公开依据","公开时限","公开主体","公开对象",null,"公开方式",null,"公开层级1","公开渠道和载体1","公开层级2","公开渠道和载体2","备注"]
[null,"一级   事项","二级事项",{"$nulls":6},"全社会","特定群体","主动","依申请","县级",null,"乡级"]
[1,"政策文件","法律法规、规章","非政务服务事项","●文件名称\n●文号\n●发布部门\n●发布日期\n●实施日期\n●正文","1.中华人民共和国非物质文化遗产法（中华人民共和国主席令第四十二号）\n2.中华人民共和国文物保护法（根据2015年4月24日第十二届全国人民代表大会常务委员会第十四次会议《全国人民代表大会常务委员会关于修改〈中华人民共和国文物保护法〉的决定》第四次修正）\n3.中华人民共和国公共图书馆法（中华人民共和国主席令第七十九号）\n4.中华人民共和国公共文化服务保障法（中华人民共和国主席令第六十号）\n5.中华人民共和国行政处罚法（中华人民共和国主席令第六十三号）\n6.中华人民共和国行政复议法（中华人民共和国主席令第十六号）\n7.中华人民共和国行政强制法（中华人民共和国主席令第四十九号）\n8.中华人民共和国行政诉讼法（根据2017年6月27日第十二届全国人民代表大会常务委员会第二十八次会议《关于修改〈中华人民共和国民事诉讼法〉和〈中华人民共和国行政诉讼法〉的决定》第二次修正）\n9.中华人民共和国行政许可法（中华人民共和国主席令第七号）\n10.中华人民共和国未成年人保护法（中华人民共和国主席令第六十号）\n11.中华人民共和国预防未成年人犯罪法（中华人民共和国主席令第十七号）\n12.国家非物质文化遗产保护专项资金管理办法（财教〔2012〕45号）\n13.国家级非物质文化遗产代表性传承人认定与管理办法（中华人民共和国文化和旅游部令第3号）\n14.互联网上网服务营业场所管理条例（中华人民共和国国务院令第363号）\n15.文化市场综合行政执法管理办法（中华人民共和国文化部令第52号）\n16.互联网视听节目服务管理规定（国家广播电影电视总局、中华人民共和国信息产业部令第　56号）\n17.互联网文化管理暂行规定（中华人民共和国文化部令第51号）\n18.网络游戏管理暂行办法（中华人民共和国文化部令第49号）\n19.文物保护工程管理办法（中华人民共和国文化部令第26号）\n20.文物认定管理暂行办法（中华人民共和国文化部令第46号）\n21.中华人民共和国文物保护法实施条例（中华人民共和国国务院令第377号）\n22.文物保护工程施工资质管理办法（文物保发〔2014〕13号）\n23.营业性演出管理条例（中华人民共和国国务院令第528号）\n24.营业性演出管理条例实施细则（中华人民共和国文化部令第47号）\n25.大型群众性活动安全管理条例（中华人民共和国国务院令第505号）\n26.社会艺术水平考级管理办法（中华人民共和国文化部令第31号）\n27艺术品经营管理办法（中华人民共和国文化部令第56号）\n28.娱乐场所管理条例（中华人民共和国国务院令第458号）\n29.娱乐场所管理办法（中华人民共和国文化部令第55号）\n30.公众聚集文化经营场所审核公示暂行办法（文市发〔2003〕31号）\n31.公共文化体育设施条例（中华人民共和国国务院令第382号）\n32.无证无照经营查处办法（中华人民共和国国务院令第684号）\n33.《基金会管理条例》（国务院令第400号）","●《中华人民共和国政府信息公开条例》（中华人民共和国国务院令第711号）","  信息形成或者变更之日起20个工作日内",{"$f":"$I$8","v":"双牌县文化旅游广电体育局"},"√",null,"√",null,"√","■政府网站    □政府公报                                                                                                                                                                                                                □两微一端    □发布会/听证会                                                                                                                                                                                              □广播电视    □纸质媒体                                                                                                                                                                                                   □公开查阅点  ■政务服务中心                                                                                                                                                                                                    □便民服务站  □入户/现场                                                                                                                                                                                                   □社区/企事业单位/村公示栏\n（电子屏）                                                                                                                                                                                          □精准推送    □其他","√","■政府网站    □政府公报                                                                                                                                                                                                                □两微一端    □发布会/听证会                                                                                                                                                                                              □广播电视    □纸质媒体                                                                                                                                                                                                   □公开查阅点  □政务服务中心                                                                                                                                                                                                    ■便民服务站  □入户/现场                                                                                                                                                                                                   □社区/企事业单位/村公示栏\n（电子屏）                                                                                                                                                                                          □精准推送    □其他"]
[]
[null,null,"规范性文件","非政务服务事项","●文件名称\n●文号\n●发布部门\n●发布日期\n●实施日期\n●正文","一、国家级\n1.文化部关于推动互联网上网服务行业转型升级的意见（文市发〔2014〕42号）\n二、省级\n2.湖南省文化厅等四部门关于贯彻落实文化部等四部门 《关于加强执法监督 完善管理政策 促进互联网上网服务行业健康有序发展的通知》的意见（湘文市〔2015〕24号）\n3.湖南省文化厅关于转发《娱乐场所管理办法》和《文化部关于贯彻娱乐场所管理办法的通知》的通知（湘文市 (2013) 162 号）\n4. 湖南省文化厅关于贯彻《湖南省中小学校幼儿园规划建设条例》相关规定的通知（湘文市〔2016〕129 号）\n三、县级\n6.双牌县关于加快构建现代公共文化服务体系的实施意见（韶办法〔2016〕37号）"]
[2,"行政\n许可","互联网上网服务营业场所经营单位设立审批","政务服务事项","●办事指南：主要包括事项名称、设定依据、申请条件、办理材料、办理地点、办理时间、联系电话、办理流程、办理期限、申请行政许可需要提交的全部材料目录及办理情况","互联网上网服务营业场所经营单位设立审批（办事指南）","●《中华人民共和国政府信息公开条例》（中华人民共和国国务院令第711号）\n●《中华人民共和国行政许可法》（中华人民共和国主席令第七号）\n●《互联网上网服务营业场所管理条例》（中华人民共和国国务院令第363号）","  信息形成或者变更之日起20个工作日内","双牌县文化旅游广电体育局","√",null,"√",null,"√","■政府网站    □政府公报                                                                                                                                                                                                                □两微一端    □发布会/听证会                                                                                                                                                                                              □广播电视    □纸质媒体                                                                                                                                                                                                   □公开查阅点  ■政务服务中心                                                                                                                                                                                                    □便民服务站  □入户/现场                                                                                                                                                                                                   □社区/企事业单位/村公示栏\n（电子屏）                                                                                                                                                                                          □精准推送    □其他",null,"□政府网站    □政府公报                                                                                                                                                                                                                □两微一端    □发布会/听证会                                                                                                                                                                                              □广播电视    □纸质媒体                                                                                                                                                                                                   □公开查阅点  □政务服务中心                                                                                                                                                                                                    □便民服务站  □入户/现场                                                                                                                                                                                                   □社区/企事业单位/村公示栏\n（电子屏）                                                                                                                                                                                          □精准推送    □其他"]
[{"$nulls":4},"●行政许可决定 ","办件公示（双牌县政务服务网）",null,"决定作出之日起7个工作日内公开"]
[3,"行政\n许可","营业性演出审批","政务服务事项","●办事指南：主要包括事项名称、设定依据、申请条件、办理材料、办理地点、办理时间、联系电话、办理流程、办理期限、申请行政许可需要提交的全部材料目录及办理情况；\n","营业性演出审批（办事指南）","●《中华人民共和国政府信息公开条例》（中华人民共和国国务院令第711号）\n●《中华人民共和国行政许可法》（中华人民共和国主席令第七号）\n●《营业性演出管理条例》（中华人民共和国国务院令第528号）\n","  信息形成或者变更之日起20个工作日内",{"$f":"$I$8","v":"双牌县文化旅游广电体育局"},"√",null,"√",null,"√","■政府网站    □政府公报                                                                                                                                                                                                                □两微一端    □发布会/听证会                                                                                                                                                                                              □广播电视    □纸质媒体                                                                                                                                                                                                   □公开查阅点  ■政务服务中心                                                                                                                                                                                                    □便民服务站  □入户/现场                                                                                                                                                                                                   □社区/企事业单位/村公示栏\n（电子屏）                                                                                                                                                                                          □精准推送    □其他",null,"□政府网站    □政府公报                                                                                                                                                                                                                □两微一端    □发布会/听证会                                                                                                                                                                                              □广播电视    □纸质媒体                                                                                                                                                                                                   □公开查阅点  □政务服务中心                                                                                                                                                                                                    □便民服务站  □入户/现场                                                                                                                                                                                                   □社区/企事业单位/村公示栏\n（电子屏）                                                                                                                                                                                          □精准推送    □其他"]
[{"$nulls":4},"●行政许可决定 ",{"$f":"$F$9","v":"办件公示（双牌县政务服务网）"},null,"决定作出之日起7个工作日内公开"]
[4,"行政\n许可","娱乐场所从事娱乐场所经营活动审批","政务服务事项","●办事指南：主要包括事项名称、设定依据、申请条件、办理材料、办理地点、办理时间、联系电话、办理流程、办理期限、申请行政许可需要提交的全部材料目录及办理情况；\n","娱乐场所从事娱乐场所经营活动审批（办事指南）","●《中华人民共和国政府信息公开条例》（中华人民共和国国务院令第711号）\n●《中华人民共和国行政许可法》（中华人民共和国主席令第七号）\n●《娱乐场所管理条例》（中华人民共和国国务院令第458号）\n●《文化部关于落实“先照后证”改进文化市场行政审批工作的通知》","  信息形成或者变更之日起20个工作日内",{"$f":"$I$10","v":"双牌县文化旅游广电体育局"},"√",null,"√",null,"√","■政府网站    □政府公报                                                                                                                                                                                                                □两微一端    □发布会/听证会                                                                                                                                                                                              □广播电视    □纸质媒体                                                                                                                                                                                                   □公开查阅点  ■政务服务中心                                                                                                                                                                                                    □便民服务站  □入户/现场                                                                                                                                                                                                   □社区/企事业单位/村公示栏\n（电子屏）                                                                                                                                                                                          □精准推送    □其他",null,"□政府网站    □政府公报                                                                                                                                                                                                                □两微一端    □发布会/听证会                                                                                                                                                                                              □广播电视    □纸质媒体                                                                                                                                                                                                   □公开查阅点  □政务服务中心                                                                                                                                                                                                    □便民服务站  □入户/现场                                                                                                                                                                                                   □社区/企事业单位/村公示栏\n（电子屏）                                                                                                                                                                                          □精准推送    □其他"]
[{"$nulls":4},"●行政许可决定 ",{"$f":"$F$9","v":"办件公示（双牌县政务服务网）"},null,"决定作出之日起7个工作日内公开"]
[5,"行政\n许可","中外合资、合作娱乐场所变更名称、注册资本","政务服务事项","●办事指南：主要包括事项名称、设定依据、申请条件、办理材料、办理地点、办理时间、联系电话、办理流程、办理期限、申请行政许可需要提交的全部材料目录及办理情况；\n","中外合资、合作娱乐场所变更名称、注册资本（办事指南）","●《中华人民共和国政府信息公开条例》（中华人民共和国国务院令第711号）\n●《中华人民共和国行政许可法》（中华人民共和国主席令第七号）\n●《娱乐场所管理条例》（中华人民共和国国务院令第458号）","  信息形成或者变更之日起20个工作日内","双牌县文化旅游广电体育局","√",null,"√",null,"√","■政府网站    □政府公报                                                                                                                                                                                                                □两微一端    □发布会/听证会                                                                                                                                                                                              □广播电视    □纸质媒体                                                                                                                                                                                                   □公开查阅点  ■政务服务中心                                                                                                                                                                                                    □便民服务站  □入户/现场                                                                                                                                                                                                   □社区/企事业单位/村公示栏\n（电子屏）                                                                                                                                                                                          □精准推送    □其他",null,"□政府网站    □政府公报                                                                                                                                                                                                                □两微一端    □发布会/听证会                                                                                                                                                                                              □广播电视    □纸质媒体                                                                                                                                                                                                   □公开查阅点  □政务服务中心                                                                                                                                                                                                    □便民服务站  □入户/现场                                                                                                                                                                                                   □社区/企事业单位/村公示栏\n（电子屏）                                                                                                                                                                                          □精准推送    □其他"]
[{"$nulls":4},"●行政许可决定 ","办件公示（双牌县政务服务网）",null,"决定作出之日起7个工作日内公开"]
[6,"行政\n许可","中外合资、合作娱乐场所补证","政务服务事项","●办事指南：主要包括事项名称、设定依据、申请条件、办理材料、办理地点、办理时间、联系电话、办理流程、办理期限、申请行政许可需要提交的全部材料目录及办理情况；\n","中外合资、合作娱乐场所补证（办事指南）","●《中华人民共和国政府信息公开条例》（中华人民共和国国务院令第711号）\n●《中华人民共和国行政许可法》（中华人民共和国主席令第七号）\n●《娱乐场所管理条例》（中华人民共和国国务院令第458号）","  信息形成或者变更之日起20个工作日内","双牌县文化旅游广电体育局","√",null,"√",null,"√","■政府网站    □政府公报                                                                                                                                                                                                                □两微一端    □发布会/听证会                                                                                                                                                                                              □广播电视    □纸质媒体                                                                                                                                                                                                   □公开查阅点  ■政务服务中心                                                                                                                                                                                                    □便民服务站  □入户/现场                                                                                                                                                                                                   □社区/企事业单位/村公示栏\n（电子屏）                                                                                                                                                                                          □精准推送    □其他",null,"□政府网站    □政府公报                                                                                                                                                                                                                □两微一端    □发布会/听证会                                                                                                                                                                                              □广播电视    □纸质媒体                                                                                                                                                                                                   □公开查阅点  □政务服务中心                                                                                                                                                                                                    □便民服务站  □入户/现场                                                                                                                                                                                                   □社区/企事业单位/村公示栏\n（电子屏）                                                                                                                                                                                          □精准推送    □其他"]
[{"$nulls":4},"●行政许可决定 ",{"$f":"$F$13","v":"办件公示（双牌县政务服务网）"},null,"决定作出之日起7个工作日内公开"]
[7,"行政\n许可","中外合资、合作娱乐场所注销","政务服务事项","●办事指南：主要包括事项名称、设定依据、申请条件、办理材料、办理地点、办理时间、联系电话、办理流程、办理期限、申请行政许可需要提交的全部材料目录及办理情况；\n","中外合资、合作娱乐场所注销（办事指南）","●《中华人民共和国政府信息公开条例》（中华人民共和国国务院令第711号）\n●《中华人民共和国行政许可法》（中华人民共和国主席令第七号）\n●《娱乐场所管理条例》（中华人民共和国国务院令第458号）","  信息形成或者变更之日起20个工作日内","双牌县文化旅游广电体育局","√",null,"√",null,"√","■政府网站    □政府公报                                                                                                                                                                                                                □两微一端    □发布会/听证会                                                                                                                                                                                              □广播电视    □纸质媒体                                                                                                                                                                                                   □公开查阅点  ■政务服务中心                                                                                                                                                                                                    □便民服务站  □入户/现场                                                                                                                                                                                                   □社区/企事业单位/村公示栏\n（电子屏）                                                                                                                                                                                          □精准推送    □其他",null,"□政府网站    □政府公报                                                                                                                                                                                                                □两微一端    □发布会/听证会                                                                                                                                                                                              □广播电视    □纸质媒体                                                                                                                                                                                                   □公开查阅点  □政务服务中心                                                                                                                                                                                                    □便民服务站  □入户/现场                                                                                                                                                                                                   □社区/企事业单位/村公示栏\n（电子屏）                                                                                                                                                                                          □精准推送    □其他"]
[{"$nulls":4},"●行政许可决定 ","办件公示（双牌县政务服务网）",null,"决定作出之日起7个工作日内公开"]
[8,"行政\n许可","中外合资、合作娱乐场所延续","政务服务事项","●办事指南：主要包括事项名称、设定依据、申请条件、办理材料、办理地点、办理时间、联系电话、办理流程、办理期限、申请行政许可需要提交的全部材料目录及办理情况；\n","中外合资、合作娱乐场所延续（办事指南）","●《中华人民共和国政府信息公开条例》（中华人民共和国国务院令第711号）\n●《中华人民共和国行政许可法》（中华人民共和国主席令第七号）\n●《娱乐场所管理条例》（中华人民共和国国务院令第458号）","  信息形成或者变更之日起20个工作日内","双牌县文化旅游广电体育局","√",null,"√",null,"√","■政府网站    □政府公报                                                                                                                                                                                                                □两微一端    □发布会/听证会                                                                                                                                                                                              □广播电视    □纸质媒体                                                                                                                                                                                                   □公开查阅点  ■政务服务中心                                                                                                                                                                                                    □便民服务站  □入户/现场                                                                                                                                                                                                   □社区/企事业单位/村公示栏\n（电子屏）                                                                                                                                                                                          □精准推送    □其他",null,"□政府网站    □政府公报                                                                                                                                                                                                                □两微一端    □发布会/听证会                                                                                                                                                                                              □广播电视    □纸质媒体                                                                                                                                                                                                   □公开查阅点  □政务服务中心                                                                                                                                                                                                    □便民服务站  □入户/现场                                                                                                                                                                                                   □社区/企事业单位/村公示栏\n（电子屏）                                                                                                                                                                                          □精准推送    □其他"]
[{"$nulls":4},"●行政许可决定 ","办件公示（双牌县政务服务网）",null,"决定作出之日起7个工作日内公开"]
[9,"行政\n许可","娱乐场所从事娱乐场所经营活动审批","政务服务事项","●办事指南：主要包括事项名称、设定依据、申请条件、办理材料、办理地点、办理时间、联系电话、办理流程、办理期限、申请行政许可需要提交的全部材料目录及办理情况；\n","娱乐场所从事娱乐场所经营活动审批（办事指南）","●《中华人民共和国政府信息公开条例》（中华人民共和国国务院令第711号）\n●《中华人民共和国行政许可法》（中华人民共和国主席令第七号）\n●《娱乐场所管理条例》（中华人民共和国国务院令第458号）","  信息形成或者变更之日起20个工作日内","双牌县文化旅游广电体育局","√",null,"√",null,"√","■政府网站    □政府公报                                                                                                                                                                                                                □两微一端    □发布会/听证会                                                                                                                                                                                              □广播电视    □纸质媒体                                                                                                                                                                                                   □公开查阅点  ■政务服务中心                                                                                                                                                                                                    □便民服务站  □入户/现场                                                                                                                                                                                                   □社区/企事业单位/村公示栏\n（电子屏）                                                                                                                                                                                          □精准推送    □其他",null,"□政府网站    □政府公报                                                                                                                                                                                                                □两微一端    □发布会/听证会                                                                                                                                                                                              □广播电视    □纸质媒体                                                                                                                                                                                                   □公开查阅点  □政务服务中心                                                                                                                                                                                                    □便民服务站  □入户/现场                                                                                                                                                                                                   □社区/企事业单位/村公示栏\n（电子屏）                                                                                                                                                                                          □精准推送    □其他"]
[{"$nulls":4},"●行政许可决定 ","办件公示（双牌县政务服务网）",null,"决定作出之日起7个工作日内公开"]
[10,"行政\n许可","娱乐场所变更场地、主要设施设备、投资人员","政务服务事项","●办事指南：主要包括事项名称、设定依据、申请条件、办理材料、办理地点、办理时间、联系电话、办理流程、办理期限、申请行政许可需要提交的全部材料目录及办理情况；\n","娱乐场所变更场地、主要设施设备、投资人员（办事指南）","●《中华人民共和国政府信息公开条例》（中华人民共和国国务院令第711号）\n●《中华人民共和国行政许可法》（中华人民共和国主席令第七号）\n●《娱乐场所管理条例》（中华人民共和国国务院令第458号）","  信息形成或者变更之日起20个工作日内","双牌县文化旅游广电体育局","√",null,"√",null,"√","■政府网站    □政府公报                                                                                                                                                                                                                □两微一端    □发布会/听证会                                                                                                                                                                                              □广播电视    □纸质媒体                                                                                                                                                                                                   □公开查阅点  ■政务服务中心                                                                                                                                                                                                    □便民服务站  □入户/现场                                                                                                                                                                                                   □社区/企事业单位/村公示栏\n（电子屏）                                                                                                                                                                                          □精准推送    □其他",null,"□政府网站    □政府公报                                                                                                                                                                                                                □两微一端    □发布会/听证会                                                                                                                                                                                              □广播电视    □纸质媒体                                                                                                                                                                                                   □公开查阅点  □政务服务中心                                                                                                                                                                                                    □便民服务站  □入户/现场                                                                                                                                                                                                   □社区/企事业单位/村公示栏\n（电子屏）                                                                                                                                                                                          □精准推送    □其他"]
[{"$nulls":4},"●行政许可决定 ","办件公示（双牌县政务服务网）",null,"决定作出之日起7个工作日内公开"]
[11,"行政\n许可","娱乐场所变更名称、注册资本审批","政务服务事项","●办事指南：主要包括事项名称、设定依据、申请条件、办理材料、办理地点、办理时间、联系电话、办理流程、办理期限、申请行政许可需要提交的全部材料目录及办理情况；\n","娱乐场所变更名称、注册资本审批（办事指南）","●《中华人民共和国政府信息公开条例》（中华人民共和国国务院令第711号）\n●《中华人民共和国行政许可法》（中华人民共和国主席令第七号）\n●《娱乐场所管理条例》（中华人民共和国国务院令第458号）","  信息形成或者变更之日起20个工作日内","双牌县文化旅游广电体育局","√",null,"√",null,"√","■政府网站    □政府公报                                                                                                                                                                                                                □两微一端    □发布会/听证会                                                                                                                                                                                              □广播电视    □纸质媒体                                                                                                                                                                                                   □公开查阅点  ■政务服务中心                                                                                                                                                                                                    □便民服务站  □入户/现场                                                                                                                                                                                                   □社区/企事业单位/村公示栏\n（电子屏）                                                                                                                                                                                          □精准推送    □其他",null,"□政府网站    □政府公报                                                                                                                                                                                                                □两微一端    □发布会/听证会                                                                                                                                                                                              □广播电视    □纸质媒体                                                                                                                                                                                                   □公开查阅点  □政务服务中心                                                                                                                                                                                                    □便民服务站  □入户/现场                                                                                                                                                                                                   □社区/企事业单位/村公示栏\n（电子屏）                                                                                                                                                                                          □精准推送    □其他"]
[{"$nulls":4},"●行政许可决定 ","办件公示（双牌县政务服务网）",null,"决定作出之日起7个工作日内公开"]
[12,"行政\n许可","娱乐场所变更法定代表人、主要负责人审批","政务服务事项","●办事指南：主要包括事项名称、设定依据、申请条件、办理材料、办理地点、办理时间、联系电话、办理流程、办理期限、申请行政许可需要提交的全部材料目录及办理情况；\n","娱乐场所变更法定代表人、主要负责人审批（办事指南）","●《中华人民共和国政府信息公开条例》（中华人民共和国国务院令第711号）\n●《中华人民共和国行政许可法》（中华人民共和国主席令第七号）\n●《娱乐场所管理条例》（中华人民共和国国务院令第458号）","  信息形成或者变更之日起20个工作日内","双牌县文化旅游广电体育局","√",null,"√",null,"√","■政府网站    □政府公报                                                                                                                                                                                                                □两微一端    □发布会/听证会                                                                                                                                                                                              □广播电视    □纸质媒体                                                                                                                                                                                                   □公开查阅点  ■政务服务中心                                                                                                                                                                                                    □便民服务站  □入户/现场                                                                                                                                                                                                   □社区/企事业单位/村公示栏\n（电子屏）                                                                                                                                                                                          □精准推送    □其他",null,"□政府网站    □政府公报                                                                                                                                                                                                                □两微一端    □发布会/听证会                                                                                                                                                                                              □广播电视    □纸质媒体                                                                                                                                                                                                   □公开查阅点  □政务服务中心                                                                                                                                                                                                    □便民服务站  □入户/现场                                                                                                                                                                                                   □社区/企事业单位/村公示栏\n（电子屏）                                                                                                                                                                                          □精准推送    □其他"]
[{"$nulls":4},"●行政许可决定 ","办件公示（双牌县政务服务网）",null,"决定作出之日起7个工作日内公开"]
[13,"行政\n许可","娱乐场所延续审批","政务服务事项","●办事指南：主要包括事项名称、设定依据、申请条件、办理材料、办理地点、办理时间、联系电话、办理流程、办理期限、申请行政许可需要提交的全部材料目录及办理情况；\n","娱乐场所延续审批（办事指南）","●《中华人民共和国政府信息公开条例》（中华人民共和国国务院令第711号）\n●《中华人民共和国行政许可法》（中华人民共和国主席令第七号）\n●《娱乐场所管理条例》（中华人民共和国国务院令第458号）","  信息形成或者变更之日起20个工作日内","双牌县文化旅游广电体育局","√",null,"√",null,"√","■政府网站    □政府公报                                                                                                                                                                                                                □两微一端    □发布会/听证会                                                                                                                                                                                              □广播电视    □纸质媒体                                                                                                                                                                                                   □公开查阅点  ■政务服务中心                                                                                                                                                                                                    □便民服务站  □入户/现场                                                                                                                                                                                                   □社区/企事业单位/村公示栏\n（电子屏）                                                                                                                                                                                          □精准推送    □其他",null,"□政府网站    □政府公报                                                                                                                                                                                                                □两微一端    □发布会/听证会                                                                                                                                                                                              □广播电视    □纸质媒体                                                                                                                                                                                                   □公开查阅点  □政务服务中心                                                                                                                                                                                                    □便民服务站  □入户/现场                                                                                                                                                                                                   □社区/企事业单位/村公示栏\n（电子屏）                                                                                                                                                                                          □精准推送    □其他"]
[{"$nulls":4},"●行政许可决定 ","办件公示（双牌县政务服务网）",null,"决定作出之日起7个工作日内公开"]
[14,"行政\n许可","文艺表演团体从事营业性演出活动审批","政务服务事项","●办事指南：主要包括事项名称、设定依据、申请条件、办理材料、办理地点、办理时间、联系电话、办理流程、办理期限、申请行政许可需要提交的全部材料目录及办理情况；\n","文艺表演团体从事营业性演出活动审批（办事指南）","●《中华人民共和国政府信息公开条例》（中华人民共和国国务院令第711号）\n●《中华人民共和国行政许可法》（中华人民共和国主席令第七号）\n●《营业性演出管理条例》（中华人民共和国国务院令第528号）","  信息形成或者变更之日起20个工作日内","双牌县文化旅游广电体育局","√",null,"√",null,"√","■政府网站    □政府公报                                                                                                                                                                                                                □两微一端    □发布会/听证会                                                                                                                                                                                              □广播电视    □纸质媒体                                                                                                                                                                                                   □公开查阅点  ■政务服务中心                                                                                                                                                                                                    □便民服务站  □入户/现场                                                                                                                                                                                                   □社区/企事业单位/村公示栏\n（电子屏）                                                                                                                                                                                          □精准推送    □其他",null,"□政府网站    □政府公报                                                                                                                                                                                                                □两微一端    □发布会/听证会                                                                                                                                                                                              □广播电视    □纸质媒体                                                                                                                                                                                                   □公开查阅点  □政务服务中心                                                                                                                                                                                                    □便民服务站  □入户/现场                                                                                                                                                                                                   □社区/企事业单位/村公示栏\n（电子屏）                                                                                                                                                                                          □精准推送    □其他"]
[{"$nulls":4},"●行政许可决定 ","办件公示（双牌县政务服务网）",null,"决定作出之日起7个工作日内公开"]
[15,"行政\n许可","文化类基金会设立前置审查","政务服务事项","●办事指南：主要包括事项名称、设定依据、申请条件、办理材料、办理地点、办理时间、联系电话、办理流程、办理期限、申请行政许可需要提交的全部材料目录及办理情况；\n","文化类基金会设立前置审查（办事指南）","●《中华人民共和国政府信息公开条例》（中华人民共和国国务院令第711号）\n●《中华人民共和国行政许可法》（中华人民共和国主席令第七号）\n●《基金会管理条例》（国务院令第４0０号）","  信息形成或者变更之日起20个工作日内","双牌县文化旅游广电体育局","√",null,"√",null,"√","■政府网站    □政府公报                                                                                                                                                                                                                □两微一端    □发布会/听证会                                                                                                                                                                                              □广播电视    □纸质媒体                                                                                                                                                                                                   □公开查阅点  ■政务服务中心                                                                                                                                                                                                    □便民服务站  □入户/现场                                                                                                                                                                                                   □社区/企事业单位/村公示栏\n（电子屏）                                                                                                                                                                                          □精准推送    □其他",null,"□政府网站    □政府公报                                                                                                                                                                                                                □两微一端    □发布会/听证会                                                                                                                                                                                              □广播电视    □纸质媒体                                                                                                                                                                                                   □公开查阅点  □政务服务中心                                                                                                                                                                                                    □便民服务站  □入户/现场                                                                                                                                                                                                   □社区/企事业单位/村公示栏\n（电子屏）                                                                                                                                                                                          □精准推送    □其他"]
[{"$nulls":4},"●行政许可决定 ","办件公示（双牌县政务服务网）",null,"决定作出之日起7个工作日内公开"]
[16,"行政\n许可","非国有文物收藏单位和其他单位借用国有文物收藏单位馆藏文物审批","政务服务事项","●办事指南：主要包括事项名称、设定依据、申请条件、办理材料、办理地点、办理时间、联系电话、办理流程、办理期限、申请行政许可需要提交的全部材料目录及办理情况；\n","非国有文物收藏单位和其他单位借用国有文物收藏单位馆藏文物审批（办事指南）","●《中华人民共和国政府信息公开条例》（中华人民共和国国务院令第711号）\n●《中华人民共和国行政许可法》（中华人民共和国主席令第七号）\n●《中华人民共和国文物保护法》（根据2015年4月24日第十二届全国人民代表大会常务委员会第十四次会议《全国人民代表大会常务委员会关于修改〈中华人民共和国文物保护法〉的决定》第四次修正）（根据2015年4月24日第十二届全国人民代表大会常务委员会第十四次会议《全国人民代表大会常务委员会关于修改〈中华人民共和国文物保护法〉的决定》第四次修正）","  信息形成或者变更之日起20个工作日内","双牌县文化旅游广电体育局","√",null,"√",null,"√","■政府网站    □政府公报                                                                                                                                                                                                                □两微一端    □发布会/听证会                                                                                                                                                                                              □广播电视    □纸质媒体                                                                                                                                                                                                   □公开查阅点  ■政务服务中心                                                                                                                                                                                                    □便民服务站  □入户/现场                                                                                                                                                                                                   □社区/企事业单位/村公示栏\n（电子屏）                                                                                                                                                                                          □精准推送    □其他",null,"□政府网站    □政府公报                                                                                                                                                                                                                □两微一端    □发布会/听证会                                                                                                                                                                                              □广播电视    □纸质媒体                                                                                                                                                                                                   □公开查阅点  □政务服务中心                                                                                                                                                                                                    □便民服务站  □入户/现场                                                                                                                                                                                                   □社区/企事业单位/村公示栏\n（电子屏）                                                                                                                                                                                          □精准推送    □其他"]
[{"$nulls":4},"●行政许可决定 ","办件公示（双牌县政务服务网）",null,"决定作出之日起7个工作日内公开"]
[17,"行政\n许可","非国有文物收藏单位和其他单位举办展览需借用国有文物收藏单位二级（含）以下级别馆藏文物审批","政务服务事项","●办事指南：主要包括事项名称、设定依据、申请条件、办理材料、办理地点、办理时间、联系电话、办理流程、办理期限、申请行政许可需要提交的全部材料目录及办理情况；\n","非国有文物收藏单位和其他单位举办展览需借用国有文物收藏单位二级（含）以下级别馆藏文物审批（办事指南）","●《中华人民共和国政府信息公开条例》（中华人民共和国国务院令第711号）\n●《中华人民共和国行政许可法》（中华人民共和国主席令第七号）\n●《中华人民共和国文物保护法》（根据2015年4月24日第十二届全国人民代表大会常务委员会第十四次会议《全国人民代表大会常务委员会关于修改〈中华人民共和国文物保护法〉的决定》第四次修正）","  信息形成或者变更之日起20个工作日内","双牌县文化旅游广电体育局","√",null,"√",null,"√","■政府网站    □政府公报                                                                                                                                                                                                                □两微一端    □发布会/听证会                                                                                                                                                                                              □广播电视    □纸质媒体                                                                                                                                                                                                   □公开查阅点  ■政务服务中心                                                                                                                                                                                                    □便民服务站  □入户/现场                                                                                                                                                                                                   □社区/企事业单位/村公示栏\n（电子屏）                                                                                                                                                                                          □精准推送    □其他",null,"□政府网站    □政府公报                                                                                                                                                                                                                □两微一端    □发布会/听证会                                                                                                                                                                                              □广播电视    □纸质媒体                                                                                                                                                                                                   □公开查阅点  □政务服务中心                                                                                                                                                                                                    □便民服务站  □入户/现场                                                                                                                                                                                                   □社区/企事业单位/村公示栏\n（电子屏）                                                                                                                                                                                          □精准推送    □其他"]
[{"$nulls":4},"●行政许可决定 ","办件公示（双牌县政务服务网）",null,"决定作出之日起7个工作日内公开"]
[18,"行政\n许可","文物保护单位及未核定为文物保护单位的不可移动文物修缮许可","政务服务事项","●办事指南：主要包括事项名称、设定依据、申请条件、办理材料、办理地点、办理时间、联系电话、办理流程、办理期限、申请行政许可需要提交的全部材料目录及办理情况；\n","文物保护单位及未核定为文物保护单位的不可移动文物修缮许可（办事指南）","●《中华人民共和国政府信息公开条例》（中华人民共和国国务院令第711号）\n●《中华人民共和国行政许可法》（中华人民共和国主席令第七号）\n●《中华人民共和国文物保护法》（根据2015年4月24日第十二届全国人民代表大会常务委员会第十四次会议《全国人民代表大会常务委员会关于修改〈中华人民共和国文物保护法〉的决定》第四次修正）","  信息形成或者变更之日起20个工作日内","双牌县文化旅游广电体育局","√",null,"√",null,"√","■政府网站    □政府公报                                                                                                                                                                                                                □两微一端    □发布会/听证会                                                                                                                                                                                              □广播电视    □纸质媒体                                                                                                                                                                                                   □公开查阅点  ■政务服务中心                                                                                                                                                                                                    □便民服务站  □入户/现场                                                                                                                                                                                                   □社区/企事业单位/村公示栏\n（电子屏）                                                                                                                                                                                          □精准推送    □其他",null,"□政府网站    □政府公报                                                                                                                                                                                                                □两微一端    □发布会/听证会                                                                                                                                                                                              □广播电视    □纸质媒体                                                                                                                                                                                                   □公开查阅点  □政务服务中心                                                                                                                                                                                                    □便民服务站  □入户/现场                                                                                                                                                                                                   □社区/企事业单位/村公示栏\n（电子屏）                                                                                                                                                                                          □精准推送    □其他"]
[{"$nulls":4},"●行政许可决定 ","办件公示（双牌县政务服务网）",null,"决定作出之日起7个工作日内公开"]
[19,"行政\n许可","县级文物保护单位及未核定为文物保护单位的不可移动文物修缮审批","政务服务事项","●办事指南：主要包括事项名称、设定依据、申请条件、办理材料、办理地点、办理时间、联系电话、办理流程、办理期限、申请行政许可需要提交的全部材料目录及办理情况；\n","县级文物保护单位及未核定为文物保护单位的不可移动文物修缮审批（办事指南）","●《中华人民共和国政府信息公开条例》（中华人民共和国国务院令第711号）\n●《中华人民共和国行政许可法》（中华人民共和国主席令第七号）\n●《中华人民共和国文物保护法》（根据2015年4月24日第十二届全国人民代表大会常务委员会第十四次会议《全国人民代表大会常务委员会关于修改〈中华人民共和国文物保护法〉的决定》第四次修正）","  信息形成或者变更之日起20个工作日内","双牌县文化旅游广电体育局","√",null,"√",null,"√","■政府网站    □政府公报                                                                                                                                                                                                                □两微一端    □发布会/听证会                                                                                                                                                                                              □广播电视    □纸质媒体                                                                                                                                                                                                   □公开查阅点  ■政务服务中心                                                                                                                                                                                                    □便民服务站  □入户/现场                                                                                                                                                                                                   □社区/企事业单位/村公示栏\n（电子屏）                                                                                                                                                                                          □精准推送    □其他",null,"□政府网站    □政府公报                                                                                                                                                                                                                □两微一端    □发布会/听证会                                                                                                                                                                                              □广播电视    □纸质媒体                                                                                                                                                                                                   □公开查阅点  □政务服务中心                                                                                                                                                                                                    □便民服务站  □入户/现场                                                                                                                                                                                                   □社区/企事业单位/村公示栏\n（电子屏）                                                                                                                                                                                          □精准推送    □其他"]
[{"$nulls":4},"●行政许可决定 ","办件公示（双牌县政务服务网）",null,"决定作出之日起7个工作日内公开"]
[20,"行政\n许可","文物保护单位的迁移、拆除或者不可移动文物的原址重建审批","政务服务事项","●办事指南：主要包括事项名称、设定依据、申请条件、办理材料、办理地点、办理时间、联系电话、办理流程、办理期限、申请行政许可需要提交的全部材料目录及办理情况；\n","文物保护单位的迁移、拆除或者不可移动文物的原址重建审批（办事指南）","●《中华人民共和国政府信息公开条例》（中华人民共和国国务院令第711号）\n●《中华人民共和国行政许可法》（中华人民共和国主席令第七号）\n●《中华人民共和国文物保护法》（根据2015年4月24日第十二届全国人民代表大会常务委员会第十四次会议《全国人民代表大会常务委员会关于修改〈中华人民共和国文物保护法〉的决定》第四次修正）","  信息形成或者变更之日起20个工作日内","双牌县文化旅游广电体育局","√",null,"√",null,"√","■政府网站    □政府公报                                                                                                                                                                                                                □两微一端    □发布会/听证会                                                                                                                                                                                              □广播电视    □纸质媒体                                                                                                                                                                                                   □公开查阅点  ■政务服务中心                                                                                                                                                                                                    □便民服务站  □入户/现场                                                                                                                                                                                                   □社区/企事业单位/村公示栏\n（电子屏）                                                                                                                                                                                          □精准推送    □其他",null,"□政府网站    □政府公报                                                                                                                                                                                                                □两微一端    □发布会/听证会                                                                                                                                                                                              □广播电视    □纸质媒体                                                                                                                                                                                                   □公开查阅点  □政务服务中心                                                                                                                                                                                                    □便民服务站  □入户/现场                                                                                                                                                                                                   □社区/企事业单位/村公示栏\n（电子屏）                                                                                                                                                                                          □精准推送    □其他"]
[{"$nulls":4},"●行政许可决定 ","办件公示（双牌县政务服务网）",null,"决定作出之日起7个工作日内公开"]
[21,"行政\n许可","权限内不可移动文物改变用途的审批","政务服务事项","●办事指南：主要包括事项名称、设定依据、申请条件、办理材料、办理地点、办理时间、联系电话、办理流程、办理期限、申请行政许可需要提交的全部材料目录及办理情况；\n","权限内不可移动文物改变用途的审批（办事指南）","●《中华人民共和国政府信息公开条例》（中华人民共和国国务院令第711号）\n●《中华人民共和国行政许可法》（中华人民共和国主席令第七号）\n●《中华人民共和国文物保护法》（根据2015年4月24日第十二届全国人民代表大会常务委员会第十四次会议《全国人民代表大会常务委员会关于修改〈中华人民共和国文物保护法〉的决定》第四次修正）","  信息形成或者变更之日起20个工作日内","双牌县文化旅游广电体育局","√",null,"√",null,"√","■政府网站    □政府公报                                                                                                                                                                                                                □两微一端    □发布会/听证会                                                                                                                                                                                              □广播电视    □纸质媒体                                                                                                                                                                                                   □公开查阅点  ■政务服务中心                                                                                                                                                                                                    □便民服务站  □入户/现场                                                                                                                                                                                                   □社区/企事业单位/村公示栏\n（电子屏）                                                                                                                                                                                          □精准推送    □其他",null,"□政府网站    □政府公报                                                                                                                                                                                                                □两微一端    □发布会/听证会                                                                                                                                                                                              □广播电视    □纸质媒体                                                                                                                                                                                                   □公开查阅点  □政务服务中心                                                                                                                                                                                                    □便民服务站  □入户/现场                                                                                                                                                                                                   □社区/企事业单位/村公示栏\n（电子屏）                                                                                                                                                                                          □精准推送    □其他"]
[{"$nulls":4},"●行政许可决定 ","办件公示（双牌县政务服务网）",null,"决定作出之日起7个工作日内公开"]
[22,"行政\n许可","在文物保护单位的保护范围内进行其他建设工程或者爆破、钻探、挖掘等作业审批","政务服务事项","●办事指南：主要包括事项名称、设定依据、申请条件、办理材料、办理地点、办理时间、联系电话、办理流程、办理期限、申请行政许可需要提交的全部材料目录及办理情况；\n","在文物保护单位的保护范围内进行其他建设工程或者爆破、钻探、挖掘等作业审批（办事指南）","●《中华人民共和国政府信息公开条例》（中华人民共和国国务院令第711号）\n●《中华人民共和国行政许可法》（中华人民共和国主席令第七号）\n●《中华人民共和国文物保护法》（根据2015年4月24日第十二届全国人民代表大会常务委员会第十四次会议《全国人民代表大会常务委员会关于修改〈中华人民共和国文物保护法〉的决定》第四次修正）","  信息形成或者变更之日起20个工作日内","双牌县文化旅游广电体育局","√",null,"√",null,"√","■政府网站    □政府公报                                                                                                                                                                                                                □两微一端    □发布会/听证会                                                                                                                                                                                              □广播电视    □纸质媒体                                                                                                                                                                                                   □公开查阅点  ■政务服务中心                                                                                                                                                                                                    □便民服务站  □入户/现场                                                                                                                                                                                                   □社区/企事业单位/村公示栏\n（电子屏）                                                                                                                                                                                          □精准推送    □其他",null,"□政府网站    □政府公报                                                                                                                                                                                                                □两微一端    □发布会/听证会                                                                                                                                                                                              □广播电视    □纸质媒体                                                                                                                                                                                                   □公开查阅点  □政务服务中心                                                                                                                                                                                                    □便民服务站  □入户/现场                                                                                                                                                                                                   □社区/企事业单位/村公示栏\n（电子屏）                                                                                                                                                                                          □精准推送    □其他"]
[{"$nulls":4},"●行政许可决定 ","办件公示（双牌县政务服务网）",null,"决定作出之日起7个工作日内公开"]
[23,"行政\n许可","文物保护单位建设控制地带内建设工程设计方案审核","政务服务事项","●办事指南：主要包括事项名称、设定依据、申请条件、办理材料、办理地点、办理时间、联系电话、办理流程、办理期限、申请行政许可需要提交的全部材料目录及办理情况；\n","文物保护单位建设控制地带内建设工程设计方案审核（办事指南）","●《中华人民共和国政府信息公开条例》（中华人民共和国国务院令第711号）\n●《中华人民共和国行政许可法》（中华人民共和国主席令第七号）\n●《中华人民共和国文物保护法》（根据2015年4月24日第十二届全国人民代表大会常务委员会第十四次会议《全国人民代表大会常务委员会关于修改〈中华人民共和国文物保护法〉的决定》第四次修正）","  信息形成或者变更之日起20个工作日内","双牌县文化旅游广电体育局","√",null,"√",null,"√","■政府网站    □政府公报                                                                                                                                                                                                                □两微一端    □发布会/听证会                                                                                                                                                                                              □广播电视    □纸质媒体                                                                                                                                                                                                   □公开查阅点  ■政务服务中心                                                                                                                                                                                                    □便民服务站  □入户/现场                                                                                                                                                                                                   □社区/企事业单位/村公示栏\n（电子屏）                                                                                                                                                                                          □精准推送    □其他",null,"□政府网站    □政府公报                                                                                                                                                                                                                □两微一端    □发布会/听证会                                                                                                                                                                                              □广播电视    □纸质媒体                                                                                                                                                                                                   □公开查阅点  □政务服务中心                                                                                                                                                                                                    □便民服务站  □入户/现场                                                                                                                                                                                                   □社区/企事业单位/村公示栏\n（电子屏）                                                                                                                                                                                          □精准推送    □其他"]
[{"$nulls":4},"●行政许可决定 ","办件公示（双牌县政务服务网）",null,"决定作出之日起7个工作日内公开"]
[24,"行政\n许可","县级文物保护单位建设控制地带内建设工程设计方案审批","政务服务事项","●办事指南：主要包括事项名称、设定依据、申请条件、办理材料、办理地点、办理时间、联系电话、办理流程、办理期限、申请行政许可需要提交的全部材料目录及办理情况；\n","县级文物保护单位建设控制地带内建设工程设计方案审批（办事指南）","●《中华人民共和国政府信息公开条例》（中华人民共和国国务院令第711号）\n●《中华人民共和国行政许可法》（中华人民共和国主席令第七号）\n●《中华人民共和国文物保护法》（根据2015年4月24日第十二届全国人民代表大会常务委员会第十四次会议《全国人民代表大会常务委员会关于修改〈中华人民共和国文物保护法〉的决定》第四次修正）","  信息形成或者变更之日起20个工作日内","双牌县文化旅游广电体育局","√",null,"√",null,"√","■政府网站    □政府公报                                                                                                                                                                                                                □两微一端    □发布会/听证会                                                                                                                                                                                              □广播电视    □纸质媒体                                                                                                                                                                                                   □公开查阅点  ■政务服务中心                                                                                                                                                                                                    □便民服务站  □入户/现场                                                                                                                                                                                                   □社区/企事业单位/村公示栏\n（电子屏）                                                                                                                                                                                          □精准推送    □其他",null,"□政府网站    □政府公报                                                                                                                                                                                                                □两微一端    □发布会/听证会                                                                                                                                                                                              □广播电视    □纸质媒体                                                                                                                                                                                                   □公开查阅点  □政务服务中心                                                                                                                                                                                                    □便民服务站  □入户/现场                                                                                                                                                                                                   □社区/企事业单位/村公示栏\n（电子屏）                                                                                                                                                                                          □精准推送    □其他"]
[{"$nulls":4},"●行政许可决定 ","办件公示（双牌县政务服务网）",null,"决定作出之日起7个工作日内公开"]
[25,"行政\n许可","文物保护单位原址保护措施审批","政务服务事项","●办事指南：主要包括事项名称、设定依据、申请条件、办理材料、办理地点、办理时间、联系电话、办理流程、办理期限、申请行政许可需要提交的全部材料目录及办理情况；\n","文物保护单位原址保护措施审批（办事指南）","●《中华人民共和国政府信息公开条例》（中华人民共和国国务院令第711号）\n●《中华人民共和国行政许可法》（中华人民共和国主席令第七号）\n●《中华人民共和国文物保护法》（根据2015年4月24日第十二届全国人民代表大会常务委员会第十四次会议《全国人民代表大会常务委员会关于修改〈中华人民共和国文物保护法〉的决定》第四次修正）","  信息形成或者变更之日起20个工作日内","双牌县文化旅游广电体育局","√",null,"√",null,"√","■政府网站    □政府公报                                                                                                                                                                                                                □两微一端    □发布会/听证会                                                                                                                                                                                              □广播电视    □纸质媒体                                                                                                                                                                                                   □公开查阅点  ■政务服务中心                                                                                                                                                                                                    □便民服务站  □入户/现场                                                                                                                                                                                                   □社区/企事业单位/村公示栏\n（电子屏）                                                                                                                                                                                          □精准推送    □其他",null,"□政府网站    □政府公报                                                                                                                                                                                                                □两微一端    □发布会/听证会                                                                                                                                                                                              □广播电视    □纸质媒体                                                                                                                                                                                                   □公开查阅点  □政务服务中心                                                                                                                                                                                                    □便民服务站  □入户/现场                                                                                                                                                                                                   □社区/企事业单位/村公示栏\n（电子屏）                                                                                                                                                                                          □精准推送    □其他"]
[{"$nulls":4},"●行政许可决定 ","办件公示（双牌县政务服务网）",null,"决定作出之日起7个工作日内公开"]
[26,"行政\n许可","县级文物保护单位原址保护措施审批","政务服务事项","●办事指南：主要包括事项名称、设定依据、申请条件、办理材料、办理地点、办理时间、联系电话、办理流程、办理期限、申请行政许可需要提交的全部材料目录及办理情况；\n","县级文物保护单位原址保护措施审批（办事指南）","●《中华人民共和国政府信息公开条例》（中华人民共和国国务院令第711号）\n●《中华人民共和国行政许可法》（中华人民共和国主席令第七号）\n●《中华人民共和国文物保护法》（根据2015年4月24日第十二届全国人民代表大会常务委员会第十四次会议《全国人民代表大会常务委员会关于修改〈中华人民共和国文物保护法〉的决定》第四次修正）","  信息形成或者变更之日起20个工作日内","双牌县文化旅游广电体育局","√",null,"√",null,"√","■政府网站    □政府公报                                                                                                                                                                                                                □两微一端    □发布会/听证会                                                                                                                                                                                              □广播电视    □纸质媒体                                                                                                                                                                                                   □公开查阅点  ■政务服务中心                                                                                                                                                                                                    □便民服务站  □入户/现场                                                                                                                                                                                                   □社区/企事业单位/村公示栏\n（电子屏）                                                                                                                                                                                          □精准推送    □其他",null,"□政府网站    □政府公报                                                                                                                                                                                                                □两微一端    □发布会/听证会                                                                                                                                                                                              □广播电视    □纸质媒体                                                                                                                                                                                                   □公开查阅点  □政务服务中心                                                                                                                                                                                                    □便民服务站  □入户/现场                                                                                                                                                                                                   □社区/企事业单位/村公示栏\n（电子屏）                                                                                                                                                                                          □精准推送    □其他"]
[{"$nulls":4},"●行政许可决定 ","办件公示（双牌县政务服务网）",null,"决定作出之日起7个工作日内公开"]
[27,"行政\n许可","建设工程文物保护和考古许可","政务服务事项","●办事指南：主要包括事项名称、设定依据、申请条件、办理材料、办理地点、办理时间、联系电话、办理流程、办理期限、申请行政许可需要提交的全部材料目录及办理情况；\n","建设工程文物保护和考古许可（办事指南）","●《中华人民共和国政府信息公开条例》（中华人民共和国国务院令第711号）\n●《中华人民共和国行政许可法》（中华人民共和国主席令第七号）\n●《中华人民共和国文物保护法》（根据2015年4月24日第十二届全国人民代表大会常务委员会第十四次会议《全国人民代表大会常务委员会关于修改〈中华人民共和国文物保护法〉的决定》第四次修正）","  信息形成或者变更之日起20个工作日内","双牌县文化旅游广电体育局","√",null,"√",null,"√","■政府网站    □政府公报                                                                                                                                                                                                                □两微一端    □发布会/听证会                                                                                                                                                                                              □广播电视    □纸质媒体                                                                                                                                                                                                   □公开查阅点  ■政务服务中心                                                                                                                                                                                                    □便民服务站  □入户/现场                                                                                                                                                                                                   □社区/企事业单位/村公示栏\n（电子屏）                                                                                                                                                                                          □精准推送    □其他",null,"□政府网站    □政府公报                                                                                                                                                                                                                □两微一端    □发布会/听证会                                                                                                                                                                                              □广播电视    □纸质媒体                                                                                                                                                                                                   □公开查阅点  □政务服务中心                                                                                                                                                                                                    □便民服务站  □入户/现场                                                                                                                                                                                                   □社区/企事业单位/村公示栏\n（电子屏）                                                                                                                                                                                          □精准推送    □其他"]
[{"$nulls":4},"●行政许可决定 ","办件公示（双牌县政务服务网）",null,"决定作出之日起7个工作日内公开"]
[28,"行政\n处罚","经营性互联网文化单位没有建立自身制度，没有明确专门设备，没有配备专业人员负责互联网文化产品内容和活动的自查与管理，未保障互联网文化产品内容的合法性的处罚","政务服务事项","●事项名称\n●设定依据\n●行政相对人权利\n●是否适用简易程序\n●结果送达方式\n●办理地点\n●办理机构\n●办理时间\n●联系电话\n●办理流程\n●自由裁量标准","经营性互联网文化单位没有建立自身制度，没有明确专门设备，没有配备专业人员负责互联网文化产品内容和活动的自查与管理，未保障互联网文化产品内容的合法性的处罚 ","●《中华人民共和国政府信息公开条例》（中华人民共和国国务院令第711号）\n●《国务院关于促进市场公平竞争维护市场正常秩序的若干意见》（国发〔2014〕20号）\n●《国务院办公厅关于全面推行行政执法公示制度执法全过程记录制度重大执法决定法制审核制度的指导意见》（国办发〔2018〕118号）\n","  信息形成或者变更之日起20个工作日内","双牌县文化旅游广电体育局","√",null,"√",null,"√","■政府网站    □政府公报                                                                                                                                                                                                                □两微一端    □发布会/听证会                                                                                                                                                                                              □广播电视    □纸质媒体                                                                                                                                                                                                   □公开查阅点  ■政务服务中心                                                                                                                                                                                                    □便民服务站  □入户/现场                                                                                                                                                                                                   □社区/企事业单位/村公示栏\n（电子屏）                                                                                                                                                                                          □精准推送    □其他",null,"□政府网站    □政府公报                                                                                                                                                                                                                □两微一端    □发布会/听证会                                                                                                                                                                                              □广播电视    □纸质媒体                                                                                                                                                                                                   □公开查阅点  □政务服务中心                                                                                                                                                                                                    □便民服务站  □入户/现场                                                                                                                                                                                                   □社区/企事业单位/村公示栏\n（电子屏）                                                                                                                                                                                          □精准推送    □其他"]
[{"$nulls":4},"●主体信息；\n●案由；\n●处罚依据；\n●处罚结果。","行政处罚决定书",null,"决定作出之日起7个工作日内公开"]
[29,"行政\n处罚","网络游戏经营单位未采取未成年人保护相关措施的处罚","政务服务事项","●事项名称\n●设定依据\n●行政相对人权利\n●是否适用简易程序\n●结果送达方式\n●办理地点\n●办理机构\n●办理时间\n●联系电话\n●办理流程\n●自由裁量标准","网络游戏经营单位未采取未成年人保护相关措施的处罚 ","●《中华人民共和国政府信息公开条例》（中华人民共和国国务院令第711号）\n●《国务院关于促进市场公平竞争维护市场正常秩序的若干意见》（国发〔2014〕20号）\n●《国务院办公厅关于全面推行行政执法公示制度执法全过程记录制度重大执法决定法制审核制度的指导意见》（国办发〔2018〕118号）\n","  信息形成或者变更之日起20个工作日内","双牌县文化旅游广电体育局","√",null,"√",null,"√","■政府网站    □政府公报                                                                                                                                                                                                                □两微一端    □发布会/听证会                                                                                                                                                                                              □广播电视    □纸质媒体                                                                                                                                                                                                   □公开查阅点  ■政务服务中心                                                                                                                                                                                                    □便民服务站  □入户/现场                                                                                                                                                                                                   □社区/企事业单位/村公示栏\n（电子屏）                                                                                                                                                                                          □精准推送    □其他",null,"□政府网站    □政府公报                                                                                                                                                                                                                □两微一端    □发布会/听证会                                                                                                                                                                                              □广播电视    □纸质媒体                                                                                                                                                                                                   □公开查阅点  □政务服务中心                                                                                                                                                                                                    □便民服务站  □入户/现场                                                                                                                                                                                                   □社区/企事业单位/村公示栏\n（电子屏）                                                                                                                                                                                          □精准推送    □其他"]
[{"$nulls":4},"●主体信息；\n●案由；\n●处罚依据；\n●处罚结果。","行政处罚决定书",null,"决定作出之日起7个工作日内公开"]
[30,"行政\n处罚","网络游戏经营单位发现网络游戏用户发布违法信息，未依照法律规定或者服务协议立即停止为其提供服务，并保存有关记录并向有关部门报告的处罚","政务服务事项","●事项名称\n●设定依据\n●行政相对人权利\n●是否适用简易程序\n●结果送达方式\n●办理地点\n●办理机构\n●办理时间\n●联系电话\n●办理流程\n●自由裁量标准","网络游戏经营单位发现网络游戏用户发布违法信息，未依照法律规定或者服务协议立即停止为其提供服务，并保存有关记录并向有关部门报告的处罚 ","●《中华人民共和国政府信息公开条例》（中华人民共和国国务院令第711号）\n●《国务院关于促进市场公平竞争维护市场正常秩序的若干意见》（国发〔2014〕20号）\n●《国务院办公厅关于全面推行行政执法公示制度执法全过程记录制度重大执法决定法制审核制度的指导意见》（国办发〔2018〕118号）\n","  信息形成或者变更之日起20个工作日内","双牌县文化旅游广电体育局","√",null,"√",null,"√","■政府网站    □政府公报                                                                                                                                                                                                                □两微一端    □发布会/听证会                                                                                                                                                                                              □广播电视    □纸质媒体                                                                                                                                                                                                   □公开查阅点  ■政务服务中心                                                                                                                                                                                                    □便民服务站  □入户/现场                                                                                                                                                                                                   □社区/企事业单位/村公示栏\n（电子屏）                                                                                                                                                                                          □精准推送    □其他",null,"□政府网站    □政府公报                                                                                                                                                                                                                □两微一端    □发布会/听证会                                                                                                                                                                                              □广播电视    □纸质媒体                                                                                                                                                                                                   □公开查阅点  □政务服务中心                                                                                                                                                                                                    □便民服务站  □入户/现场                                                                                                                                                                                                   □社区/企事业单位/村公示栏\n（电子屏）                                                                                                                                                                                          □精准推送    □其他"]
[{"$nulls":4},"●主体信息；\n●案由；\n●处罚依据；\n●处罚结果。","行政处罚决定书",null,"决定作出之日起7个工作日内公开"]
[31,"行政\n处罚","对单位或者个人不得销售或者利用其他商业形式传播未经文化行政部门批准进口的艺术品等情形的处罚","政务服务事项","●事项名称\n●设定依据\n●行政相对人权利\n●是否适用简易程序\n●结果送达方式\n●办理地点\n●办理机构\n●办理时间\n●联系电话\n●办理流程\n●自由裁量标准","对单位或者个人不得销售或者利用其他商业形式传播未经文化行政部门批准进口的艺 术品等情形的处罚","●《中华人民共和国政府信息公开条例》（中华人民共和国国务院令第711号）\n●《国务院关于促进市场公平竞争维护市场正常秩序的若干意见》（国发〔2014〕20号）\n●《国务院办公厅关于全面推行行政执法公示制度执法全过程记录制度重大执法决定法制审核制度的指导意见》（国办发〔2018〕118号）\n","  信息形成或者变更之日起20个工作日内","双牌县文化旅游广电体育局","√",null,"√",null,"√","■政府网站    □政府公报                                                                                                                                                                                                                □两微一端    □发布会/听证会                                                                                                                                                                                              □广播电视    □纸质媒体                                                                                                                                                                                                   □公开查阅点  ■政务服务中心                                                                                                                                                                                                    □便民服务站  □入户/现场                                                                                                                                                                                                   □社区/企事业单位/村公示栏\n（电子屏）                                                                                                                                                                                          □精准推送    □其他",null,"□政府网站    □政府公报                                                                                                                                                                                                                □两微一端    □发布会/听证会                                                                                                                                                                                              □广播电视    □纸质媒体                                                                                                                                                                                                   □公开查阅点  □政务服务中心                                                                                                                                                                                                    □便民服务站  □入户/现场                                                                                                                                                                                                   □社区/企事业单位/村公示栏\n（电子屏）                                                                                                                                                                                          □精准推送    □其他"]
[{"$nulls":4},"●主体信息；\n●案由；\n●处罚依据；\n●处罚结果。","行政处罚决定书",null,"决定作出之日起7个工作日内公开"]
[32,"行政\n处罚","互联网文化单位提供含有《互联网文化管理暂行规定》禁止内容的互联网文化产品，或者提供未经文化部批准进口的互联网文化产品的处罚","政务服务事项","●事项名称\n●设定依据\n●行政相对人权利\n●是否适用简易程序\n●结果送达方式\n●办理地点\n●办理机构\n●办理时间\n●联系电话\n●办理流程\n●自由裁量标准","互联网文化单位提供含有《互联网文化管理暂行规定》禁止内容的互联网文化产品，或者提供未经文化部批准进口的互联网文化产品的处罚 ","●《中华人民共和国政府信息公开条例》（中华人民共和国国务院令第711号）\n●《国务院关于促进市场公平竞争维护市场正常秩序的若干意见》（国发〔2014〕20号）\n●《国务院办公厅关于全面推行行政执法公示制度执法全过程记录制度重大执法决定法制审核制度的指导意见》（国办发〔2018〕118号）\n","  信息形成或者变更之日起20个工作日内","双牌县文化旅游广电体育局","√",null,"√",null,"√","■政府网站    □政府公报                                                                                                                                                                                                                □两微一端    □发布会/听证会                                                                                                                                                                                              □广播电视    □纸质媒体                                                                                                                                                                                                   □公开查阅点  ■政务服务中心                                                                                                                                                                                                    □便民服务站  □入户/现场                                                                                                                                                                                                   □社区/企事业单位/村公示栏\n（电子屏）                                                                                                                                                                                          □精准推送    □其他",null,"□政府网站    □政府公报                                                                                                                                                                                                                □两微一端    □发布会/听证会                                                                                                                                                                                              □广播电视    □纸质媒体                                                                                                                                                                                                   □公开查阅点  □政务服务中心                                                                                                                                                                                                    □便民服务站  □入户/现场                                                                                                                                                                                                   □社区/企事业单位/村公示栏\n（电子屏）                                                                                                                                                                                          □精准推送    □其他"]
[{"$nulls":4},"●主体信息；\n●案由；\n●处罚依据；\n●处罚结果。","行政处罚决定书",null,"决定作出之日起7个工作日内公开"]
[33,"行政\n处罚","网络游戏运营企业终止运营网络游戏，或者网络游戏运营权发生转移未提前公告并以法定货币退还用户或者用户接受的其他方式进行退换的处罚","政务服务事项","●事项名称\n●设定依据\n●行政相对人权利\n●是否适用简易程序\n●结果送达方式\n●办理地点\n●办理机构\n●办理时间\n●联系电话\n●办理流程\n●自由裁量标准","网络游戏运营企业终止运营网络游戏，或者网络游戏运营权发生转移未提前公告并以法定货币退还用户或者用户接受的其他方式进行退换的处罚 ","●《中华人民共和国政府信息公开条例》（中华人民共和国国务院令第711号）\n●《国务院关于促进市场公平竞争维护市场正常秩序的若干意见》（国发〔2014〕20号）\n●《国务院办公厅关于全面推行行政执法公示制度执法全过程记录制度重大执法决定法制审核制度的指导意见》（国办发〔2018〕118号）\n","  信息形成或者变更之日起20个工作日内","双牌县文化旅游广电体育局","√",null,"√",null,"√","■政府网站    □政府公报                                                                                                                                                                                                                □两微一端    □发布会/听证会                                                                                                                                                                                              □广播电视    □纸质媒体                                                                                                                                                                                                   □公开查阅点  ■政务服务中心                                                                                                                                                                                                    □便民服务站  □入户/现场                                                                                                                                                                                                   □社区/企事业单位/村公示栏\n（电子屏）                                                                                                                                                                                          □精准推送    □其他",null,"□政府网站    □政府公报                                                                                                                                                                                                                □两微一端    □发布会/听证会                                                                                                                                                                                              □广播电视    □纸质媒体                                                                                                                                                                                                   □公开查阅点  □政务服务中心                                                                                                                                                                                                    □便民服务站  □入户/现场                                                                                                                                                                                                   □社区/企事业单位/村公示栏\n（电子屏）                                                                                                                                                                                          □精准推送    □其他"]
[{"$nulls":4},"●主体信息；\n●案由；\n●处罚依据；\n●处罚结果。","行政处罚决定书",null,"决定作出之日起7个工作日内公开"]
[34,"行政\n处罚"," 对经营性互联网文化单位经营国产互联网文化产品逾期未报文化行政部门备案的处罚","政务服务事项","●事项名称\n●设定依据\n●行政相对人权利\n●是否适用简易程序\n●结果送达方式\n●办理地点\n●办理机构\n●办理时间\n●联系电话\n●办理流程\n●自由裁量标准"," 对经营性互联网文化单位经营国产互联网文化产品逾期未报文化行政部门备案的处罚 ","●《中华人民共和国政府信息公开条例》（中华人民共和国国务院令第711号）\n●《国务院关于促进市场公平竞争维护市场正常秩序的若干意见》（国发〔2014〕20号）\n●《国务院办公厅关于全面推行行政执法公示制度执法全过程记录制度重大执法决定法制审核制度的指导意见》（国办发〔2018〕118号）\n","  信息形成或者变更之日起20个工作日内","双牌县文化旅游广电体育局","√",null,"√",null,"√","■政府网站    □政府公报                                                                                                                                                                                                                □两微一端    □发布会/听证会                                                                                                                                                                                              □广播电视    □纸质媒体                                                                                                                                                                                                   □公开查阅点  ■政务服务中心                                                                                                                                                                                                    □便民服务站  □入户/现场                                                                                                                                                                                                   □社区/企事业单位/村公示栏\n（电子屏）                                                                                                                                                                                          □精准推送    □其他",null,"□政府网站    □政府公报                                                                                                                                                                                                                □两微一端    □发布会/听证会                                                                                                                                                                                              □广播电视    □纸质媒体                                                                                                                                                                                                   □公开查阅点  □政务服务中心                                                                                                                                                                                                    □便民服务站  □入户/现场                                                                                                                                                                                                   □社区/企事业单位/村公示栏\n（电子屏）                                                                                                                                                                                          □精准推送    □其他"]
[{"$nulls":4},"●主体信息；\n●案由；\n●处罚依据；\n●处罚结果。","行政处罚决定书",null,"决定作出之日起7个工作日内公开"]
[35,"行政\n处罚","对网络游戏经营单位授权无网络游戏运营资质的单位运营网络游戏的处罚","政务服务事项","●事项名称\n●设定依据\n●行政相对人权利\n●是否适用简易程序\n●结果送达方式\n●办理地点\n●办理机构\n●办理时间\n●联系电话\n●办理流程\n●自由裁量标准","对网络游戏经营单位授权无网络游戏运营资质的单位运营网络游戏的处罚 ","●《中华人民共和国政府信息公开条例》（中华人民共和国国务院令第711号）\n●《国务院关于促进市场公平竞争维护市场正常秩序的若干意见》（国发〔2014〕20号）\n●《国务院办公厅关于全面推行行政执法公示制度执法全过程记录制度重大执法决定法制审核制度的指导意见》（国办发〔2018〕118号）\n","  信息形成或者变更之日起20个工作日内","双牌县文化旅游广电体育局","√",null,"√",null,"√","■政府网站    □政府公报                                                                                                                                                                                                                □两微一端    □发布会/听证会                                                                                                                                                                                              □广播电视    □纸质媒体                                                                                                                                                                                                   □公开查阅点  ■政务服务中心                                                                                                                                                                                                    □便民服务站  □入户/现场                                                                                                                                                                                                   □社区/企事业单位/村公示栏\n（电子屏）                                                                                                                                                                                          □精准推送    □其他",null,"□政府网站    □政府公报                                                                                                                                                                                                                □两微一端    □发布会/听证会                                                                                                                                                                                              □广播电视    □纸质媒体                                                                                                                                                                                                   □公开查阅点  □政务服务中心                                                                                                                                                                                                    □便民服务站  □入户/现场                                                                                                                                                                                                   □社区/企事业单位/村公示栏\n（电子屏）                                                                                                                                                                                          □精准推送    □其他"]
[{"$nulls":4},"●主体信息；\n●案由；\n●处罚依据；\n●处罚结果。","行政处罚决定书",null,"决定作出之日起7个工作日内公开"]
[36,"行政\n处罚","网络游戏经营单位未标示《网络文化经营许可证》等信息或实际网站域名与申报信息不符等的处罚","政务服务事项","●事项名称\n●设定依据\n●行政相对人权利\n●是否适用简易程序\n●结果送达方式\n●办理地点\n●办理机构\n●办理时间\n●联系电话\n●办理流程\n●自由裁量标准","网络游戏经营单位未标示《网络文化经营许可证》等信息或实际网站域名与申报信息不符等的处罚 ","●《中华人民共和国政府信息公开条例》（中华人民共和国国务院令第711号）\n●《国务院关于促进市场公平竞争维护市场正常秩序的若干意见》（国发〔2014〕20号）\n●《国务院办公厅关于全面推行行政执法公示制度执法全过程记录制度重大执法决定法制审核制度的指导意见》（国办发〔2018〕118号）\n","  信息形成或者变更之日起20个工作日内",{"$f":"$I$10","v":"双牌县文化旅游广电体育局"},"√",null,"√",null,"√","■政府网站    □政府公报                                                                                                                                                                                                                □两微一端    □发布会/听证会                                                                                                                                                                                              □广播电视    □纸质媒体                                                                                                                                                                                                   □公开查阅点  ■政务服务中心                                                                                                                                                                                                    □便民服务站  □入户/现场                                                                                                                                                                                                   □社区/企事业单位/村公示栏\n（电子屏）                                                                                                                                                                                          □精准推送    □其他",null,"□政府网站    □政府公报                                                                                                                                                                                                                □两微一端    □发布会/听证会                                                                                                                                                                                              □广播电视    □纸质媒体                                                                                                                                                                                                   □公开查阅点  □政务服务中心                                                                                                                                                                                                    □便民服务站  □入户/现场                                                                                                                                                                                                   □社区/企事业单位/村公示栏\n（电子屏）                                                                                                                                                                                          □精准推送    □其他"]
[{"$nulls":4},"●主体信息；\n●案由；\n●处罚依据；\n●处罚结果。","行政处罚决定书",null,"决定作出之日起7个工作日内公开"]
[37,"行政\n处罚","对网络游戏运营企业未要求网络游戏用户使用有效身份证件进行实名注册，并保存用户注册信息的处罚","政务服务事项","●事项名称\n●设定依据\n●行政相对人权利\n●是否适用简易程序\n●结果送达方式\n●办理地点\n●办理机构\n●办理时间\n●联系电话\n●办理流程\n●自由裁量标准","对网络游戏运营企业未要求网络游戏用户使用有效身份证件进行实名注册，并保存用户注册信息的处罚 ","●《中华人民共和国政府信息公开条例》（中华人民共和国国务院令第711号）\n●《国务院关于促进市场公平竞争维护市场正常秩序的若干意见》（国发〔2014〕20号）\n●《国务院办公厅关于全面推行行政执法公示制度执法全过程记录制度重大执法决定法制审核制度的指导意见》（国办发〔2018〕118号）\n","  信息形成或者变更之日起20个工作日内","双牌县文化旅游广电体育局","√",null,"√",null,"√","■政府网站    □政府公报                                                                                                                                                                                                                □两微一端    □发布会/听证会                                                                                                                                                                                              □广播电视    □纸质媒体                                                                                                                                                                                                   □公开查阅点  ■政务服务中心                                                                                                                                                                                                    □便民服务站  □入户/现场                                                                                                                                                                                                   □社区/企事业单位/村公示栏\n（电子屏）                                                                                                                                                                                          □精准推送    □其他",null,"□政府网站    □政府公报                                                                                                                                                                                                                □两微一端    □发布会/听证会                                                                                                                                                                                              □广播电视    □纸质媒体                                                                                                                                                                                                   □公开查阅点  □政务服务中心                                                                                                                                                                                                    □便民服务站  □入户/现场                                                                                                                                                                                                   □社区/企事业单位/村公示栏\n（电子屏）                                                                                                                                                                                          □精准推送    □其他"]
[{"$nulls":4},"●主体信息；\n●案由；\n●处罚依据；\n●处罚结果。","行政处罚决定书",null,"决定作出之日起7个工作日内公开"]
[38,"行政\n处罚","艺术品经营单位对所经营的艺术品不标明作者、年代、尺寸、材料、保存状况和销售价格等信息等情形的处罚","政务服务事项","●事项名称\n●设定依据\n●行政相对人权利\n●是否适用简易程序\n●结果送达方式\n●办理地点\n●办理机构\n●办理时间\n●联系电话\n●办理流程\n●自由裁量标准","艺术品经营单位对所经营的艺术品不标明作者、年代、尺寸、材料、保存状况和销售价格等信息等情形的处罚 ","●《中华人民共和国政府信息公开条例》（中华人民共和国国务院令第711号）\n●《国务院关于促进市场公平竞争维护市场正常秩序的若干意见》（国发〔2014〕20号）\n●《国务院办公厅关于全面推行行政执法公示制度执法全过程记录制度重大执法决定法制审核制度的指导意见》（国办发〔2018〕118号）\n","  信息形成或者变更之日起20个工作日内","双牌县文化旅游广电体育局","√",null,"√",null,"√","■政府网站    □政府公报                                                                                                                                                                                                                □两微一端    □发布会/听证会                                                                                                                                                                                              □广播电视    □纸质媒体                                                                                                                                                                                                   □公开查阅点  ■政务服务中心                                                                                                                                                                                                    □便民服务站  □入户/现场                                                                                                                                                                                                   □社区/企事业单位/村公示栏\n（电子屏）                                                                                                                                                                                          □精准推送    □其他",null,"□政府网站    □政府公报                                                                                                                                                                                                                □两微一端    □发布会/听证会                                                                                                                                                                                              □广播电视    □纸质媒体                                                                                                                                                                                                   □公开查阅点  □政务服务中心                                                                                                                                                                                                    □便民服务站  □入户/现场                                                                                                                                                                                                   □社区/企事业单位/村公示栏\n（电子屏）                                                                                                                                                                                          □精准推送    □其他"]
[{"$nulls":4},"●主体信息；\n●案由；\n●处罚依据；\n●处罚结果。","行政处罚决定书",null,"决定作出之日起7个工作日内公开"]
[39,"行政\n处罚","经营进口互联网文化产品未在其显著位置标明文化部批准文号、经营国产互联网文化产品未在其显著位置标明文化部备案编号的处罚","政务服务事项","●事项名称\n●设定依据\n●行政相对人权利\n●是否适用简易程序\n●结果送达方式\n●办理地点\n●办理机构\n●办理时间\n●联系电话\n●办理流程\n●自由裁量标准","经营进口互联网文化产品未在其显著位置标明文化部批准文号、经营国产互联网文化产品未在其显著位置标明文化部备案编号的处罚 ","●《中华人民共和国政府信息公开条例》（中华人民共和国国务院令第711号）\n●《国务院关于促进市场公平竞争维护市场正常秩序的若干意见》（国发〔2014〕20号）\n●《国务院办公厅关于全面推行行政执法公示制度执法全过程记录制度重大执法决定法制审核制度的指导意见》（国办发〔2018〕118号）\n","  信息形成或者变更之日起20个工作日内","双牌县文化旅游广电体育局","√",null,"√",null,"√","■政府网站    □政府公报                                                                                                                                                                                                                □两微一端    □发布会/听证会                                                                                                                                                                                              □广播电视    □纸质媒体                                                                                                                                                                                                   □公开查阅点  ■政务服务中心                                                                                                                                                                                                    □便民服务站  □入户/现场                                                                                                                                                                                                   □社区/企事业单位/村公示栏\n（电子屏）                                                                                                                                                                                          □精准推送    □其他",null,"□政府网站    □政府公报                                                                                                                                                                                                                □两微一端    □发布会/听证会                                                                                                                                                                                              □广播电视    □纸质媒体                                                                                                                                                                                                   □公开查阅点  □政务服务中心                                                                                                                                                                                                    □便民服务站  □入户/现场                                                                                                                                                                                                   □社区/企事业单位/村公示栏\n（电子屏）                                                                                                                                                                                          □精准推送    □其他"]
[{"$nulls":4},"●主体信息；\n●案由；\n●处罚依据；\n●处罚结果。","行政处罚决定书",null,"决定作出之日起7个工作日内公开"]
[40,"行政\n处罚","未经批准，擅自从事网络游戏运营、网络游戏虚拟货币发行或者网络游戏虚拟货币交易服务等网络游戏经营活动的处罚","政务服务事项","●事项名称\n●设定依据\n●行政相对人权利\n●是否适用简易程序\n●结果送达方式\n●办理地点\n●办理机构\n●办理时间\n●联系电话\n●办理流程\n●自由裁量标准","未经批准，擅自从事网络游戏运营、网络游戏虚拟货币发行或者网络游戏虚拟货币交易服务等网络游戏经营活动的处罚 ","●《中华人民共和国政府信息公开条例》（中华人民共和国国务院令第711号）\n●《国务院关于促进市场公平竞争维护市场正常秩序的若干意见》（国发〔2014〕20号）\n●《国务院办公厅关于全面推行行政执法公示制度执法全过程记录制度重大执法决定法制审核制度的指导意见》（国办发〔2018〕118号）\n","  信息形成或者变更之日起20个工作日内","双牌县文化旅游广电体育局","√",null,"√",null,"√","■政府网站    □政府公报                                                                                                                                                                                                                □两微一端    □发布会/听证会                                                                                                                                                                                              □广播电视    □纸质媒体                                                                                                                                                                                                   □公开查阅点  ■政务服务中心                                                                                                                                                                                                    □便民服务站  □入户/现场                                                                                                                                                                                                   □社区/企事业单位/村公示栏\n（电子屏）                                                                                                                                                                                          □精准推送    □其他",null,"□政府网站    □政府公报                                                                                                                                                                                                                □两微一端    □发布会/听证会                                                                                                                                                                                              □广播电视    □纸质媒体                                                                                                                                                                                                   □公开查阅点  □政务服务中心                                                                                                                                                                                                    □便民服务站  □入户/现场                                                                                                                                                                                                   □社区/企事业单位/村公示栏\n（电子屏）                                                                                                                                                                                          □精准推送    □其他"]
[{"$nulls":4},"●主体信息；\n●案由；\n●处罚依据；\n●处罚结果。","行政处罚决定书",null,"决定作出之日起7个工作日内公开"]
[41,"行政\n处罚","互联网文化单位未按规定办理变更或备案手续的处罚","政务服务事项","●事项名称\n●设定依据\n●行政相对人权利\n●是否适用简易程序\n●结果送达方式\n●办理地点\n●办理机构\n●办理时间\n●联系电话\n●办理流程\n●自由裁量标准","互联网文化单位未按规定办理变更或备案手续的处罚 ","●《中华人民共和国政府信息公开条例》（中华人民共和国国务院令第711号）\n●《国务院关于促进市场公平竞争维护市场正常秩序的若干意见》（国发〔2014〕20号）\n●《国务院办公厅关于全面推行行政执法公示制度执法全过程记录制度重大执法决定法制审核制度的指导意见》（国办发〔2018〕118号）\n","  信息形成或者变更之日起20个工作日内","双牌县文化旅游广电体育局","√",null,"√",null,"√","■政府网站    □政府公报                                                                                                                                                                                                                □两微一端    □发布会/听证会                                                                                                                                                                                              □广播电视    □纸质媒体                                                                                                                                                                                                   □公开查阅点  ■政务服务中心                                                                                                                                                                                                    □便民服务站  □入户/现场                                                                                                                                                                                                   □社区/企事业单位/村公示栏\n（电子屏）                                                                                                                                                                                          □精准推送    □其他",null,"□政府网站    □政府公报                                                                                                                                                                                                                □两微一端    □发布会/听证会                                                                                                                                                                                              □广播电视    □纸质媒体                                                                                                                                                                                                   □公开查阅点  □政务服务中心                                                                                                                                                                                                    □便民服务站  □入户/现场                                                                                                                                                                                                   □社区/企事业单位/村公示栏\n（电子屏）                                                                                                                                                                                          □精准推送    □其他"]
[{"$nulls":4},"●主体信息；\n●案由；\n●处罚依据；\n●处罚结果。","行政处罚决定书",null,"决定作出之日起7个工作日内公开"]
[42,"行政\n处罚","发行网络游戏虚拟货币违反规定的处罚","政务服务事项","●事项名称\n●设定依据\n●行政相对人权利\n●是否适用简易程序\n●结果送达方式\n●办理地点\n●办理机构\n●办理时间\n●联系电话\n●办理流程\n●自由裁量标准","发行网络游戏虚拟货币违反规定的处罚 ","●《中华人民共和国政府信息公开条例》（中华人民共和国国务院令第711号）\n●《国务院关于促进市场公平竞争维护市场正常秩序的若干意见》（国发〔2014〕20号）\n●《国务院办公厅关于全面推行行政执法公示制度执法全过程记录制度重大执法决定法制审核制度的指导意见》（国办发〔2018〕118号）\n","  信息形成或者变更之日起20个工作日内","双牌县文化旅游广电体育局","√",null,"√",null,"√","■政府网站    □政府公报                                                                                                                                                                                                                □两微一端    □发布会/听证会                                                                                                                                                                                              □广播电视    □纸质媒体                                                                                                                                                                                                   □公开查阅点  ■政务服务中心                                                                                                                                                                                                    □便民服务站  □入户/现场                                                                                                                                                                                                   □社区/企事业单位/村公示栏\n（电子屏）                                                                                                                                                                                          □精准推送    □其他",null,"□政府网站    □政府公报                                                                                                                                                                                                                □两微一端    □发布会/听证会                                                                                                                                                                                              □广播电视    □纸质媒体                                                                                                                                                                                                   □公开查阅点  □政务服务中心                                                                                                                                                                                                    □便民服务站  □入户/现场                                                                                                                                                                                                   □社区/企事业单位/村公示栏\n（电子屏）                                                                                                                                                                                          □精准推送    □其他"]
[{"$nulls":4},"●主体信息；\n●案由；\n●处罚依据；\n●处罚结果。","行政处罚决定书",null,"决定作出之日起7个工作日内公开"]
[43,"行政\n处罚","对设立从事艺术品经营活动的经营单位申领营业执照并备案的处罚","政务服务事项","●事项名称\n●设定依据\n●行政相对人权利\n●是否适用简易程序\n●结果送达方式\n●办理地点\n●办理机构\n●办理时间\n●联系电话\n●办理流程\n●自由裁量标准","对设立从事艺术品经营活动的经营单位申领营业执照并备案的处罚 ","●《中华人民共和国政府信息公开条例》（中华人民共和国国务院令第711号）\n●《国务院关于促进市场公平竞争维护市场正常秩序的若干意见》（国发〔2014〕20号）\n●《国务院办公厅关于全面推行行政执法公示制度执法全过程记录制度重大执法决定法制审核制度的指导意见》（国办发〔2018〕118号）\n","  信息形成或者变更之日起20个工作日内","双牌县文化旅游广电体育局","√",null,"√",null,"√","■政府网站    □政府公报                                                                                                                                                                                                                □两微一端    □发布会/听证会                                                                                                                                                                                              □广播电视    □纸质媒体                                                                                                                                                                                                   □公开查阅点  ■政务服务中心                                                                                                                                                                                                    □便民服务站  □入户/现场                                                                                                                                                                                                   □社区/企事业单位/村公示栏\n（电子屏）                                                                                                                                                                                          □精准推送    □其他",null,"□政府网站    □政府公报                                                                                                                                                                                                                □两微一端    □发布会/听证会                                                                                                                                                                                              □广播电视    □纸质媒体                                                                                                                                                                                                   □公开查阅点  □政务服务中心                                                                                                                                                                                                    □便民服务站  □入户/现场                                                                                                                                                                                                   □社区/企事业单位/村公示栏\n（电子屏）                                                                                                                                                                                          □精准推送    □其他"]
[{"$nulls":4},"●主体信息；\n●案由；\n●处罚依据；\n●处罚结果。","行政处罚决定书",null,"决定作出之日起7个工作日内公开"]
[44,"行政\n处罚","网络游戏虚拟货币交易服务企业违反规定的处罚","政务服务事项","●事项名称\n●设定依据\n●行政相对人权利\n●是否适用简易程序\n●结果送达方式\n●办理地点\n●办理机构\n●办理时间\n●联系电话\n●办理流程\n●自由裁量标准","网络游戏虚拟货币交易服务企业违反规定的处罚 ","●《中华人民共和国政府信息公开条例》（中华人民共和国国务院令第711号）\n●《国务院关于促进市场公平竞争维护市场正常秩序的若干意见》（国发〔2014〕20号）\n●《国务院办公厅关于全面推行行政执法公示制度执法全过程记录制度重大执法决定法制审核制度的指导意见》（国办发〔2018〕118号）\n","  信息形成或者变更之日起20个工作日内","双牌县文化旅游广电体育局","√",null,"√",null,"√","■政府网站    □政府公报                                                                                                                                                                                                                □两微一端    □发布会/听证会                                                                                                                                                                                              □广播电视    □纸质媒体                                                                                                                                                                                                   □公开查阅点  ■政务服务中心                                                                                                                                                                                                    □便民服务站  □入户/现场                                                                                                                                                                                                   □社区/企事业单位/村公示栏\n（电子屏）                                                                                                                                                                                          □精准推送    □其他",null,"□政府网站    □政府公报                                                                                                                                                                                                                □两微一端    □发布会/听证会                                                                                                                                                                                              □广播电视    □纸质媒体                                                                                                                                                                                                   □公开查阅点  □政务服务中心                                                                                                                                                                                                    □便民服务站  □入户/现场                                                                                                                                                                                                   □社区/企事业单位/村公示栏\n（电子屏）                                                                                                                                                                                          □精准推送    □其他"]
[{"$nulls":4},"●主体信息；\n●案由；\n●处罚依据；\n●处罚结果。","行政处罚决定书",null,"决定作出之日起7个工作日内公开"]
[45,"行政\n处罚","对经营性互联网文化单位发现所提供的互联网文化产品含有禁止的内容未立即停止提供并向有关文化行政部门报告等的处罚","政务服务事项","●事项名称\n●设定依据\n●行政相对人权利\n●是否适用简易程序\n●结果送达方式\n●办理地点\n●办理机构\n●办理时间\n●联系电话\n●办理流程\n●自由裁量标准","对经营性互联网文化单位发现所提供的互联网文化产品含有禁止的内容未立即停止提供并向有关文化行政部门报告等的处罚 ","●《中华人民共和国政府信息公开条例》（中华人民共和国国务院令第711号）\n●《国务院关于促进市场公平竞争维护市场正常秩序的若干意见》（国发〔2014〕20号）\n●《国务院办公厅关于全面推行行政执法公示制度执法全过程记录制度重大执法决定法制审核制度的指导意见》（国办发〔2018〕118号）\n","  信息形成或者变更之日起20个工作日内","双牌县文化旅游广电体育局","√",null,"√",null,"√","■政府网站    □政府公报                                                                                                                                                                                                                □两微一端    □发布会/听证会                                                                                                                                                                                              □广播电视    □纸质媒体                                                                                                                                                                                                   □公开查阅点  ■政务服务中心                                                                                                                                                                                                    □便民服务站  □入户/现场                                                                                                                                                                                                   □社区/企事业单位/村公示栏\n（电子屏）                                                                                                                                                                                          □精准推送    □其他",null,"□政府网站    □政府公报                                                                                                                                                                                                                □两微一端    □发布会/听证会                                                                                                                                                                                              □广播电视    □纸质媒体                                                                                                                                                                                                   □公开查阅点  □政务服务中心                                                                                                                                                                                                    □便民服务站  □入户/现场                                                                                                                                                                                                   □社区/企事业单位/村公示栏\n（电子屏）                                                                                                                                                                                          □精准推送    □其他"]
[{"$nulls":4},"●主体信息；\n●案由；\n●处罚依据；\n●处罚结果。","行政处罚决定书",null,"决定作出之日起7个工作日内公开"]
[46,"行政\n处罚","对演出场所经营单位、个体演员、个体演出经纪人未按规定办理备案手续或演出场所经营单位变更有关事项未向原备案机关重新备案的处罚","政务服务事项","●事项名称\n●设定依据\n●行政相对人权利\n●是否适用简易程序\n●结果送达方式\n●办理地点\n●办理机构\n●办理时间\n●联系电话\n●办理流程\n●自由裁量标准","对演出场所经营单位、个体演员、个体演出经纪人未按规定办理备案手续或演出场所经营单位变更有关事项未向原备案机关重新备案的处罚 ","●《中华人民共和国政府信息公开条例》（中华人民共和国国务院令第711号）\n●《国务院关于促进市场公平竞争维护市场正常秩序的若干意见》（国发〔2014〕20号）\n●《国务院办公厅关于全面推行行政执法公示制度执法全过程记录制度重大执法决定法制审核制度的指导意见》（国办发〔2018〕118号）\n","  信息形成或者变更之日起20个工作日内","双牌县文化旅游广电体育局","√",null,"√",null,"√","■政府网站    □政府公报                                                                                                                                                                                                                □两微一端    □发布会/听证会                                                                                                                                                                                              □广播电视    □纸质媒体                                                                                                                                                                                                   □公开查阅点  ■政务服务中心                                                                                                                                                                                                    □便民服务站  □入户/现场                                                                                                                                                                                                   □社区/企事业单位/村公示栏\n（电子屏）                                                                                                                                                                                          □精准推送    □其他",null,"□政府网站    □政府公报                                                                                                                                                                                                                □两微一端    □发布会/听证会                                                                                                                                                                                              □广播电视    □纸质媒体                                                                                                                                                                                                   □公开查阅点  □政务服务中心                                                                                                                                                                                                    □便民服务站  □入户/现场                                                                                                                                                                                                   □社区/企事业单位/村公示栏\n（电子屏）                                                                                                                                                                                          □精准推送    □其他"]
[{"$nulls":4},"●主体信息；\n●案由；\n●处罚依据；\n●处罚结果。","行政处罚决定书",null,"决定作出之日起7个工作日内公开"]
[47,"行政\n处罚","对网络游戏虚拟货币交易服务企业向未成年人、未经审查或者备案的网络游戏提供交易服务等的处罚","政务服务事项","●事项名称\n●设定依据\n●行政相对人权利\n●是否适用简易程序\n●结果送达方式\n●办理地点\n●办理机构\n●办理时间\n●联系电话\n●办理流程\n●自由裁量标准","对网络游戏虚拟货币交易服务企业向未成年人、未经审查或者备案的网络游戏提供交易服务等的处罚 ","●《中华人民共和国政府信息公开条例》（中华人民共和国国务院令第711号）\n●《国务院关于促进市场公平竞争维护市场正常秩序的若干意见》（国发〔2014〕20号）\n●《国务院办公厅关于全面推行行政执法公示制度执法全过程记录制度重大执法决定法制审核制度的指导意见》（国办发〔2018〕118号）\n","  信息形成或者变更之日起20个工作日内","双牌县文化旅游广电体育局","√",null,"√",null,"√","■政府网站    □政府公报                                                                                                                                                                                                                □两微一端    □发布会/听证会                                                                                                                                                                                              □广播电视    □纸质媒体                                                                                                                                                                                                   □公开查阅点  ■政务服务中心                                                                                                                                                                                                    □便民服务站  □入户/现场                                                                                                                                                                                                   □社区/企事业单位/村公示栏\n（电子屏）                                                                                                                                                                                          □精准推送    □其他",null,"□政府网站    □政府公报                                                                                                                                                                                                                □两微一端    □发布会/听证会                                                                                                                                                                                              □广播电视    □纸质媒体                                                                                                                                                                                                   □公开查阅点  □政务服务中心                                                                                                                                                                                                    □便民服务站  □入户/现场                                                                                                                                                                                                   □社区/企事业单位/村公示栏\n（电子屏）                                                                                                                                                                                          □精准推送    □其他"]
[{"$nulls":4},"●主体信息；\n●案由；\n●处罚依据；\n●处罚结果。","行政处罚决定书",null,"决定作出之日起7个工作日内公开"]
[48,"行政\n处罚","对非经营性互联网文化单位逾期未办理备案手续的处罚","政务服务事项","●事项名称\n●设定依据\n●行政相对人权利\n●是否适用简易程序\n●结果送达方式\n●办理地点\n●办理机构\n●办理时间\n●联系电话\n●办理流程\n●自由裁量标准","对非经营性互联网文化单位逾期未办理备案手续的处罚 ","●《中华人民共和国政府信息公开条例》（中华人民共和国国务院令第711号）\n●《国务院关于促进市场公平竞争维护市场正常秩序的若干意见》（国发〔2014〕20号）\n●《国务院办公厅关于全面推行行政执法公示制度执法全过程记录制度重大执法决定法制审核制度的指导意见》（国办发〔2018〕118号）\n","  信息形成或者变更之日起20个工作日内","双牌县文化旅游广电体育局","√",null,"√",null,"√","■政府网站    □政府公报                                                                                                                                                                                                                □两微一端    □发布会/听证会                                                                                                                                                                                              □广播电视    □纸质媒体                                                                                                                                                                                                   □公开查阅点  ■政务服务中心                                                                                                                                                                                                    □便民服务站  □入户/现场                                                                                                                                                                                                   □社区/企事业单位/村公示栏\n（电子屏）                                                                                                                                                                                          □精准推送    □其他",null,"□政府网站    □政府公报                                                                                                                                                                                                                □两微一端    □发布会/听证会                                                                                                                                                                                              □广播电视    □纸质媒体                                                                                                                                                                                                   □公开查阅点  □政务服务中心                                                                                                                                                                                                    □便民服务站  □入户/现场                                                                                                                                                                                                   □社区/企事业单位/村公示栏\n（电子屏）                                                                                                                                                                                          □精准推送    □其他"]
[{"$nulls":4},"●主体信息；\n●案由；\n●处罚依据；\n●处罚结果。","行政处罚决定书",null,"决定作出之日起7个工作日内公开"]
[49,"行政\n处罚","对经营性互联网文化单位经营进口、国产互联网文化产品未在其显著位置标明文化部批准文号、备案编号的处罚","政务服务事项","●事项名称\n●设定依据\n●行政相对人权利\n●是否适用简易程序\n●结果送达方式\n●办理地点\n●办理机构\n●办理时间\n●联系电话\n●办理流程\n●自由裁量标准","对经营性互联网文化单位经营进口、国产互联网文化产品未在其显著位置标明文化部批准文号、备案编号的处罚 ","●《中华人民共和国政府信息公开条例》（中华人民共和国国务院令第711号）\n●《国务院关于促进市场公平竞争维护市场正常秩序的若干意见》（国发〔2014〕20号）\n●《国务院办公厅关于全面推行行政执法公示制度执法全过程记录制度重大执法决定法制审核制度的指导意见》（国办发〔2018〕118号）\n","  信息形成或者变更之日起20个工作日内","双牌县文化旅游广电体育局","√",null,"√",null,"√","■政府网站    □政府公报                                                                                                                                                                                                                □两微一端    □发布会/听证会                                                                                                                                                                                              □广播电视    □纸质媒体                                                                                                                                                                                                   □公开查阅点  ■政务服务中心                                                                                                                                                                                                    □便民服务站  □入户/现场                                                                                                                                                                                                   □社区/企事业单位/村公示栏\n（电子屏）                                                                                                                                                                                          □精准推送    □其他",null,"□政府网站    □政府公报                                                                                                                                                                                                                □两微一端    □发布会/听证会                                                                                                                                                                                              □广播电视    □纸质媒体                                                                                                                                                                                                   □公开查阅点  □政务服务中心                                                                                                                                                                                                    □便民服务站  □入户/现场                                                                                                                                                                                                   □社区/企事业单位/村公示栏\n（电子屏）                                                                                                                                                                                          □精准推送    □其他"]
[{"$nulls":4},"●主体信息；\n●案由；\n●处罚依据；\n●处罚结果。","行政处罚决定书",null,"决定作出之日起7个工作日内公开"]
[50,"行政\n处罚","对网络游戏经营单位未保障网络游戏用户的合法权益，并未在其提供服务网站的显著位置公布纠纷处理方式的处罚","政务服务事项","●事项名称\n●设定依据\n●行政相对人权利\n●是否适用简易程序\n●结果送达方式\n●办理地点\n●办理机构\n●办理时间\n●联系电话\n●办理流程\n●自由裁量标准","对网络游戏经营单位未保障网络游戏用户的合法权益，并未在其提供服务网站的显著位置公布纠纷处理方式的处罚 ","●《中华人民共和国政府信息公开条例》（中华人民共和国国务院令第711号）\n●《国务院关于促进市场公平竞争维护市场正常秩序的若干意见》（国发〔2014〕20号）\n●《国务院办公厅关于全面推行行政执法公示制度执法全过程记录制度重大执法决定法制审核制度的指导意见》（国办发〔2018〕118号）\n","  信息形成或者变更之日起20个工作日内","双牌县文化旅游广电体育局","√",null,"√",null,"√","■政府网站    □政府公报                                                                                                                                                                                                                □两微一端    □发布会/听证会                                                                                                                                                                                              □广播电视    □纸质媒体                                                                                                                                                                                                   □公开查阅点  ■政务服务中心                                                                                                                                                                                                    □便民服务站  □入户/现场                                                                                                                                                                                                   □社区/企事业单位/村公示栏\n（电子屏）                                                                                                                                                                                          □精准推送    □其他",null,"□政府网站    □政府公报                                                                                                                                                                                                                □两微一端    □发布会/听证会                                                                                                                                                                                              □广播电视    □纸质媒体                                                                                                                                                                                                   □公开查阅点  □政务服务中心                                                                                                                                                                                                    □便民服务站  □入户/现场                                                                                                                                                                                                   □社区/企事业单位/村公示栏\n（电子屏）                                                                                                                                                                                          □精准推送    □其他"]
[{"$nulls":4},"●主体信息；\n●案由；\n●处罚依据；\n●处罚结果。","行政处罚决定书",null,"决定作出之日起7个工作日内公开"]
[51,"行政\n处罚","对网络游戏经营单位发现用户发布违法信息未按规定立即停止为其提供服务并向有关部门报告等的处罚","政务服务事项","●事项名称\n●设定依据\n●行政相对人权利\n●是否适用简易程序\n●结果送达方式\n●办理地点\n●办理机构\n●办理时间\n●联系电话\n●办理流程\n●自由裁量标准","对网络游戏经营单位发现用户发布违法信息未按规定立即停止为其提供服务并向有关部门报告等的处罚 ","●《中华人民共和国政府信息公开条例》（中华人民共和国国务院令第711号）\n●《国务院关于促进市场公平竞争维护市场正常秩序的若干意见》（国发〔2014〕20号）\n●《国务院办公厅关于全面推行行政执法公示制度执法全过程记录制度重大执法决定法制审核制度的指导意见》（国办发〔2018〕118号）\n","  信息形成或者变更之日起20个工作日内","双牌县文化旅游广电体育局","√",null,"√",null,"√","■政府网站    □政府公报                                                                                                                                                                                                                □两微一端    □发布会/听证会                                                                                                                                                                                              □广播电视    □纸质媒体                                                                                                                                                                                                   □公开查阅点  ■政务服务中心                                                                                                                                                                                                    □便民服务站  □入户/现场                                                                                                                                                                                                   □社区/企事业单位/村公示栏\n（电子屏）                                                                                                                                                                                          □精准推送    □其他",null,"□政府网站    □政府公报                                                                                                                                                                                                                □两微一端    □发布会/听证会                                                                                                                                                                                              □广播电视    □纸质媒体                                                                                                                                                                                                   □公开查阅点  □政务服务中心                                                                                                                                                                                                    □便民服务站  □入户/现场                                                                                                                                                                                                   □社区/企事业单位/村公示栏\n（电子屏）                                                                                                                                                                                          □精准推送    □其他"]
[{"$nulls":4},"●主体信息；\n●案由；\n●处罚依据；\n●处罚结果。","行政处罚决定书",null,"决定作出之日起7个工作日内公开"]
[52,"行政\n处罚","对经文化部批准的涉外演出在批准的时间内增加演出地未到演出所在地省级文化主管部门备案的处罚","政务服务事项","●事项名称\n●设定依据\n●行政相对人权利\n●是否适用简易程序\n●结果送达方式\n●办理地点\n●办理机构\n●办理时间\n●联系电话\n●办理流程\n●自由裁量标准","对经文化部批准的涉外演出在批准的时间内增加演出地未到演出所在地省级文化主管部门备案的处罚 ","●《中华人民共和国政府信息公开条例》（中华人民共和国国务院令第711号）\n●《国务院关于促进市场公平竞争维护市场正常秩序的若干意见》（国发〔2014〕20号）\n●《国务院办公厅关于全面推行行政执法公示制度执法全过程记录制度重大执法决定法制审核制度的指导意见》（国办发〔2018〕118号）\n","  信息形成或者变更之日起20个工作日内","双牌县文化旅游广电体育局","√",null,"√",null,"√","■政府网站    □政府公报                                                                                                                                                                                                                □两微一端    □发布会/听证会                                                                                                                                                                                              □广播电视    □纸质媒体                                                                                                                                                                                                   □公开查阅点  ■政务服务中心                                                                                                                                                                                                    □便民服务站  □入户/现场                                                                                                                                                                                                   □社区/企事业单位/村公示栏\n（电子屏）                                                                                                                                                                                          □精准推送    □其他",null,"□政府网站    □政府公报                                                                                                                                                                                                                □两微一端    □发布会/听证会                                                                                                                                                                                              □广播电视    □纸质媒体                                                                                                                                                                                                   □公开查阅点  □政务服务中心                                                                                                                                                                                                    □便民服务站  □入户/现场                                                                                                                                                                                                   □社区/企事业单位/村公示栏\n（电子屏）                                                                                                                                                                                          □精准推送    □其他"]
[{"$nulls":4},"●主体信息；\n●案由；\n●处罚依据；\n●处罚结果。","行政处罚决定书",null,"决定作出之日起7个工作日内公开"]
[53,"行政\n处罚","艺术考级机构未按规定报审批机关备案即发布考级简章；组织艺术考级活动未按规定将考级时间、考级地点、考生数量、考场安排等情况报文化行政部门备案；艺术考级活动结束后未按规定将发放艺术考级证书的名单报文化行政部门备案；艺术考级考官及考级工作机构主要负责人、办公地点有变动未按规定向审批机关备案等行为的处罚","政务服务事项","●事项名称\n●设定依据\n●行政相对人权利\n●是否适用简易程序\n●结果送达方式\n●办理地点\n●办理机构\n●办理时间\n●联系电话\n●办理流程\n●自由裁量标准","艺术考级机构未按规定报审批机关备案即发布考级简章；组织艺术考级活动未按规定将考级时间、考级地点、考生数量、考场安排等情况报文化行政部门备案；艺术考级活动结束后未按规定将发放艺术考级证书的名单报文化行政部门备案；艺术考级考官及考级工作机构主要负责人、办公地点有变动未按规定向审批机关备案等行为的处罚 ","●《中华人民共和国政府信息公开条例》（中华人民共和国国务院令第711号）\n●《国务院关于促进市场公平竞争维护市场正常秩序的若干意见》（国发〔2014〕20号）\n●《国务院办公厅关于全面推行行政执法公示制度执法全过程记录制度重大执法决定法制审核制度的指导意见》（国办发〔2018〕118号）\n","  信息形成或者变更之日起20个工作日内","双牌县文化旅游广电体育局","√",null,"√",null,"√","■政府网站    □政府公报                                                                                                                                                                                                                □两微一端    □发布会/听证会                                                                                                                                                                                              □广播电视    □纸质媒体                                                                                                                                                                                                   □公开查阅点  ■政务服务中心                                                                                                                                                                                                    □便民服务站  □入户/现场                                                                                                                                                                                                   □社区/企事业单位/村公示栏\n（电子屏）                                                                                                                                                                                          □精准推送    □其他",null,"□政府网站    □政府公报                                                                                                                                                                                                                □两微一端    □发布会/听证会                                                                                                                                                                                              □广播电视    □纸质媒体                                                                                                                                                                                                   □公开查阅点  □政务服务中心                                                                                                                                                                                                    □便民服务站  □入户/现场                                                                                                                                                                                                   □社区/企事业单位/村公示栏\n（电子屏）                                                                                                                                                                                          □精准推送    □其他"]
[{"$nulls":4},"●主体信息；\n●案由；\n●处罚依据；\n●处罚结果。","行政处罚决定书",null,"决定作出之日起7个工作日内公开"]
[54,"行政\n处罚","对娱乐场所指使、纵容从业人员侵害消费者人身权利、造成严重后果的处罚","政务服务事项","●事项名称\n●设定依据\n●行政相对人权利\n●是否适用简易程序\n●结果送达方式\n●办理地点\n●办理机构\n●办理时间\n●联系电话\n●办理流程\n●自由裁量标准","对娱乐场所指使、纵容从业人员侵害消费者人身权利、造成严重后果的处罚 ","●《中华人民共和国政府信息公开条例》（中华人民共和国国务院令第711号）\n●《国务院关于促进市场公平竞争维护市场正常秩序的若干意见》（国发〔2014〕20号）\n●《国务院办公厅关于全面推行行政执法公示制度执法全过程记录制度重大执法决定法制审核制度的指导意见》（国办发〔2018〕118号）\n","  信息形成或者变更之日起20个工作日内","双牌县文化旅游广电体育局","√",null,"√",null,"√","■政府网站    □政府公报                                                                                                                                                                                                                □两微一端    □发布会/听证会                                                                                                                                                                                              □广播电视    □纸质媒体                                                                                                                                                                                                   □公开查阅点  ■政务服务中心                                                                                                                                                                                                    □便民服务站  □入户/现场                                                                                                                                                                                                   □社区/企事业单位/村公示栏\n（电子屏）                                                                                                                                                                                          □精准推送    □其他",null,"□政府网站    □政府公报                                                                                                                                                                                                                □两微一端    □发布会/听证会                                                                                                                                                                                              □广播电视    □纸质媒体                                                                                                                                                                                                   □公开查阅点  □政务服务中心                                                                                                                                                                                                    □便民服务站  □入户/现场                                                                                                                                                                                                   □社区/企事业单位/村公示栏\n（电子屏）                                                                                                                                                                                          □精准推送    □其他"]
[{"$nulls":4},"●主体信息；\n●案由；\n●处罚依据；\n●处罚结果。","行政处罚决定书",null,"决定作出之日起7个工作日内公开"]
[55,"行政\n处罚","对歌舞娱乐场所擅自变更场所使用的歌曲点播系统等的处罚","政务服务事项","●事项名称\n●设定依据\n●行政相对人权利\n●是否适用简易程序\n●结果送达方式\n●办理地点\n●办理机构\n●办理时间\n●联系电话\n●办理流程\n●自由裁量标准","对歌舞娱乐场所擅自变更场所使用的歌曲点播系统等的处罚 ","●《中华人民共和国政府信息公开条例》（中华人民共和国国务院令第711号）\n●《国务院关于促进市场公平竞争维护市场正常秩序的若干意见》（国发〔2014〕20号）\n●《国务院办公厅关于全面推行行政执法公示制度执法全过程记录制度重大执法决定法制审核制度的指导意见》（国办发〔2018〕118号）\n","  信息形成或者变更之日起20个工作日内","双牌县文化旅游广电体育局","√",null,"√",null,"√","■政府网站    □政府公报                                                                                                                                                                                                                □两微一端    □发布会/听证会                                                                                                                                                                                              □广播电视    □纸质媒体                                                                                                                                                                                                   □公开查阅点  ■政务服务中心                                                                                                                                                                                                    □便民服务站  □入户/现场                                                                                                                                                                                                   □社区/企事业单位/村公示栏\n（电子屏）                                                                                                                                                                                          □精准推送    □其他",null,"□政府网站    □政府公报                                                                                                                                                                                                                □两微一端    □发布会/听证会                                                                                                                                                                                              □广播电视    □纸质媒体                                                                                                                                                                                                   □公开查阅点  □政务服务中心                                                                                                                                                                                                    □便民服务站  □入户/现场                                                                                                                                                                                                   □社区/企事业单位/村公示栏\n（电子屏）                                                                                                                                                                                          □精准推送    □其他"]
[{"$nulls":4},"●主体信息；\n●案由；\n●处罚依据；\n●处罚结果。","行政处罚决定书",null,"决定作出之日起7个工作日内公开"]
[56,"行政\n处罚","对未经批准举办营业性演出的处罚","政务服务事项","●事项名称\n●设定依据\n●行政相对人权利\n●是否适用简易程序\n●结果送达方式\n●办理地点\n●办理机构\n●办理时间\n●联系电话\n●办理流程\n●自由裁量标准","对未经批准举办营业性演出的处罚 ","●《中华人民共和国政府信息公开条例》（中华人民共和国国务院令第711号）\n●《国务院关于促进市场公平竞争维护市场正常秩序的若干意见》（国发〔2014〕20号）\n●《国务院办公厅关于全面推行行政执法公示制度执法全过程记录制度重大执法决定法制审核制度的指导意见》（国办发〔2018〕118号）\n","  信息形成或者变更之日起20个工作日内","双牌县文化旅游广电体育局","√",null,"√",null,"√","■政府网站    □政府公报                                                                                                                                                                                                                □两微一端    □发布会/听证会                                                                                                                                                                                              □广播电视    □纸质媒体                                                                                                                                                                                                   □公开查阅点  ■政务服务中心                                                                                                                                                                                                    □便民服务站  □入户/现场                                                                                                                                                                                                   □社区/企事业单位/村公示栏\n（电子屏）                                                                                                                                                                                          □精准推送    □其他",null,"□政府网站    □政府公报                                                                                                                                                                                                                □两微一端    □发布会/听证会                                                                                                                                                                                              □广播电视    □纸质媒体                                                                                                                                                                                                   □公开查阅点  □政务服务中心                                                                                                                                                                                                    □便民服务站  □入户/现场                                                                                                                                                                                                   □社区/企事业单位/村公示栏\n（电子屏）                                                                                                                                                                                          □精准推送    □其他"]
[{"$nulls":4},"●主体信息；\n●案由；\n●处罚依据；\n●处罚结果。","行政处罚决定书",null,"决定作出之日起7个工作日内公开"]
[57,"行政\n处罚","对网络游戏经营单位未在显著位置标示《网络文化经营许可证》、实际经营的网站域名与申报信息不一致等的处罚","政务服务事项","●事项名称\n●设定依据\n●行政相对人权利\n●是否适用简易程序\n●结果送达方式\n●办理地点\n●办理机构\n●办理时间\n●联系电话\n●办理流程\n●自由裁量标准","对网络游戏经营单位未在显著位置标示《网络文化经营许可证》、实际经营的网站域名与申报信息不一致等的处罚 ","●《中华人民共和国政府信息公开条例》（中华人民共和国国务院令第711号）\n●《国务院关于促进市场公平竞争维护市场正常秩序的若干意见》（国发〔2014〕20号）\n●《国务院办公厅关于全面推行行政执法公示制度执法全过程记录制度重大执法决定法制审核制度的指导意见》（国办发〔2018〕118号）\n","  信息形成或者变更之日起20个工作日内","双牌县文化旅游广电体育局","√",null,"√",null,"√","■政府网站    □政府公报                                                                                                                                                                                                                □两微一端    □发布会/听证会                                                                                                                                                                                              □广播电视    □纸质媒体                                                                                                                                                                                                   □公开查阅点  ■政务服务中心                                                                                                                                                                                                    □便民服务站  □入户/现场                                                                                                                                                                                                   □社区/企事业单位/村公示栏\n（电子屏）                                                                                                                                                                                          □精准推送    □其他",null,"□政府网站    □政府公报                                                                                                                                                                                                                □两微一端    □发布会/听证会                                                                                                                                                                                              □广播电视    □纸质媒体                                                                                                                                                                                                   □公开查阅点  □政务服务中心                                                                                                                                                                                                    □便民服务站  □入户/现场                                                                                                                                                                                                   □社区/企事业单位/村公示栏\n（电子屏）                                                                                                                                                                                          □精准推送    □其他"]
[{"$nulls":4},"●主体信息；\n●案由；\n●处罚依据；\n●处罚结果。","行政处罚决定书",null,"决定作出之日起7个工作日内公开"]
[58,"行政\n处罚","对伪造、变造、出租、出借、买卖或者以非法手段取得营业性演出许可证、批准文件的处罚","政务服务事项","●事项名称\n●设定依据\n●行政相对人权利\n●是否适用简易程序\n●结果送达方式\n●办理地点\n●办理机构\n●办理时间\n●联系电话\n●办理流程\n●自由裁量标准","对伪造、变造、出租、出借、买卖或者以非法手段取得营业性演出许可证、批准文件的处罚 ","●《中华人民共和国政府信息公开条例》（中华人民共和国国务院令第711号）\n●《国务院关于促进市场公平竞争维护市场正常秩序的若干意见》（国发〔2014〕20号）\n●《国务院办公厅关于全面推行行政执法公示制度执法全过程记录制度重大执法决定法制审核制度的指导意见》（国办发〔2018〕118号）\n","  信息形成或者变更之日起20个工作日内","双牌县文化旅游广电体育局","√",null,"√",null,"√","■政府网站    □政府公报                                                                                                                                                                                                                □两微一端    □发布会/听证会                                                                                                                                                                                              □广播电视    □纸质媒体                                                                                                                                                                                                   □公开查阅点  ■政务服务中心                                                                                                                                                                                                    □便民服务站  □入户/现场                                                                                                                                                                                                   □社区/企事业单位/村公示栏\n（电子屏）                                                                                                                                                                                          □精准推送    □其他",null,"□政府网站    □政府公报                                                                                                                                                                                                                □两微一端    □发布会/听证会                                                                                                                                                                                              □广播电视    □纸质媒体                                                                                                                                                                                                   □公开查阅点  □政务服务中心                                                                                                                                                                                                    □便民服务站  □入户/现场                                                                                                                                                                                                   □社区/企事业单位/村公示栏\n（电子屏）                                                                                                                                                                                          □精准推送    □其他"]
[{"$nulls":4},"●主体信息；\n●案由；\n●处罚依据；\n●处罚结果。","行政处罚决定书",null,"决定作出之日起7个工作日内公开"]
[59,"行政\n处罚","对经批准到艺术院校从事教学、研究工作的外国或者港澳台艺术人员擅自从事营业性演出的处罚","政务服务事项","●事项名称\n●设定依据\n●行政相对人权利\n●是否适用简易程序\n●结果送达方式\n●办理地点\n●办理机构\n●办理时间\n●联系电话\n●办理流程\n●自由裁量标准","对经批准到艺术院校从事教学、研究工作的外国或者港澳台艺术人员擅自从事营业性演出的处罚","●《中华人民共和国政府信息公开条例》（中华人民共和国国务院令第711号）\n●《国务院关于促进市场公平竞争维护市场正常秩序的若干意见》（国发〔2014〕20号）\n●《国务院办公厅关于全面推行行政执法公示制度执法全过程记录制度重大执法决定法制审核制度的指导意见》（国办发〔2018〕118号）\n","  信息形成或者变更之日起20个工作日内","双牌县文化旅游广电体育局","√",null,"√",null,"√","■政府网站    □政府公报                                                                                                                                                                                                                □两微一端    □发布会/听证会                                                                                                                                                                                              □广播电视    □纸质媒体                                                                                                                                                                                                   □公开查阅点  ■政务服务中心                                                                                                                                                                                                    □便民服务站  □入户/现场                                                                                                                                                                                                   □社区/企事业单位/村公示栏\n（电子屏）                                                                                                                                                                                          □精准推送    □其他",null,"□政府网站    □政府公报                                                                                                                                                                                                                □两微一端    □发布会/听证会                                                                                                                                                                                              □广播电视    □纸质媒体                                                                                                                                                                                                   □公开查阅点  □政务服务中心                                                                                                                                                                                                    □便民服务站  □入户/现场                                                                                                                                                                                                   □社区/企事业单位/村公示栏\n（电子屏）                                                                                                                                                                                          □精准推送    □其他"]
[{"$nulls":4},"●主体信息；\n●案由；\n●处罚依据；\n●处罚结果。","行政处罚决定书",null,"决定作出之日起7个工作日内公开"]
[60,"行政\n处罚","对擅自或者变相开办艺术考级活动的处罚","政务服务事项","●事项名称\n●设定依据\n●行政相对人权利\n●是否适用简易程序\n●结果送达方式\n●办理地点\n●办理机构\n●办理时间\n●联系电话\n●办理流程\n●自由裁量标准","对擅自或者变相开办艺术考级活动的处罚 ","●《中华人民共和国政府信息公开条例》（中华人民共和国国务院令第711号）\n●《国务院关于促进市场公平竞争维护市场正常秩序的若干意见》（国发〔2014〕20号）\n●《国务院办公厅关于全面推行行政执法公示制度执法全过程记录制度重大执法决定法制审核制度的指导意见》（国办发〔2018〕118号）\n","  信息形成或者变更之日起20个工作日内","双牌县文化旅游广电体育局","√",null,"√",null,"√","■政府网站    □政府公报                                                                                                                                                                                                                □两微一端    □发布会/听证会                                                                                                                                                                                              □广播电视    □纸质媒体                                                                                                                                                                                                   □公开查阅点  ■政务服务中心                                                                                                                                                                                                    □便民服务站  □入户/现场                                                                                                                                                                                                   □社区/企事业单位/村公示栏\n（电子屏）                                                                                                                                                                                          □精准推送    □其他",null,"□政府网站    □政府公报                                                                                                                                                                                                                □两微一端    □发布会/听证会                                                                                                                                                                                              □广播电视    □纸质媒体                                                                                                                                                                                                   □公开查阅点  □政务服务中心                                                                                                                                                                                                    □便民服务站  □入户/现场                                                                                                                                                                                                   □社区/企事业单位/村公示栏\n（电子屏）                                                                                                                                                                                          □精准推送    □其他"]
[{"$nulls":4},"●主体信息；\n●案由；\n●处罚依据；\n●处罚结果。","行政处罚决定书",null,"决定作出之日起7个工作日内公开"]
[61,"行政\n处罚","对演出举办单位印制、出售超过核准观众数量的或者观众区域以外的营业性演出门票，造成严重后果的处罚","政务服务事项","●事项名称\n●设定依据\n●行政相对人权利\n●是否适用简易程序\n●结果送达方式\n●办理地点\n●办理机构\n●办理时间\n●联系电话\n●办理流程\n●自由裁量标准","对演出举办单位印制、出售超过核准观众数量的或者观众区域以外的营业性演出门票，造成严重后果的处罚 ","●《中华人民共和国政府信息公开条例》（中华人民共和国国务院令第711号）\n●《国务院关于促进市场公平竞争维护市场正常秩序的若干意见》（国发〔2014〕20号）\n●《国务院办公厅关于全面推行行政执法公示制度执法全过程记录制度重大执法决定法制审核制度的指导意见》（国办发〔2018〕118号）\n","  信息形成或者变更之日起20个工作日内","双牌县文化旅游广电体育局","√",null,"√",null,"√","■政府网站    □政府公报                                                                                                                                                                                                                □两微一端    □发布会/听证会                                                                                                                                                                                              □广播电视    □纸质媒体                                                                                                                                                                                                   □公开查阅点  ■政务服务中心                                                                                                                                                                                                    □便民服务站  □入户/现场                                                                                                                                                                                                   □社区/企事业单位/村公示栏\n（电子屏）                                                                                                                                                                                          □精准推送    □其他",null,"□政府网站    □政府公报                                                                                                                                                                                                                □两微一端    □发布会/听证会                                                                                                                                                                                              □广播电视    □纸质媒体                                                                                                                                                                                                   □公开查阅点  □政务服务中心                                                                                                                                                                                                    □便民服务站  □入户/现场                                                                                                                                                                                                   □社区/企事业单位/村公示栏\n（电子屏）                                                                                                                                                                                          □精准推送    □其他"]
[{"$nulls":4},"●主体信息；\n●案由；\n●处罚依据；\n●处罚结果。","行政处罚决定书",null,"决定作出之日起7个工作日内公开"]
[62,"行政\n处罚","对网络游戏经营单位在网络游戏中设置未经用户同意的强制对战等的处罚","政务服务事项","●事项名称\n●设定依据\n●行政相对人权利\n●是否适用简易程序\n●结果送达方式\n●办理地点\n●办理机构\n●办理时间\n●联系电话\n●办理流程\n●自由裁量标准","对网络游戏经营单位在网络游戏中设置未经用户同意的强制对战等的处罚","●《中华人民共和国政府信息公开条例》（中华人民共和国国务院令第711号）\n●《国务院关于促进市场公平竞争维护市场正常秩序的若干意见》（国发〔2014〕20号）\n●《国务院办公厅关于全面推行行政执法公示制度执法全过程记录制度重大执法决定法制审核制度的指导意见》（国办发〔2018〕118号）\n","  信息形成或者变更之日起20个工作日内","双牌县文化旅游广电体育局","√",null,"√",null,"√","■政府网站    □政府公报                                                                                                                                                                                                                □两微一端    □发布会/听证会                                                                                                                                                                                              □广播电视    □纸质媒体                                                                                                                                                                                                   □公开查阅点  ■政务服务中心                                                                                                                                                                                                    □便民服务站  □入户/现场                                                                                                                                                                                                   □社区/企事业单位/村公示栏\n（电子屏）                                                                                                                                                                                          □精准推送    □其他",null,"□政府网站    □政府公报                                                                                                                                                                                                                □两微一端    □发布会/听证会                                                                                                                                                                                              □广播电视    □纸质媒体                                                                                                                                                                                                   □公开查阅点  □政务服务中心                                                                                                                                                                                                    □便民服务站  □入户/现场                                                                                                                                                                                                   □社区/企事业单位/村公示栏\n（电子屏）                                                                                                                                                                                          □精准推送    □其他"]
[{"$nulls":4},"●主体信息；\n●案由；\n●处罚依据；\n●处罚结果。","行政处罚决定书",null,"决定作出之日起7个工作日内公开"]
[63,"行政\n处罚","对在演出经营活动中不履行应尽义务，倒卖、转让演出活动经营权的处罚","政务服务事项","●事项名称\n●设定依据\n●行政相对人权利\n●是否适用简易程序\n●结果送达方式\n●办理地点\n●办理机构\n●办理时间\n●联系电话\n●办理流程\n●自由裁量标准","对在演出经营活动中不履行应尽义务，倒卖、转让演出活动经营权的处罚 ","●《中华人民共和国政府信息公开条例》（中华人民共和国国务院令第711号）\n●《国务院关于促进市场公平竞争维护市场正常秩序的若干意见》（国发〔2014〕20号）\n●《国务院办公厅关于全面推行行政执法公示制度执法全过程记录制度重大执法决定法制审核制度的指导意见》（国办发〔2018〕118号）\n","  信息形成或者变更之日起20个工作日内","双牌县文化旅游广电体育局","√",null,"√",null,"√","■政府网站    □政府公报                                                                                                                                                                                                                □两微一端    □发布会/听证会                                                                                                                                                                                              □广播电视    □纸质媒体                                                                                                                                                                                                   □公开查阅点  ■政务服务中心                                                                                                                                                                                                    □便民服务站  □入户/现场                                                                                                                                                                                                   □社区/企事业单位/村公示栏\n（电子屏）                                                                                                                                                                                          □精准推送    □其他",null,"□政府网站    □政府公报                                                                                                                                                                                                                □两微一端    □发布会/听证会                                                                                                                                                                                              □广播电视    □纸质媒体                                                                                                                                                                                                   □公开查阅点  □政务服务中心                                                                                                                                                                                                    □便民服务站  □入户/现场                                                                                                                                                                                                   □社区/企事业单位/村公示栏\n（电子屏）                                                                                                                                                                                          □精准推送    □其他"]
[{"$nulls":4},"●主体信息；\n●案由；\n●处罚依据；\n●处罚结果。","行政处罚决定书",null,"决定作出之日起7个工作日内公开"]
[64,"行政\n处罚","对娱乐场所未悬挂警示标志、未成年人禁入或者限入标志的处罚","政务服务事项","●事项名称\n●设定依据\n●行政相对人权利\n●是否适用简易程序\n●结果送达方式\n●办理地点\n●办理机构\n●办理时间\n●联系电话\n●办理流程\n●自由裁量标准","对娱乐场所未悬挂警示标志、未成年人禁入或者限入标志的处罚 ","●《中华人民共和国政府信息公开条例》（中华人民共和国国务院令第711号）\n●《国务院关于促进市场公平竞争维护市场正常秩序的若干意见》（国发〔2014〕20号）\n●《国务院办公厅关于全面推行行政执法公示制度执法全过程记录制度重大执法决定法制审核制度的指导意见》（国办发〔2018〕118号）\n","  信息形成或者变更之日起20个工作日内","双牌县文化旅游广电体育局","√",null,"√",null,"√","■政府网站    □政府公报                                                                                                                                                                                                                □两微一端    □发布会/听证会                                                                                                                                                                                              □广播电视    □纸质媒体                                                                                                                                                                                                   □公开查阅点  ■政务服务中心                                                                                                                                                                                                    □便民服务站  □入户/现场                                                                                                                                                                                                   □社区/企事业单位/村公示栏\n（电子屏）                                                                                                                                                                                          □精准推送    □其他",null,"□政府网站    □政府公报                                                                                                                                                                                                                □两微一端    □发布会/听证会                                                                                                                                                                                              □广播电视    □纸质媒体                                                                                                                                                                                                   □公开查阅点  □政务服务中心                                                                                                                                                                                                    □便民服务站  □入户/现场                                                                                                                                                                                                   □社区/企事业单位/村公示栏\n（电子屏）                                                                                                                                                                                          □精准推送    □其他"]
[{"$nulls":4},"●主体信息；\n●案由；\n●处罚依据；\n●处罚结果。","行政处罚决定书",null,"决定作出之日起7个工作日内公开"]
[65,"行政\n处罚","对向消费者隐瞒艺术品来源，或者在艺术品说明中隐瞒重要事项，误导消费者的等《艺术品经营管理办法》第八条所列情形的处罚","政务服务事项","●事项名称\n●设定依据\n●行政相对人权利\n●是否适用简易程序\n●结果送达方式\n●办理地点\n●办理机构\n●办理时间\n●联系电话\n●办理流程\n●自由裁量标准","对向消费者隐瞒艺术品来源，或者在艺术品说明中隐瞒重要事项，误导消费者的等《艺术品经营管理办法》第八条所列情形的处罚","●《中华人民共和国政府信息公开条例》（中华人民共和国国务院令第711号）\n●《国务院关于促进市场公平竞争维护市场正常秩序的若干意见》（国发〔2014〕20号）\n●《国务院办公厅关于全面推行行政执法公示制度执法全过程记录制度重大执法决定法制审核制度的指导意见》（国办发〔2018〕118号）\n","  信息形成或者变更之日起20个工作日内","双牌县文化旅游广电体育局","√",null,"√",null,"√","■政府网站    □政府公报                                                                                                                                                                                                                □两微一端    □发布会/听证会                                                                                                                                                                                              □广播电视    □纸质媒体                                                                                                                                                                                                   □公开查阅点  ■政务服务中心                                                                                                                                                                                                    □便民服务站  □入户/现场                                                                                                                                                                                                   □社区/企事业单位/村公示栏\n（电子屏）                                                                                                                                                                                          □精准推送    □其他",null,"□政府网站    □政府公报                                                                                                                                                                                                                □两微一端    □发布会/听证会                                                                                                                                                                                              □广播电视    □纸质媒体                                                                                                                                                                                                   □公开查阅点  □政务服务中心                                                                                                                                                                                                    □便民服务站  □入户/现场                                                                                                                                                                                                   □社区/企事业单位/村公示栏\n（电子屏）                                                                                                                                                                                          □精准推送    □其他"]
[{"$nulls":4},"●主体信息；\n●案由；\n●处罚依据；\n●处罚结果。","行政处罚决定书",null,"决定作出之日起7个工作日内公开"]
[66,"行政\n处罚","歌舞娱乐场所的歌曲点播系统与境外的曲库联接；歌舞娱乐场所播放的曲目、屏幕画面或者游艺娱乐场所电子游戏机内的游戏项目含有本条例第十三条禁止内容；歌舞娱乐场所接纳未成年人；游艺娱乐场所设置的电子游戏机在国家法定节假日外向未成年人提供；娱乐场所容纳的消费者超过核定人数等情形的处罚","政务服务事项","●事项名称\n●设定依据\n●行政相对人权利\n●是否适用简易程序\n●结果送达方式\n●办理地点\n●办理机构\n●办理时间\n●联系电话\n●办理流程\n●自由裁量标准","歌舞娱乐场所的歌曲点播系统与境外的曲库联接；歌舞娱乐场所播放的曲目、屏幕画面或者游艺娱乐场所电子游戏机内的游戏项目含有本条例第十三条禁止内容；歌舞娱乐场所接纳未成年人；游艺娱乐场所设置的电子游戏机在国家法定节假日外向未成年人提供；娱乐场所容纳的消费者超过核定人数等情形的处罚 ","●《中华人民共和国政府信息公开条例》（中华人民共和国国务院令第711号）\n●《国务院关于促进市场公平竞争维护市场正常秩序的若干意见》（国发〔2014〕20号）\n●《国务院办公厅关于全面推行行政执法公示制度执法全过程记录制度重大执法决定法制审核制度的指导意见》（国办发〔2018〕118号）\n","  信息形成或者变更之日起20个工作日内","双牌县文化旅游广电体育局","√",null,"√",null,"√","■政府网站    □政府公报                                                                                                                                                                                                                □两微一端    □发布会/听证会                                                                                                                                                                                              □广播电视    □纸质媒体                                                                                                                                                                                                   □公开查阅点  ■政务服务中心                                                                                                                                                                                                    □便民服务站  □入户/现场                                                                                                                                                                                                   □社区/企事业单位/村公示栏\n（电子屏）                                                                                                                                                                                          □精准推送    □其他",null,"□政府网站    □政府公报                                                                                                                                                                                                                □两微一端    □发布会/听证会                                                                                                                                                                                              □广播电视    □纸质媒体                                                                                                                                                                                                   □公开查阅点  □政务服务中心                                                                                                                                                                                                    □便民服务站  □入户/现场                                                                                                                                                                                                   □社区/企事业单位/村公示栏\n（电子屏）                                                                                                                                                                                          □精准推送    □其他"]
[{"$nulls":4},"●主体信息；\n●案由；\n●处罚依据；\n●处罚结果。","行政处罚决定书",null,"决定作出之日起7个工作日内公开"]
[67,"行政\n处罚","对经营性互联网文化单位擅自变更进口互联网文化产品的名称或者增删内容的处罚","政务服务事项","●事项名称\n●设定依据\n●行政相对人权利\n●是否适用简易程序\n●结果送达方式\n●办理地点\n●办理机构\n●办理时间\n●联系电话\n●办理流程\n●自由裁量标准","对经营性互联网文化单位擅自变更进口互联网文化产品的名称或者增删内容的处罚 ","●《中华人民共和国政府信息公开条例》（中华人民共和国国务院令第711号）\n●《国务院关于促进市场公平竞争维护市场正常秩序的若干意见》（国发〔2014〕20号）\n●《国务院办公厅关于全面推行行政执法公示制度执法全过程记录制度重大执法决定法制审核制度的指导意见》（国办发〔2018〕118号）\n","  信息形成或者变更之日起20个工作日内","双牌县文化旅游广电体育局","√",null,"√",null,"√","■政府网站    □政府公报                                                                                                                                                                                                                □两微一端    □发布会/听证会                                                                                                                                                                                              □广播电视    □纸质媒体                                                                                                                                                                                                   □公开查阅点  ■政务服务中心                                                                                                                                                                                                    □便民服务站  □入户/现场                                                                                                                                                                                                   □社区/企事业单位/村公示栏\n（电子屏）                                                                                                                                                                                          □精准推送    □其他",null,"□政府网站    □政府公报                                                                                                                                                                                                                □两微一端    □发布会/听证会                                                                                                                                                                                              □广播电视    □纸质媒体                                                                                                                                                                                                   □公开查阅点  □政务服务中心                                                                                                                                                                                                    □便民服务站  □入户/现场                                                                                                                                                                                                   □社区/企事业单位/村公示栏\n（电子屏）                                                                                                                                                                                          □精准推送    □其他"]
[{"$nulls":4},"●主体信息；\n●案由；\n●处罚依据；\n●处罚结果。","行政处罚决定书",null,"决定作出之日起7个工作日内公开"]
[68,"行政\n处罚","对营业性演出含有国家禁止内容或演出举办单位发现营业性演出有法定禁止情形未采取措施予以制止、未依法报告等的处罚","政务服务事项","●事项名称\n●设定依据\n●行政相对人权利\n●是否适用简易程序\n●结果送达方式\n●办理地点\n●办理机构\n●办理时间\n●联系电话\n●办理流程\n●自由裁量标准","对营业性演出含有国家禁止内容或演出举办单位发现营业性演出有法定禁止情形未采取措施予以制止、未依法报告等的处罚 ","●《中华人民共和国政府信息公开条例》（中华人民共和国国务院令第711号）\n●《国务院关于促进市场公平竞争维护市场正常秩序的若干意见》（国发〔2014〕20号）\n●《国务院办公厅关于全面推行行政执法公示制度执法全过程记录制度重大执法决定法制审核制度的指导意见》（国办发〔2018〕118号）\n","  信息形成或者变更之日起20个工作日内",{"$f":"$I$10","v":"双牌县文化旅游广电体育局"},"√",null,"√",null,"√","■政府网站    □政府公报                                                                                                                                                                                                                □两微一端    □发布会/听证会                                                                                                                                                                                              □广播电视    □纸质媒体                                                                                                                                                                                                   □公开查阅点  ■政务服务中心                                                                                                                                                                                                    □便民服务站  □入户/现场                                                                                                                                                                                                   □社区/企事业单位/村公示栏\n（电子屏）                                                                                                                                                                                          □精准推送    □其他",null,"□政府网站    □政府公报                                                                                                                                                                                                                □两微一端    □发布会/听证会                                                                                                                                                                                              □广播电视    □纸质媒体                                                                                                                                                                                                   □公开查阅点  □政务服务中心                                                                                                                                                                                                    □便民服务站  □入户/现场                                                                                                                                                                                                   □社区/企事业单位/村公示栏\n（电子屏）                                                                                                                                                                                          □精准推送    □其他"]
[{"$nulls":4},"●主体信息；\n●案由；\n●处罚依据；\n●处罚结果。","行政处罚决定书",null,"决定作出之日起7个工作日内公开"]
[69,"行政\n处罚","对网络游戏运营企业发行网络游戏虚拟货币用于支付、购买实物或者以恶意占用用户预付资金为目的等的处罚","政务服务事项","●事项名称\n●设定依据\n●行政相对人权利\n●是否适用简易程序\n●结果送达方式\n●办理地点\n●办理机构\n●办理时间\n●联系电话\n●办理流程\n●自由裁量标准","对网络游戏运营企业发行网络游戏虚拟货币用于支付、购买实物或者以恶意占用用户预付资金为目的等的处罚 ","●《中华人民共和国政府信息公开条例》（中华人民共和国国务院令第711号）\n●《国务院关于促进市场公平竞争维护市场正常秩序的若干意见》（国发〔2014〕20号）\n●《国务院办公厅关于全面推行行政执法公示制度执法全过程记录制度重大执法决定法制审核制度的指导意见》（国办发〔2018〕118号）\n","  信息形成或者变更之日起20个工作日内","双牌县文化旅游广电体育局","√",null,"√",null,"√","■政府网站    □政府公报                                                                                                                                                                                                                □两微一端    □发布会/听证会                                                                                                                                                                                              □广播电视    □纸质媒体                                                                                                                                                                                                   □公开查阅点  ■政务服务中心                                                                                                                                                                                                    □便民服务站  □入户/现场                                                                                                                                                                                                   □社区/企事业单位/村公示栏\n（电子屏）                                                                                                                                                                                          □精准推送    □其他",null,"□政府网站    □政府公报                                                                                                                                                                                                                □两微一端    □发布会/听证会                                                                                                                                                                                              □广播电视    □纸质媒体                                                                                                                                                                                                   □公开查阅点  □政务服务中心                                                                                                                                                                                                    □便民服务站  □入户/现场                                                                                                                                                                                                   □社区/企事业单位/村公示栏\n（电子屏）                                                                                                                                                                                          □精准推送    □其他"]
[{"$nulls":4},"●主体信息；\n●案由；\n●处罚依据；\n●处罚结果。","行政处罚决定书",null,"决定作出之日起7个工作日内公开"]
[70,"行政\n处罚","对演出场所经营单位为未经批准的营业性演出提供场地的处罚","政务服务事项","●事项名称\n●设定依据\n●行政相对人权利\n●是否适用简易程序\n●结果送达方式\n●办理地点\n●办理机构\n●办理时间\n●联系电话\n●办理流程\n●自由裁量标准","对演出场所经营单位为未经批准的营业性演出提供场地的处罚 ","●《中华人民共和国政府信息公开条例》（中华人民共和国国务院令第711号）\n●《国务院关于促进市场公平竞争维护市场正常秩序的若干意见》（国发〔2014〕20号）\n●《国务院办公厅关于全面推行行政执法公示制度执法全过程记录制度重大执法决定法制审核制度的指导意见》（国办发〔2018〕118号）\n","  信息形成或者变更之日起20个工作日内","双牌县文化旅游广电体育局","√",null,"√",null,"√","■政府网站    □政府公报                                                                                                                                                                                                                □两微一端    □发布会/听证会                                                                                                                                                                                              □广播电视    □纸质媒体                                                                                                                                                                                                   □公开查阅点  ■政务服务中心                                                                                                                                                                                                    □便民服务站  □入户/现场                                                                                                                                                                                                   □社区/企事业单位/村公示栏\n（电子屏）                                                                                                                                                                                          □精准推送    □其他",null,"□政府网站    □政府公报                                                                                                                                                                                                                □两微一端    □发布会/听证会                                                                                                                                                                                              □广播电视    □纸质媒体                                                                                                                                                                                                   □公开查阅点  □政务服务中心                                                                                                                                                                                                    □便民服务站  □入户/现场                                                                                                                                                                                                   □社区/企事业单位/村公示栏\n（电子屏）                                                                                                                                                                                          □精准推送    □其他"]
[{"$nulls":4},"●主体信息；\n●案由；\n●处罚依据；\n●处罚结果。","行政处罚决定书",null,"决定作出之日起7个工作日内公开"]
[71,"行政\n处罚","对娱乐场所未在显著位置悬挂娱乐经营许可证、未成年人禁入或者限入标志，标志未注明“12318”文化市场举报电话的处罚","政务服务事项","●事项名称\n●设定依据\n●行政相对人权利\n●是否适用简易程序\n●结果送达方式\n●办理地点\n●办理机构\n●办理时间\n●联系电话\n●办理流程\n●自由裁量标准","对娱乐场所未在显著位置悬挂娱乐经营许可证、未成年人禁入或者限入标志，标志未注明“12318”文化市场举报电话的处罚 ","●《中华人民共和国政府信息公开条例》（中华人民共和国国务院令第711号）\n●《国务院关于促进市场公平竞争维护市场正常秩序的若干意见》（国发〔2014〕20号）\n●《国务院办公厅关于全面推行行政执法公示制度执法全过程记录制度重大执法决定法制审核制度的指导意见》（国办发〔2018〕118号）\n","  信息形成或者变更之日起20个工作日内","双牌县文化旅游广电体育局","√",null,"√",null,"√","■政府网站    □政府公报                                                                                                                                                                                                                □两微一端    □发布会/听证会                                                                                                                                                                                              □广播电视    □纸质媒体                                                                                                                                                                                                   □公开查阅点  ■政务服务中心                                                                                                                                                                                                    □便民服务站  □入户/现场                                                                                                                                                                                                   □社区/企事业单位/村公示栏\n（电子屏）                                                                                                                                                                                          □精准推送    □其他",null,"□政府网站    □政府公报                                                                                                                                                                                                                □两微一端    □发布会/听证会                                                                                                                                                                                              □广播电视    □纸质媒体                                                                                                                                                                                                   □公开查阅点  □政务服务中心                                                                                                                                                                                                    □便民服务站  □入户/现场                                                                                                                                                                                                   □社区/企事业单位/村公示栏\n（电子屏）                                                                                                                                                                                          □精准推送    □其他"]
[{"$nulls":4},"●主体信息；\n●案由；\n●处罚依据；\n●处罚结果。","行政处罚决定书",null,"决定作出之日起7个工作日内公开"]
[72,"行政\n处罚","对擅自从事艺术品经营活动的处罚","政务服务事项","●事项名称\n●设定依据\n●行政相对人权利\n●是否适用简易程序\n●结果送达方式\n●办理地点\n●办理机构\n●办理时间\n●联系电话\n●办理流程\n●自由裁量标准","对擅自从事艺术品经营活动的处罚 ","●《中华人民共和国政府信息公开条例》（中华人民共和国国务院令第711号）\n●《国务院关于促进市场公平竞争维护市场正常秩序的若干意见》（国发〔2014〕20号）\n●《国务院办公厅关于全面推行行政执法公示制度执法全过程记录制度重大执法决定法制审核制度的指导意见》（国办发〔2018〕118号）\n","  信息形成或者变更之日起20个工作日内","双牌县文化旅游广电体育局","√",null,"√",null,"√","■政府网站    □政府公报                                                                                                                                                                                                                □两微一端    □发布会/听证会                                                                                                                                                                                              □广播电视    □纸质媒体                                                                                                                                                                                                   □公开查阅点  ■政务服务中心                                                                                                                                                                                                    □便民服务站  □入户/现场                                                                                                                                                                                                   □社区/企事业单位/村公示栏\n（电子屏）                                                                                                                                                                                          □精准推送    □其他",null,"□政府网站    □政府公报                                                                                                                                                                                                                □两微一端    □发布会/听证会                                                                                                                                                                                              □广播电视    □纸质媒体                                                                                                                                                                                                   □公开查阅点  □政务服务中心                                                                                                                                                                                                    □便民服务站  □入户/现场                                                                                                                                                                                                   □社区/企事业单位/村公示栏\n（电子屏）                                                                                                                                                                                          □精准推送    □其他"]
[{"$nulls":4},"●主体信息；\n●案由；\n●处罚依据；\n●处罚结果。","行政处罚决定书",null,"决定作出之日起7个工作日内公开"]
[73,"行政\n处罚","网络游戏经营单位提供含有本办法第九条禁止内容的网络游戏产品和服务；提供含有本办违反本办法第八条第一款、第二款规定；违反本办法第十一条的规定，运营未获得文化部内容审查批准的进口网络游戏；违反本办法第十二条第二款的规定，进口网络游戏变更运营企业未按照要求重新申报；违反本办法第十四条的规定，对进口网络游戏内容进行内容实质性变动未报送审查等情形的处罚","政务服务事项","●事项名称\n●设定依据\n●行政相对人权利\n●是否适用简易程序\n●结果送达方式\n●办理地点\n●办理机构\n●办理时间\n●联系电话\n●办理流程\n●自由裁量标准","网络游戏经营单位提供含有本办法第九条禁止内容的网络游戏产品和服务；提供含有本办违反本办法第八条第一款、第二款规定；违反本办法第十一条的规定，运营未获得文化部内容审查批准的进口网络游戏；违反本办法第十二条第二款的规定，进口网络游戏变更运营企业未按照要求重新申报；违反本办法第十四条的规定，对进口网络游戏内容进行内容实质性变动未报送审查等情形的处罚 ","●《中华人民共和国政府信息公开条例》（中华人民共和国国务院令第711号）\n●《国务院关于促进市场公平竞争维护市场正常秩序的若干意见》（国发〔2014〕20号）\n●《国务院办公厅关于全面推行行政执法公示制度执法全过程记录制度重大执法决定法制审核制度的指导意见》（国办发〔2018〕118号）\n","  信息形成或者变更之日起20个工作日内","双牌县文化旅游广电体育局","√",null,"√",null,"√","■政府网站    □政府公报                                                                                                                                                                                                                □两微一端    □发布会/听证会                                                                                                                                                                                              □广播电视    □纸质媒体                                                                                                                                                                                                   □公开查阅点  ■政务服务中心                                                                                                                                                                                                    □便民服务站  □入户/现场                                                                                                                                                                                                   □社区/企事业单位/村公示栏\n（电子屏）                                                                                                                                                                                          □精准推送    □其他",null,"□政府网站    □政府公报                                                                                                                                                                                                                □两微一端    □发布会/听证会                                                                                                                                                                                              □广播电视    □纸质媒体                                                                                                                                                                                                   □公开查阅点  □政务服务中心                                                                                                                                                                                                    □便民服务站  □入户/现场                                                                                                                                                                                                   □社区/企事业单位/村公示栏\n（电子屏）                                                                                                                                                                                          □精准推送    □其他"]
[{"$nulls":4},"●主体信息；\n●案由；\n●处罚依据；\n●处罚结果。","行政处罚决定书",null,"决定作出之日起7个工作日内公开"]
[74,"行政\n处罚","对娱乐场所对违法违规行为未及时采取措施制止并依法报告的处罚","政务服务事项","●事项名称\n●设定依据\n●行政相对人权利\n●是否适用简易程序\n●结果送达方式\n●办理地点\n●办理机构\n●办理时间\n●联系电话\n●办理流程\n●自由裁量标准","对娱乐场所对违法违规行为未及时采取措施制止并依法报告的处罚","●《中华人民共和国政府信息公开条例》（中华人民共和国国务院令第711号）\n●《国务院关于促进市场公平竞争维护市场正常秩序的若干意见》（国发〔2014〕20号）\n●《国务院办公厅关于全面推行行政执法公示制度执法全过程记录制度重大执法决定法制审核制度的指导意见》（国办发〔2018〕118号）\n","  信息形成或者变更之日起20个工作日内","双牌县文化旅游广电体育局","√",null,"√",null,"√","■政府网站    □政府公报                                                                                                                                                                                                                □两微一端    □发布会/听证会                                                                                                                                                                                              □广播电视    □纸质媒体                                                                                                                                                                                                   □公开查阅点  ■政务服务中心                                                                                                                                                                                                    □便民服务站  □入户/现场                                                                                                                                                                                                   □社区/企事业单位/村公示栏\n（电子屏）                                                                                                                                                                                          □精准推送    □其他",null,"□政府网站    □政府公报                                                                                                                                                                                                                □两微一端    □发布会/听证会                                                                                                                                                                                              □广播电视    □纸质媒体                                                                                                                                                                                                   □公开查阅点  □政务服务中心                                                                                                                                                                                                    □便民服务站  □入户/现场                                                                                                                                                                                                   □社区/企事业单位/村公示栏\n（电子屏）                                                                                                                                                                                          □精准推送    □其他"]
[{"$nulls":4},"●主体信息；\n●案由；\n●处罚依据；\n●处罚结果。","行政处罚决定书",null,"决定作出之日起7个工作日内公开"]
[75,"行政\n处罚","对娱乐场所不配合文化主管部门的日常检查和技术监管措施的处罚","政务服务事项","●事项名称\n●设定依据\n●行政相对人权利\n●是否适用简易程序\n●结果送达方式\n●办理地点\n●办理机构\n●办理时间\n●联系电话\n●办理流程\n●自由裁量标准","对娱乐场所不配合文化主管部门的日常检查和技术监管措施的处罚 ","●《中华人民共和国政府信息公开条例》（中华人民共和国国务院令第711号）\n●《国务院关于促进市场公平竞争维护市场正常秩序的若干意见》（国发〔2014〕20号）\n●《国务院办公厅关于全面推行行政执法公示制度执法全过程记录制度重大执法决定法制审核制度的指导意见》（国办发〔2018〕118号）\n","  信息形成或者变更之日起20个工作日内","双牌县文化旅游广电体育局","√",null,"√",null,"√","■政府网站    □政府公报                                                                                                                                                                                                                □两微一端    □发布会/听证会                                                                                                                                                                                              □广播电视    □纸质媒体                                                                                                                                                                                                   □公开查阅点  ■政务服务中心                                                                                                                                                                                                    □便民服务站  □入户/现场                                                                                                                                                                                                   □社区/企事业单位/村公示栏\n（电子屏）                                                                                                                                                                                          □精准推送    □其他",null,"□政府网站    □政府公报                                                                                                                                                                                                                □两微一端    □发布会/听证会                                                                                                                                                                                              □广播电视    □纸质媒体                                                                                                                                                                                                   □公开查阅点  □政务服务中心                                                                                                                                                                                                    □便民服务站  □入户/现场                                                                                                                                                                                                   □社区/企事业单位/村公示栏\n（电子屏）                                                                                                                                                                                          □精准推送    □其他"]
[{"$nulls":4},"●主体信息；\n●案由；\n●处罚依据；\n●处罚结果。","行政处罚决定书",null,"决定作出之日起7个工作日内公开"]
[76,"行政\n处罚","对演出举办单位或者其法定代表人、主要负责人及其他直接责任人员在募捐义演中获取经营利益的处罚","政务服务事项","●事项名称\n●设定依据\n●行政相对人权利\n●是否适用简易程序\n●结果送达方式\n●办理地点\n●办理机构\n●办理时间\n●联系电话\n●办理流程\n●自由裁量标准","对演出举办单位或者其法定代表人、主要负责人及其他直接责任人员在募捐义演中获取经营利益的处罚 ","●《中华人民共和国政府信息公开条例》（中华人民共和国国务院令第711号）\n●《国务院关于促进市场公平竞争维护市场正常秩序的若干意见》（国发〔2014〕20号）\n●《国务院办公厅关于全面推行行政执法公示制度执法全过程记录制度重大执法决定法制审核制度的指导意见》（国办发〔2018〕118号）\n","  信息形成或者变更之日起20个工作日内","双牌县文化旅游广电体育局","√",null,"√",null,"√","■政府网站    □政府公报                                                                                                                                                                                                                □两微一端    □发布会/听证会                                                                                                                                                                                              □广播电视    □纸质媒体                                                                                                                                                                                                   □公开查阅点  ■政务服务中心                                                                                                                                                                                                    □便民服务站  □入户/现场                                                                                                                                                                                                   □社区/企事业单位/村公示栏\n（电子屏）                                                                                                                                                                                          □精准推送    □其他",null,"□政府网站    □政府公报                                                                                                                                                                                                                □两微一端    □发布会/听证会                                                                                                                                                                                              □广播电视    □纸质媒体                                                                                                                                                                                                   □公开查阅点  □政务服务中心                                                                                                                                                                                                    □便民服务站  □入户/现场                                                                                                                                                                                                   □社区/企事业单位/村公示栏\n（电子屏）                                                                                                                                                                                          □精准推送    □其他"]
[{"$nulls":4},"●主体信息；\n●案由；\n●处罚依据；\n●处罚结果。","行政处罚决定书",null,"决定作出之日起7个工作日内公开"]
[77,"行政\n处罚","对文艺表演团体变更有关事项未向原发证机关申请换发营业性演出许可证的处罚","政务服务事项","●事项名称\n●设定依据\n●行政相对人权利\n●是否适用简易程序\n●结果送达方式\n●办理地点\n●办理机构\n●办理时间\n●联系电话\n●办理流程\n●自由裁量标准","对文艺表演团体变更有关事项未向原发证机关申请换发营业性演出许可证的处罚 ","●《中华人民共和国政府信息公开条例》（中华人民共和国国务院令第711号）\n●《国务院关于促进市场公平竞争维护市场正常秩序的若干意见》（国发〔2014〕20号）\n●《国务院办公厅关于全面推行行政执法公示制度执法全过程记录制度重大执法决定法制审核制度的指导意见》（国办发〔2018〕118号）\n","  信息形成或者变更之日起20个工作日内","双牌县文化旅游广电体育局","√",null,"√",null,"√","■政府网站    □政府公报                                                                                                                                                                                                                □两微一端    □发布会/听证会                                                                                                                                                                                              □广播电视    □纸质媒体                                                                                                                                                                                                   □公开查阅点  ■政务服务中心                                                                                                                                                                                                    □便民服务站  □入户/现场                                                                                                                                                                                                   □社区/企事业单位/村公示栏\n（电子屏）                                                                                                                                                                                          □精准推送    □其他",null,"□政府网站    □政府公报                                                                                                                                                                                                                □两微一端    □发布会/听证会                                                                                                                                                                                              □广播电视    □纸质媒体                                                                                                                                                                                                   □公开查阅点  □政务服务中心                                                                                                                                                                                                    □便民服务站  □入户/现场                                                                                                                                                                                                   □社区/企事业单位/村公示栏\n（电子屏）                                                                                                                                                                                          □精准推送    □其他"]
[{"$nulls":4},"●主体信息；\n●案由；\n●处罚依据；\n●处罚结果。","行政处罚决定书",null,"决定作出之日起7个工作日内公开"]
[78,"行政\n处罚","对变更演出的有关事项未重新报批的处罚","政务服务事项","●事项名称\n●设定依据\n●行政相对人权利\n●是否适用简易程序\n●结果送达方式\n●办理地点\n●办理机构\n●办理时间\n●联系电话\n●办理流程\n●自由裁量标准","对变更演出的有关事项未重新报批的处罚 ","●《中华人民共和国政府信息公开条例》（中华人民共和国国务院令第711号）\n●《国务院关于促进市场公平竞争维护市场正常秩序的若干意见》（国发〔2014〕20号）\n●《国务院办公厅关于全面推行行政执法公示制度执法全过程记录制度重大执法决定法制审核制度的指导意见》（国办发〔2018〕118号）\n","  信息形成或者变更之日起20个工作日内","双牌县文化旅游广电体育局","√",null,"√",null,"√","■政府网站    □政府公报                                                                                                                                                                                                                □两微一端    □发布会/听证会                                                                                                                                                                                              □广播电视    □纸质媒体                                                                                                                                                                                                   □公开查阅点  ■政务服务中心                                                                                                                                                                                                    □便民服务站  □入户/现场                                                                                                                                                                                                   □社区/企事业单位/村公示栏\n（电子屏）                                                                                                                                                                                          □精准推送    □其他",null,"□政府网站    □政府公报                                                                                                                                                                                                                □两微一端    □发布会/听证会                                                                                                                                                                                              □广播电视    □纸质媒体                                                                                                                                                                                                   □公开查阅点  □政务服务中心                                                                                                                                                                                                    □便民服务站  □入户/现场                                                                                                                                                                                                   □社区/企事业单位/村公示栏\n（电子屏）                                                                                                                                                                                          □精准推送    □其他"]
[{"$nulls":4},"●主体信息；\n●案由；\n●处罚依据；\n●处罚结果。","行政处罚决定书",null,"决定作出之日起7个工作日内公开"]
[79,"行政\n处罚","艺术考级机构委托承办单位未按规定报文化行政部门备案或者委托的承办单位不符合规定；发放未经监制的《社会艺术水平考级证书》的；向被宣布考试无效的考生发放《社会艺术水平考级证书》；未经批准，擅自扩大设置考场范围；违反物价管理部门核定的收费标准多收费；阻挠、抗拒文化行政部门工作人员监督检查等行为的处罚","政务服务事项","●事项名称\n●设定依据\n●行政相对人权利\n●是否适用简易程序\n●结果送达方式\n●办理地点\n●办理机构\n●办理时间\n●联系电话\n●办理流程\n●自由裁量标准","艺术考级机构委托承办单位未按规定报文化行政部门备案或者委托的承办单位不符合规定；发放未经监制的《社会艺术水平考级证书》的；向被宣布考试无效的考生发放《社会艺术水平考级证书》；未经批准，擅自扩大设置考场范围；违反物价管理部门核定的收费标准多收费；阻挠、抗拒文化行政部门工作人员监督检查等行为的处罚 ","●《中华人民共和国政府信息公开条例》（中华人民共和国国务院令第711号）\n●《国务院关于促进市场公平竞争维护市场正常秩序的若干意见》（国发〔2014〕20号）\n●《国务院办公厅关于全面推行行政执法公示制度执法全过程记录制度重大执法决定法制审核制度的指导意见》（国办发〔2018〕118号）\n","  信息形成或者变更之日起20个工作日内","双牌县文化旅游广电体育局","√",null,"√",null,"√","■政府网站    □政府公报                                                                                                                                                                                                                □两微一端    □发布会/听证会                                                                                                                                                                                              □广播电视    □纸质媒体                                                                                                                                                                                                   □公开查阅点  ■政务服务中心                                                                                                                                                                                                    □便民服务站  □入户/现场                                                                                                                                                                                                   □社区/企事业单位/村公示栏\n（电子屏）                                                                                                                                                                                          □精准推送    □其他",null,"□政府网站    □政府公报                                                                                                                                                                                                                □两微一端    □发布会/听证会                                                                                                                                                                                              □广播电视    □纸质媒体                                                                                                                                                                                                   □公开查阅点  □政务服务中心                                                                                                                                                                                                    □便民服务站  □入户/现场                                                                                                                                                                                                   □社区/企事业单位/村公示栏\n（电子屏）                                                                                                                                                                                          □精准推送    □其他"]
[{"$nulls":4},"●主体信息；\n●案由；\n●处罚依据；\n●处罚结果。","行政处罚决定书",null,"决定作出之日起7个工作日内公开"]
[80,"行政\n处罚","对未经批准擅自出售演出门票的处罚","政务服务事项","●事项名称\n●设定依据\n●行政相对人权利\n●是否适用简易程序\n●结果送达方式\n●办理地点\n●办理机构\n●办理时间\n●联系电话\n●办理流程\n●自由裁量标准","对未经批准擅自出售演出门票的处罚 ","●《中华人民共和国政府信息公开条例》（中华人民共和国国务院令第711号）\n●《国务院关于促进市场公平竞争维护市场正常秩序的若干意见》（国发〔2014〕20号）\n●《国务院办公厅关于全面推行行政执法公示制度执法全过程记录制度重大执法决定法制审核制度的指导意见》（国办发〔2018〕118号）\n","  信息形成或者变更之日起20个工作日内","双牌县文化旅游广电体育局","√",null,"√",null,"√","■政府网站    □政府公报                                                                                                                                                                                                                □两微一端    □发布会/听证会                                                                                                                                                                                              □广播电视    □纸质媒体                                                                                                                                                                                                   □公开查阅点  ■政务服务中心                                                                                                                                                                                                    □便民服务站  □入户/现场                                                                                                                                                                                                   □社区/企事业单位/村公示栏\n（电子屏）                                                                                                                                                                                          □精准推送    □其他",null,"□政府网站    □政府公报                                                                                                                                                                                                                □两微一端    □发布会/听证会                                                                                                                                                                                              □广播电视    □纸质媒体                                                                                                                                                                                                   □公开查阅点  □政务服务中心                                                                                                                                                                                                    □便民服务站  □入户/现场                                                                                                                                                                                                   □社区/企事业单位/村公示栏\n（电子屏）                                                                                                                                                                                          □精准推送    □其他"]
[{"$nulls":4},"●主体信息；\n●案由；\n●处罚依据；\n●处罚结果。","行政处罚决定书",null,"决定作出之日起7个工作日内公开"]
[81,"行政\n处罚","对互联网文化单位变更有关事项未按规定办理变更、备案手续等的处罚","政务服务事项","●事项名称\n●设定依据\n●行政相对人权利\n●是否适用简易程序\n●结果送达方式\n●办理地点\n●办理机构\n●办理时间\n●联系电话\n●办理流程\n●自由裁量标准","对互联网文化单位变更有关事项未按规定办理变更、备案手续等的处罚 ","●《中华人民共和国政府信息公开条例》（中华人民共和国国务院令第711号）\n●《国务院关于促进市场公平竞争维护市场正常秩序的若干意见》（国发〔2014〕20号）\n●《国务院办公厅关于全面推行行政执法公示制度执法全过程记录制度重大执法决定法制审核制度的指导意见》（国办发〔2018〕118号）\n","  信息形成或者变更之日起20个工作日内","双牌县文化旅游广电体育局","√",null,"√",null,"√","■政府网站    □政府公报                                                                                                                                                                                                                □两微一端    □发布会/听证会                                                                                                                                                                                              □广播电视    □纸质媒体                                                                                                                                                                                                   □公开查阅点  ■政务服务中心                                                                                                                                                                                                    □便民服务站  □入户/现场                                                                                                                                                                                                   □社区/企事业单位/村公示栏\n（电子屏）                                                                                                                                                                                          □精准推送    □其他",null,"□政府网站    □政府公报                                                                                                                                                                                                                □两微一端    □发布会/听证会                                                                                                                                                                                              □广播电视    □纸质媒体                                                                                                                                                                                                   □公开查阅点  □政务服务中心                                                                                                                                                                                                    □便民服务站  □入户/现场                                                                                                                                                                                                   □社区/企事业单位/村公示栏\n（电子屏）                                                                                                                                                                                          □精准推送    □其他"]
[{"$nulls":4},"●主体信息；\n●案由；\n●处罚依据；\n●处罚结果。","行政处罚决定书",null,"决定作出之日起7个工作日内公开"]
[82,"行政\n处罚","对网络游戏运营企业对网络游戏用户尚未使用的网络游戏虚拟货币未按用户购买时的比例以法定货币退还用户等的处罚","政务服务事项","●事项名称\n●设定依据\n●行政相对人权利\n●是否适用简易程序\n●结果送达方式\n●办理地点\n●办理机构\n●办理时间\n●联系电话\n●办理流程\n●自由裁量标准","对网络游戏运营企业对网络游戏用户尚未使用的网络游戏虚拟货币未按用户购买时的比例以法定货币退还用户等的处罚 ","●《中华人民共和国政府信息公开条例》（中华人民共和国国务院令第711号）\n●《国务院关于促进市场公平竞争维护市场正常秩序的若干意见》（国发〔2014〕20号）\n●《国务院办公厅关于全面推行行政执法公示制度执法全过程记录制度重大执法决定法制审核制度的指导意见》（国办发〔2018〕118号）\n","  信息形成或者变更之日起20个工作日内","双牌县文化旅游广电体育局","√",null,"√",null,"√","■政府网站    □政府公报                                                                                                                                                                                                                □两微一端    □发布会/听证会                                                                                                                                                                                              □广播电视    □纸质媒体                                                                                                                                                                                                   □公开查阅点  ■政务服务中心                                                                                                                                                                                                    □便民服务站  □入户/现场                                                                                                                                                                                                   □社区/企事业单位/村公示栏\n（电子屏）                                                                                                                                                                                          □精准推送    □其他",null,"□政府网站    □政府公报                                                                                                                                                                                                                □两微一端    □发布会/听证会                                                                                                                                                                                              □广播电视    □纸质媒体                                                                                                                                                                                                   □公开查阅点  □政务服务中心                                                                                                                                                                                                    □便民服务站  □入户/现场                                                                                                                                                                                                   □社区/企事业单位/村公示栏\n（电子屏）                                                                                                                                                                                          □精准推送    □其他"]
[{"$nulls":4},"●主体信息；\n●案由；\n●处罚依据；\n●处罚结果。","行政处罚决定书",null,"决定作出之日起7个工作日内公开"]
[83,"行政\n处罚","对擅自举办募捐义演或者其他公益性演出的处罚","政务服务事项","●事项名称\n●设定依据\n●行政相对人权利\n●是否适用简易程序\n●结果送达方式\n●办理地点\n●办理机构\n●办理时间\n●联系电话\n●办理流程\n●自由裁量标准","对擅自举办募捐义演或者其他公益性演出的处罚 ","●《中华人民共和国政府信息公开条例》（中华人民共和国国务院令第711号）\n●《国务院关于促进市场公平竞争维护市场正常秩序的若干意见》（国发〔2014〕20号）\n●《国务院办公厅关于全面推行行政执法公示制度执法全过程记录制度重大执法决定法制审核制度的指导意见》（国办发〔2018〕118号）\n","  信息形成或者变更之日起20个工作日内","双牌县文化旅游广电体育局","√",null,"√",null,"√","■政府网站    □政府公报                                                                                                                                                                                                                □两微一端    □发布会/听证会                                                                                                                                                                                              □广播电视    □纸质媒体                                                                                                                                                                                                   □公开查阅点  ■政务服务中心                                                                                                                                                                                                    □便民服务站  □入户/现场                                                                                                                                                                                                   □社区/企事业单位/村公示栏\n（电子屏）                                                                                                                                                                                          □精准推送    □其他",null,"□政府网站    □政府公报                                                                                                                                                                                                                □两微一端    □发布会/听证会                                                                                                                                                                                              □广播电视    □纸质媒体                                                                                                                                                                                                   □公开查阅点  □政务服务中心                                                                                                                                                                                                    □便民服务站  □入户/现场                                                                                                                                                                                                   □社区/企事业单位/村公示栏\n（电子屏）                                                                                                                                                                                          □精准推送    □其他"]
[{"$nulls":4},"●主体信息；\n●案由；\n●处罚依据；\n●处罚结果。","行政处罚决定书",null,"决定作出之日起7个工作日内公开"]
[84,"行政\n处罚","对演出举办单位拒不接受县级以上文化主管部门或者文化行政执法机构检查营业性演出现场的处罚","政务服务事项","●事项名称\n●设定依据\n●行政相对人权利\n●是否适用简易程序\n●结果送达方式\n●办理地点\n●办理机构\n●办理时间\n●联系电话\n●办理流程\n●自由裁量标准","对演出举办单位拒不接受县级以上文化主管部门或者文化行政执法机构检查营业性演出现场的处罚 ","●《中华人民共和国政府信息公开条例》（中华人民共和国国务院令第711号）\n●《国务院关于促进市场公平竞争维护市场正常秩序的若干意见》（国发〔2014〕20号）\n●《国务院办公厅关于全面推行行政执法公示制度执法全过程记录制度重大执法决定法制审核制度的指导意见》（国办发〔2018〕118号）\n","  信息形成或者变更之日起20个工作日内","双牌县文化旅游广电体育局","√",null,"√",null,"√","■政府网站    □政府公报                                                                                                                                                                                                                □两微一端    □发布会/听证会                                                                                                                                                                                              □广播电视    □纸质媒体                                                                                                                                                                                                   □公开查阅点  ■政务服务中心                                                                                                                                                                                                    □便民服务站  □入户/现场                                                                                                                                                                                                   □社区/企事业单位/村公示栏\n（电子屏）                                                                                                                                                                                          □精准推送    □其他",null,"□政府网站    □政府公报                                                                                                                                                                                                                □两微一端    □发布会/听证会                                                                                                                                                                                              □广播电视    □纸质媒体                                                                                                                                                                                                   □公开查阅点  □政务服务中心                                                                                                                                                                                                    □便民服务站  □入户/现场                                                                                                                                                                                                   □社区/企事业单位/村公示栏\n（电子屏）                                                                                                                                                                                          □精准推送    □其他"]
[{"$nulls":4},"●主体信息；\n●案由；\n●处罚依据；\n●处罚结果。","行政处罚决定书",null,"决定作出之日起7个工作日内公开"]
[85,"行政\n处罚","对以政府或者政府部门的名义举办营业性演出，或者营业性演出冠以“中国”、“中华”、“全国”、“国际”等字样的处罚","政务服务事项","●事项名称\n●设定依据\n●行政相对人权利\n●是否适用简易程序\n●结果送达方式\n●办理地点\n●办理机构\n●办理时间\n●联系电话\n●办理流程\n●自由裁量标准","对以政府或者政府部门的名义举办营业性演出，或者营业性演出冠以“中国”、“中华”、“全国”、“国际”等字样的处罚 ","●《中华人民共和国政府信息公开条例》（中华人民共和国国务院令第711号）\n●《国务院关于促进市场公平竞争维护市场正常秩序的若干意见》（国发〔2014〕20号）\n●《国务院办公厅关于全面推行行政执法公示制度执法全过程记录制度重大执法决定法制审核制度的指导意见》（国办发〔2018〕118号）\n","  信息形成或者变更之日起20个工作日内","双牌县文化旅游广电体育局","√",null,"√",null,"√","■政府网站    □政府公报                                                                                                                                                                                                                □两微一端    □发布会/听证会                                                                                                                                                                                              □广播电视    □纸质媒体                                                                                                                                                                                                   □公开查阅点  ■政务服务中心                                                                                                                                                                                                    □便民服务站  □入户/现场                                                                                                                                                                                                   □社区/企事业单位/村公示栏\n（电子屏）                                                                                                                                                                                          □精准推送    □其他",null,"□政府网站    □政府公报                                                                                                                                                                                                                □两微一端    □发布会/听证会                                                                                                                                                                                              □广播电视    □纸质媒体                                                                                                                                                                                                   □公开查阅点  □政务服务中心                                                                                                                                                                                                    □便民服务站  □入户/现场                                                                                                                                                                                                   □社区/企事业单位/村公示栏\n（电子屏）                                                                                                                                                                                          □精准推送    □其他"]
[{"$nulls":4},"●主体信息；\n●案由；\n●处罚依据；\n●处罚结果。","行政处罚决定书",null,"决定作出之日起7个工作日内公开"]
[86,"行政\n处罚","网络游戏经营单位未建立自审制度","政务服务事项","●事项名称\n●设定依据\n●行政相对人权利\n●是否适用简易程序\n●结果送达方式\n●办理地点\n●办理机构\n●办理时间\n●联系电话\n●办理流程\n●自由裁量标准","网络游戏经营单位未建立自审制度 ","●《中华人民共和国政府信息公开条例》（中华人民共和国国务院令第711号）\n●《国务院关于促进市场公平竞争维护市场正常秩序的若干意见》（国发〔2014〕20号）\n●《国务院办公厅关于全面推行行政执法公示制度执法全过程记录制度重大执法决定法制审核制度的指导意见》（国办发〔2018〕118号）\n","  信息形成或者变更之日起20个工作日内","双牌县文化旅游广电体育局","√",null,"√",null,"√","■政府网站    □政府公报                                                                                                                                                                                                                □两微一端    □发布会/听证会                                                                                                                                                                                              □广播电视    □纸质媒体                                                                                                                                                                                                   □公开查阅点  ■政务服务中心                                                                                                                                                                                                    □便民服务站  □入户/现场                                                                                                                                                                                                   □社区/企事业单位/村公示栏\n（电子屏）                                                                                                                                                                                          □精准推送    □其他",null,"□政府网站    □政府公报                                                                                                                                                                                                                □两微一端    □发布会/听证会                                                                                                                                                                                              □广播电视    □纸质媒体                                                                                                                                                                                                   □公开查阅点  □政务服务中心                                                                                                                                                                                                    □便民服务站  □入户/现场                                                                                                                                                                                                   □社区/企事业单位/村公示栏\n（电子屏）                                                                                                                                                                                          □精准推送    □其他"]
[{"$nulls":4},"●主体信息；\n●案由；\n●处罚依据；\n●处罚结果。","行政处罚决定书",null,"决定作出之日起7个工作日内公开"]
[87,"行政\n处罚","对娱乐场所累次违规的处罚","政务服务事项","●事项名称\n●设定依据\n●行政相对人权利\n●是否适用简易程序\n●结果送达方式\n●办理地点\n●办理机构\n●办理时间\n●联系电话\n●办理流程\n●自由裁量标准","对娱乐场所累次违规的处罚 ","●《中华人民共和国政府信息公开条例》（中华人民共和国国务院令第711号）\n●《国务院关于促进市场公平竞争维护市场正常秩序的若干意见》（国发〔2014〕20号）\n●《国务院办公厅关于全面推行行政执法公示制度执法全过程记录制度重大执法决定法制审核制度的指导意见》（国办发〔2018〕118号）\n","  信息形成或者变更之日起20个工作日内","双牌县文化旅游广电体育局","√",null,"√",null,"√","■政府网站    □政府公报                                                                                                                                                                                                                □两微一端    □发布会/听证会                                                                                                                                                                                              □广播电视    □纸质媒体                                                                                                                                                                                                   □公开查阅点  ■政务服务中心                                                                                                                                                                                                    □便民服务站  □入户/现场                                                                                                                                                                                                   □社区/企事业单位/村公示栏\n（电子屏）                                                                                                                                                                                          □精准推送    □其他",null,"□政府网站    □政府公报                                                                                                                                                                                                                □两微一端    □发布会/听证会                                                                                                                                                                                              □广播电视    □纸质媒体                                                                                                                                                                                                   □公开查阅点  □政务服务中心                                                                                                                                                                                                    □便民服务站  □入户/现场                                                                                                                                                                                                   □社区/企事业单位/村公示栏\n（电子屏）                                                                                                                                                                                          □精准推送    □其他"]
[{"$nulls":4},"●主体信息；\n●案由；\n●处罚依据；\n●处罚结果。","行政处罚决定书",null,"决定作出之日起7个工作日内公开"]
[88,"行政\n处罚","对互联网文化单位提供含有禁止内容或者未经文化部批准进口的互联网文化产品的处罚","政务服务事项","●事项名称\n●设定依据\n●行政相对人权利\n●是否适用简易程序\n●结果送达方式\n●办理地点\n●办理机构\n●办理时间\n●联系电话\n●办理流程\n●自由裁量标准","对互联网文化单位提供含有禁止内容或者未经文化部批准进口的互联网文化产品的处罚 ","●《中华人民共和国政府信息公开条例》（中华人民共和国国务院令第711号）\n●《国务院关于促进市场公平竞争维护市场正常秩序的若干意见》（国发〔2014〕20号）\n●《国务院办公厅关于全面推行行政执法公示制度执法全过程记录制度重大执法决定法制审核制度的指导意见》（国办发〔2018〕118号）\n","  信息形成或者变更之日起20个工作日内","双牌县文化旅游广电体育局","√",null,"√",null,"√","■政府网站    □政府公报                                                                                                                                                                                                                □两微一端    □发布会/听证会                                                                                                                                                                                              □广播电视    □纸质媒体                                                                                                                                                                                                   □公开查阅点  ■政务服务中心                                                                                                                                                                                                    □便民服务站  □入户/现场                                                                                                                                                                                                   □社区/企事业单位/村公示栏\n（电子屏）                                                                                                                                                                                          □精准推送    □其他",null,"□政府网站    □政府公报                                                                                                                                                                                                                □两微一端    □发布会/听证会                                                                                                                                                                                              □广播电视    □纸质媒体                                                                                                                                                                                                   □公开查阅点  □政务服务中心                                                                                                                                                                                                    □便民服务站  □入户/现场                                                                                                                                                                                                   □社区/企事业单位/村公示栏\n（电子屏）                                                                                                                                                                                          □精准推送    □其他"]
[{"$nulls":4},"●主体信息；\n●案由；\n●处罚依据；\n●处罚结果。","行政处罚决定书",null,"决定作出之日起7个工作日内公开"]
[89,"行政\n处罚","国产网络游戏未按规定履行备案手续的处罚","政务服务事项","●事项名称\n●设定依据\n●行政相对人权利\n●是否适用简易程序\n●结果送达方式\n●办理地点\n●办理机构\n●办理时间\n●联系电话\n●办理流程\n●自由裁量标准","国产网络游戏未按规定履行备案手续的处罚","●《中华人民共和国政府信息公开条例》（中华人民共和国国务院令第711号）\n●《国务院关于促进市场公平竞争维护市场正常秩序的若干意见》（国发〔2014〕20号）\n●《国务院办公厅关于全面推行行政执法公示制度执法全过程记录制度重大执法决定法制审核制度的指导意见》（国办发〔2018〕118号）\n","  信息形成或者变更之日起20个工作日内","双牌县文化旅游广电体育局","√",null,"√",null,"√","■政府网站    □政府公报                                                                                                                                                                                                                □两微一端    □发布会/听证会                                                                                                                                                                                              □广播电视    □纸质媒体                                                                                                                                                                                                   □公开查阅点  ■政务服务中心                                                                                                                                                                                                    □便民服务站  □入户/现场                                                                                                                                                                                                   □社区/企事业单位/村公示栏\n（电子屏）                                                                                                                                                                                          □精准推送    □其他",null,"□政府网站    □政府公报                                                                                                                                                                                                                □两微一端    □发布会/听证会                                                                                                                                                                                              □广播电视    □纸质媒体                                                                                                                                                                                                   □公开查阅点  □政务服务中心                                                                                                                                                                                                    □便民服务站  □入户/现场                                                                                                                                                                                                   □社区/企事业单位/村公示栏\n（电子屏）                                                                                                                                                                                          □精准推送    □其他"]
[{"$nulls":4},"●主体信息；\n●案由；\n●处罚依据；\n●处罚结果。","行政处罚决定书",null,"决定作出之日起7个工作日内公开"]
[90,"行政\n处罚","对擅自从事娱乐场所经营活动的处罚","政务服务事项","●事项名称\n●设定依据\n●行政相对人权利\n●是否适用简易程序\n●结果送达方式\n●办理地点\n●办理机构\n●办理时间\n●联系电话\n●办理流程\n●自由裁量标准","对擅自从事娱乐场所经营活动的处罚 ","●《中华人民共和国政府信息公开条例》（中华人民共和国国务院令第711号）\n●《国务院关于促进市场公平竞争维护市场正常秩序的若干意见》（国发〔2014〕20号）\n●《国务院办公厅关于全面推行行政执法公示制度执法全过程记录制度重大执法决定法制审核制度的指导意见》（国办发〔2018〕118号）\n","  信息形成或者变更之日起20个工作日内","双牌县文化旅游广电体育局","√",null,"√",null,"√","■政府网站    □政府公报                                                                                                                                                                                                                □两微一端    □发布会/听证会                                                                                                                                                                                              □广播电视    □纸质媒体                                                                                                                                                                                                   □公开查阅点  ■政务服务中心                                                                                                                                                                                                    □便民服务站  □入户/现场                                                                                                                                                                                                   □社区/企事业单位/村公示栏\n（电子屏）                                                                                                                                                                                          □精准推送    □其他",null,"□政府网站    □政府公报                                                                                                                                                                                                                □两微一端    □发布会/听证会                                                                                                                                                                                              □广播电视    □纸质媒体                                                                                                                                                                                                   □公开查阅点  □政务服务中心                                                                                                                                                                                                    □便民服务站  □入户/现场                                                                                                                                                                                                   □社区/企事业单位/村公示栏\n（电子屏）                                                                                                                                                                                          □精准推送    □其他"]
[{"$nulls":4},"●主体信息；\n●案由；\n●处罚依据；\n●处罚结果。","行政处罚决定书",null,"决定作出之日起7个工作日内公开"]
[91,"行政\n处罚","对演出场所经营单位、个体演出经纪人、个体演员违反《营业性演出管理条例》（中华人民共和国国务院令第528号）规定，情节严重的处罚","政务服务事项","●事项名称\n●设定依据\n●行政相对人权利\n●是否适用简易程序\n●结果送达方式\n●办理地点\n●办理机构\n●办理时间\n●联系电话\n●办理流程\n●自由裁量标准","对演出场所经营单位、个体演出经纪人、个体演员违反《营业性演出管理条例》（中华人民共和国国务院令第528号）规定，情节严重的处罚 ","●《中华人民共和国政府信息公开条例》（中华人民共和国国务院令第711号）\n●《国务院关于促进市场公平竞争维护市场正常秩序的若干意见》（国发〔2014〕20号）\n●《国务院办公厅关于全面推行行政执法公示制度执法全过程记录制度重大执法决定法制审核制度的指导意见》（国办发〔2018〕118号）\n","  信息形成或者变更之日起20个工作日内","双牌县文化旅游广电体育局","√",null,"√",null,"√","■政府网站    □政府公报                                                                                                                                                                                                                □两微一端    □发布会/听证会                                                                                                                                                                                              □广播电视    □纸质媒体                                                                                                                                                                                                   □公开查阅点  ■政务服务中心                                                                                                                                                                                                    □便民服务站  □入户/现场                                                                                                                                                                                                   □社区/企事业单位/村公示栏\n（电子屏）                                                                                                                                                                                          □精准推送    □其他",null,"□政府网站    □政府公报                                                                                                                                                                                                                □两微一端    □发布会/听证会                                                                                                                                                                                              □广播电视    □纸质媒体                                                                                                                                                                                                   □公开查阅点  □政务服务中心                                                                                                                                                                                                    □便民服务站  □入户/现场                                                                                                                                                                                                   □社区/企事业单位/村公示栏\n（电子屏）                                                                                                                                                                                          □精准推送    □其他"]
[{"$nulls":4},"●主体信息；\n●案由；\n●处罚依据；\n●处罚结果。","行政处罚决定书",null,"决定作出之日起7个工作日内公开"]
[92,"行政\n处罚","对在演播厅外从事符合《营业性演出管理条例实施细则》规定条件的电视文艺节目的现场录制未办理审批手续的处罚","政务服务事项","●事项名称\n●设定依据\n●行政相对人权利\n●是否适用简易程序\n●结果送达方式\n●办理地点\n●办理机构\n●办理时间\n●联系电话\n●办理流程\n●自由裁量标准","对在演播厅外从事符合《营业性演出管理条例实施细则》规定条件的电视文艺节目的现场录制未办理审批手续的处罚 ","●《中华人民共和国政府信息公开条例》（中华人民共和国国务院令第711号）\n●《国务院关于促进市场公平竞争维护市场正常秩序的若干意见》（国发〔2014〕20号）\n●《国务院办公厅关于全面推行行政执法公示制度执法全过程记录制度重大执法决定法制审核制度的指导意见》（国办发〔2018〕118号）\n","  信息形成或者变更之日起20个工作日内","双牌县文化旅游广电体育局","√",null,"√",null,"√","■政府网站    □政府公报                                                                                                                                                                                                                □两微一端    □发布会/听证会                                                                                                                                                                                              □广播电视    □纸质媒体                                                                                                                                                                                                   □公开查阅点  ■政务服务中心                                                                                                                                                                                                    □便民服务站  □入户/现场                                                                                                                                                                                                   □社区/企事业单位/村公示栏\n（电子屏）                                                                                                                                                                                          □精准推送    □其他",null,"□政府网站    □政府公报                                                                                                                                                                                                                □两微一端    □发布会/听证会                                                                                                                                                                                              □广播电视    □纸质媒体                                                                                                                                                                                                   □公开查阅点  □政务服务中心                                                                                                                                                                                                    □便民服务站  □入户/现场                                                                                                                                                                                                   □社区/企事业单位/村公示栏\n（电子屏）                                                                                                                                                                                          □精准推送    □其他"]
[{"$nulls":4},"●主体信息；\n●案由；\n●处罚依据；\n●处罚结果。","行政处罚决定书",null,"决定作出之日起7个工作日内公开"]
[93,"行政\n处罚","游艺娱乐场所设置未经文化主管部门内容核查的游戏游艺设备；进行有奖经营活动的，未将奖品目录向所在地县级文化主管部门备案；除国家法定节假日外，设置的电子游戏机向未成年人提供等情形的处罚","政务服务事项","●事项名称\n●设定依据\n●行政相对人权利\n●是否适用简易程序\n●结果送达方式\n●办理地点\n●办理机构\n●办理时间\n●联系电话\n●办理流程\n●自由裁量标准","游艺娱乐场所设置未经文化主管部门内容核查的游戏游艺设备；进行有奖经营活动的，未将奖品目录向所在地县级文化主管部门备案；除国家法定节假日外，设置的电子游戏机向未成年人提供等情形的处罚 ","●《中华人民共和国政府信息公开条例》（中华人民共和国国务院令第711号）\n●《国务院关于促进市场公平竞争维护市场正常秩序的若干意见》（国发〔2014〕20号）\n●《国务院办公厅关于全面推行行政执法公示制度执法全过程记录制度重大执法决定法制审核制度的指导意见》（国办发〔2018〕118号）\n","  信息形成或者变更之日起20个工作日内","双牌县文化旅游广电体育局","√",null,"√",null,"√","■政府网站    □政府公报                                                                                                                                                                                                                □两微一端    □发布会/听证会                                                                                                                                                                                              □广播电视    □纸质媒体                                                                                                                                                                                                   □公开查阅点  ■政务服务中心                                                                                                                                                                                                    □便民服务站  □入户/现场                                                                                                                                                                                                   □社区/企事业单位/村公示栏\n（电子屏）                                                                                                                                                                                          □精准推送    □其他",null,"□政府网站    □政府公报                                                                                                                                                                                                                □两微一端    □发布会/听证会                                                                                                                                                                                              □广播电视    □纸质媒体                                                                                                                                                                                                   □公开查阅点  □政务服务中心                                                                                                                                                                                                    □便民服务站  □入户/现场                                                                                                                                                                                                   □社区/企事业单位/村公示栏\n（电子屏）                                                                                                                                                                                          □精准推送    □其他"]
[{"$nulls":4},"●主体信息；\n●案由；\n●处罚依据；\n●处罚结果。","行政处罚决定书",null,"决定作出之日起7个工作日内公开"]
[94,"行政\n处罚","对经营性互联网文化单位、网络游戏运营企业未建立自审、自查制度等的处罚","政务服务事项","●事项名称\n●设定依据\n●行政相对人权利\n●是否适用简易程序\n●结果送达方式\n●办理地点\n●办理机构\n●办理时间\n●联系电话\n●办理流程\n●自由裁量标准","对经营性互联网文化单位、网络游戏运营企业未建立自审、自查制度等的处罚 ","●《中华人民共和国政府信息公开条例》（中华人民共和国国务院令第711号）\n●《国务院关于促进市场公平竞争维护市场正常秩序的若干意见》（国发〔2014〕20号）\n●《国务院办公厅关于全面推行行政执法公示制度执法全过程记录制度重大执法决定法制审核制度的指导意见》（国办发〔2018〕118号）\n","  信息形成或者变更之日起20个工作日内","双牌县文化旅游广电体育局","√",null,"√",null,"√","■政府网站    □政府公报                                                                                                                                                                                                                □两微一端    □发布会/听证会                                                                                                                                                                                              □广播电视    □纸质媒体                                                                                                                                                                                                   □公开查阅点  ■政务服务中心                                                                                                                                                                                                    □便民服务站  □入户/现场                                                                                                                                                                                                   □社区/企事业单位/村公示栏\n（电子屏）                                                                                                                                                                                          □精准推送    □其他",null,"□政府网站    □政府公报                                                                                                                                                                                                                □两微一端    □发布会/听证会                                                                                                                                                                                              □广播电视    □纸质媒体                                                                                                                                                                                                   □公开查阅点  □政务服务中心                                                                                                                                                                                                    □便民服务站  □入户/现场                                                                                                                                                                                                   □社区/企事业单位/村公示栏\n（电子屏）                                                                                                                                                                                          □精准推送    □其他"]
[{"$nulls":4},"●主体信息；\n●案由；\n●处罚依据；\n●处罚结果。","行政处罚决定书",null,"决定作出之日起7个工作日内公开"]
[95,"行政\n处罚","对网络游戏运营企业在国产网络游戏上网运营或内容发生实质性变动后未按规定进行备案的处罚","政务服务事项","●事项名称\n●设定依据\n●行政相对人权利\n●是否适用简易程序\n●结果送达方式\n●办理地点\n●办理机构\n●办理时间\n●联系电话\n●办理流程\n●自由裁量标准","对网络游戏运营企业在国产网络游戏上网运营或内容发生实质性变动后未按规定进行备案的处罚 ","●《中华人民共和国政府信息公开条例》（中华人民共和国国务院令第711号）\n●《国务院关于促进市场公平竞争维护市场正常秩序的若干意见》（国发〔2014〕20号）\n●《国务院办公厅关于全面推行行政执法公示制度执法全过程记录制度重大执法决定法制审核制度的指导意见》（国办发〔2018〕118号）\n","  信息形成或者变更之日起20个工作日内","双牌县文化旅游广电体育局","√",null,"√",null,"√","■政府网站    □政府公报                                                                                                                                                                                                                □两微一端    □发布会/听证会                                                                                                                                                                                              □广播电视    □纸质媒体                                                                                                                                                                                                   □公开查阅点  ■政务服务中心                                                                                                                                                                                                    □便民服务站  □入户/现场                                                                                                                                                                                                   □社区/企事业单位/村公示栏\n（电子屏）                                                                                                                                                                                          □精准推送    □其他",null,"□政府网站    □政府公报                                                                                                                                                                                                                □两微一端    □发布会/听证会                                                                                                                                                                                              □广播电视    □纸质媒体                                                                                                                                                                                                   □公开查阅点  □政务服务中心                                                                                                                                                                                                    □便民服务站  □入户/现场                                                                                                                                                                                                   □社区/企事业单位/村公示栏\n（电子屏）                                                                                                                                                                                          □精准推送    □其他"]
[{"$nulls":4},"●主体信息；\n●案由；\n●处罚依据；\n●处罚结果。","行政处罚决定书",null,"决定作出之日起7个工作日内公开"]
[96,"行政\n处罚","对非因不可抗力中止、停止或者退出演出；演出内容等发生变化未及时告知；没有现场演唱、演奏记录、以假唱、假演奏欺骗观众；为演员假唱提供条件的处罚","政务服务事项","●事项名称\n●设定依据\n●行政相对人权利\n●是否适用简易程序\n●结果送达方式\n●办理地点\n●办理机构\n●办理时间\n●联系电话\n●办理流程\n●自由裁量标准","对非因不可抗力中止、停止或者退出演出；演出内容等发生变化未及时告知；没有现场演唱、演奏记录、以假唱、假演奏欺骗观众；为演员假唱提供条件的处罚 ","●《中华人民共和国政府信息公开条例》（中华人民共和国国务院令第711号）\n●《国务院关于促进市场公平竞争维护市场正常秩序的若干意见》（国发〔2014〕20号）\n●《国务院办公厅关于全面推行行政执法公示制度执法全过程记录制度重大执法决定法制审核制度的指导意见》（国办发〔2018〕118号）\n","  信息形成或者变更之日起20个工作日内","双牌县文化旅游广电体育局","√",null,"√",null,"√","■政府网站    □政府公报                                                                                                                                                                                                                □两微一端    □发布会/听证会                                                                                                                                                                                              □广播电视    □纸质媒体                                                                                                                                                                                                   □公开查阅点  ■政务服务中心                                                                                                                                                                                                    □便民服务站  □入户/现场                                                                                                                                                                                                   □社区/企事业单位/村公示栏\n（电子屏）                                                                                                                                                                                          □精准推送    □其他",null,"□政府网站    □政府公报                                                                                                                                                                                                                □两微一端    □发布会/听证会                                                                                                                                                                                              □广播电视    □纸质媒体                                                                                                                                                                                                   □公开查阅点  □政务服务中心                                                                                                                                                                                                    □便民服务站  □入户/现场                                                                                                                                                                                                   □社区/企事业单位/村公示栏\n（电子屏）                                                                                                                                                                                          □精准推送    □其他"]
[{"$nulls":4},"●主体信息；\n●案由；\n●处罚依据；\n●处罚结果。","行政处罚决定书",null,"决定作出之日起7个工作日内公开"]
[97,"行政\n处罚","对娱乐场所为未经文化主管部门批准的营业性演出活动提供场地的处罚","政务服务事项","●事项名称\n●设定依据\n●行政相对人权利\n●是否适用简易程序\n●结果送达方式\n●办理地点\n●办理机构\n●办理时间\n●联系电话\n●办理流程\n●自由裁量标准","对娱乐场所为未经文化主管部门批准的营业性演出活动提供场地的处罚 ","●《中华人民共和国政府信息公开条例》（中华人民共和国国务院令第711号）\n●《国务院关于促进市场公平竞争维护市场正常秩序的若干意见》（国发〔2014〕20号）\n●《国务院办公厅关于全面推行行政执法公示制度执法全过程记录制度重大执法决定法制审核制度的指导意见》（国办发〔2018〕118号）\n","  信息形成或者变更之日起20个工作日内","双牌县文化旅游广电体育局","√",null,"√",null,"√","■政府网站    □政府公报                                                                                                                                                                                                                □两微一端    □发布会/听证会                                                                                                                                                                                              □广播电视    □纸质媒体                                                                                                                                                                                                   □公开查阅点  ■政务服务中心                                                                                                                                                                                                    □便民服务站  □入户/现场                                                                                                                                                                                                   □社区/企事业单位/村公示栏\n（电子屏）                                                                                                                                                                                          □精准推送    □其他",null,"□政府网站    □政府公报                                                                                                                                                                                                                □两微一端    □发布会/听证会                                                                                                                                                                                              □广播电视    □纸质媒体                                                                                                                                                                                                   □公开查阅点  □政务服务中心                                                                                                                                                                                                    □便民服务站  □入户/现场                                                                                                                                                                                                   □社区/企事业单位/村公示栏\n（电子屏）                                                                                                                                                                                          □精准推送    □其他"]
[{"$nulls":4},"●主体信息；\n●案由；\n●处罚依据；\n●处罚结果。","行政处罚决定书",null,"决定作出之日起7个工作日内公开"]
[98,"行政\n处罚","对擅自从事信息网络传播视听节目业务的处罚","政务服务事项","●事项名称\n●设定依据\n●行政相对人权利\n●是否适用简易程序\n●结果送达方式\n●办理地点\n●办理机构\n●办理时间\n●联系电话\n●办理流程\n●自由裁量标准","对擅自从事信息网络传播视听节目业务的处罚 ","●《中华人民共和国政府信息公开条例》（中华人民共和国国务院令第711号）\n●《国务院关于促进市场公平竞争维护市场正常秩序的若干意见》（国发〔2014〕20号）\n●《国务院办公厅关于全面推行行政执法公示制度执法全过程记录制度重大执法决定法制审核制度的指导意见》（国办发〔2018〕118号）\n","  信息形成或者变更之日起20个工作日内","双牌县文化旅游广电体育局","√",null,"√",null,"√","■政府网站    □政府公报                                                                                                                                                                                                                □两微一端    □发布会/听证会                                                                                                                                                                                              □广播电视    □纸质媒体                                                                                                                                                                                                   □公开查阅点  ■政务服务中心                                                                                                                                                                                                    □便民服务站  □入户/现场                                                                                                                                                                                                   □社区/企事业单位/村公示栏\n（电子屏）                                                                                                                                                                                          □精准推送    □其他",null,"□政府网站    □政府公报                                                                                                                                                                                                                □两微一端    □发布会/听证会                                                                                                                                                                                              □广播电视    □纸质媒体                                                                                                                                                                                                   □公开查阅点  □政务服务中心                                                                                                                                                                                                    □便民服务站  □入户/现场                                                                                                                                                                                                   □社区/企事业单位/村公示栏\n（电子屏）                                                                                                                                                                                          □精准推送    □其他"]
[{"$nulls":4},"●主体信息；\n●案由；\n●处罚依据；\n●处罚结果。","行政处罚决定书",null,"决定作出之日起7个工作日内公开"]
[99,"行政\n处罚","对经营含有法定禁止内容的艺术品的处罚","政务服务事项","●事项名称\n●设定依据\n●行政相对人权利\n●是否适用简易程序\n●结果送达方式\n●办理地点\n●办理机构\n●办理时间\n●联系电话\n●办理流程\n●自由裁量标准","对经营含有法定禁止内容的艺术品的处罚 ","●《中华人民共和国政府信息公开条例》（中华人民共和国国务院令第711号）\n●《国务院关于促进市场公平竞争维护市场正常秩序的若干意见》（国发〔2014〕20号）\n●《国务院办公厅关于全面推行行政执法公示制度执法全过程记录制度重大执法决定法制审核制度的指导意见》（国办发〔2018〕118号）\n","  信息形成或者变更之日起20个工作日内","双牌县文化旅游广电体育局","√",null,"√",null,"√","■政府网站    □政府公报                                                                                                                                                                                                                □两微一端    □发布会/听证会                                                                                                                                                                                              □广播电视    □纸质媒体                                                                                                                                                                                                   □公开查阅点  ■政务服务中心                                                                                                                                                                                                    □便民服务站  □入户/现场                                                                                                                                                                                                   □社区/企事业单位/村公示栏\n（电子屏）                                                                                                                                                                                          □精准推送    □其他",null,"□政府网站    □政府公报                                                                                                                                                                                                                □两微一端    □发布会/听证会                                                                                                                                                                                              □广播电视    □纸质媒体                                                                                                                                                                                                   □公开查阅点  □政务服务中心                                                                                                                                                                                                    □便民服务站  □入户/现场                                                                                                                                                                                                   □社区/企事业单位/村公示栏\n（电子屏）                                                                                                                                                                                          □精准推送    □其他"]
[{"$nulls":4},"●主体信息；\n●案由；\n●处罚依据；\n●处罚结果。","行政处罚决定书",null,"决定作出之日起7个工作日内公开"]
[100,"行政\n处罚","对互联网文化单位未在其网站主页的显著位置标明《网络文化经营许可证》编号或者备案编号等的处罚","政务服务事项","●事项名称\n●设定依据\n●行政相对人权利\n●是否适用简易程序\n●结果送达方式\n●办理地点\n●办理机构\n●办理时间\n●联系电话\n●办理流程\n●自由裁量标准","对互联网文化单位未在其网站主页的显著位置标明《网络文化经营许可证》编号或者备案编号等的处罚 ","●《中华人民共和国政府信息公开条例》（中华人民共和国国务院令第711号）\n●《国务院关于促进市场公平竞争维护市场正常秩序的若干意见》（国发〔2014〕20号）\n●《国务院办公厅关于全面推行行政执法公示制度执法全过程记录制度重大执法决定法制审核制度的指导意见》（国办发〔2018〕118号）\n","  信息形成或者变更之日起20个工作日内",{"$f":"$I$10","v":"双牌县文化旅游广电体育局"},"√",null,"√",null,"√","■政府网站    □政府公报                                                                                                                                                                                                                □两微一端    □发布会/听证会                                                                                                                                                                                              □广播电视    □纸质媒体                                                                                                                                                                                                   □公开查阅点  ■政务服务中心                                                                                                                                                                                                    □便民服务站  □入户/现场                                                                                                                                                                                                   □社区/企事业单位/村公示栏\n（电子屏）                                                                                                                                                                                          □精准推送    □其他",null,"□政府网站    □政府公报                                                                                                                                                                                                                □两微一端    □发布会/听证会                                                                                                                                                                                              □广播电视    □纸质媒体                                                                                                                                                                                                   □公开查阅点  □政务服务中心                                                                                                                                                                                                    □便民服务站  □入户/现场                                                                                                                                                                                                   □社区/企事业单位/村公示栏\n（电子屏）                                                                                                                                                                                          □精准推送    □其他"]
[{"$nulls":4},"●主体信息；\n●案由；\n●处罚依据；\n●处罚结果。","行政处罚决定书",null,"决定作出之日起7个工作日内公开"]
[101,"行政\n处罚","对网络游戏经营单位以未成年人为对象的网络游戏含有妨害未成年人身心健康的内容等的处罚","政务服务事项","●事项名称\n●设定依据\n●行政相对人权利\n●是否适用简易程序\n●结果送达方式\n●办理地点\n●办理机构\n●办理时间\n●联系电话\n●办理流程\n●自由裁量标准","对网络游戏经营单位以未成年人为对象的网络游戏含有妨害未成年人身心健康的内容等的处罚 ","●《中华人民共和国政府信息公开条例》（中华人民共和国国务院令第711号）\n●《国务院关于促进市场公平竞争维护市场正常秩序的若干意见》（国发〔2014〕20号）\n●《国务院办公厅关于全面推行行政执法公示制度执法全过程记录制度重大执法决定法制审核制度的指导意见》（国办发〔2018〕118号）\n","  信息形成或者变更之日起20个工作日内","双牌县文化旅游广电体育局","√",null,"√",null,"√","■政府网站    □政府公报                                                                                                                                                                                                                □两微一端    □发布会/听证会                                                                                                                                                                                              □广播电视    □纸质媒体                                                                                                                                                                                                   □公开查阅点  ■政务服务中心                                                                                                                                                                                                    □便民服务站  □入户/现场                                                                                                                                                                                                   □社区/企事业单位/村公示栏\n（电子屏）                                                                                                                                                                                          □精准推送    □其他",null,"□政府网站    □政府公报                                                                                                                                                                                                                □两微一端    □发布会/听证会                                                                                                                                                                                              □广播电视    □纸质媒体                                                                                                                                                                                                   □公开查阅点  □政务服务中心                                                                                                                                                                                                    □便民服务站  □入户/现场                                                                                                                                                                                                   □社区/企事业单位/村公示栏\n（电子屏）                                                                                                                                                                                          □精准推送    □其他"]
[{"$nulls":4},"●主体信息；\n●案由；\n●处罚依据；\n●处罚结果。","行政处罚决定书",null,"决定作出之日起7个工作日内公开"]
[102,"行政\n处罚","对网络游戏运营企业与用户的服务协议不符合《网络游戏服务格式化协议必备条款》有关规定的处罚","政务服务事项","●事项名称\n●设定依据\n●行政相对人权利\n●是否适用简易程序\n●结果送达方式\n●办理地点\n●办理机构\n●办理时间\n●联系电话\n●办理流程\n●自由裁量标准","对网络游戏运营企业与用户的服务协议不符合《网络游戏服务格式化协议必备条款》有关规定的处罚 ","●《中华人民共和国政府信息公开条例》（中华人民共和国国务院令第711号）\n●《国务院关于促进市场公平竞争维护市场正常秩序的若干意见》（国发〔2014〕20号）\n●《国务院办公厅关于全面推行行政执法公示制度执法全过程记录制度重大执法决定法制审核制度的指导意见》（国办发〔2018〕118号）\n","  信息形成或者变更之日起20个工作日内","双牌县文化旅游广电体育局","√",null,"√",null,"√","■政府网站    □政府公报                                                                                                                                                                                                                □两微一端    □发布会/听证会                                                                                                                                                                                              □广播电视    □纸质媒体                                                                                                                                                                                                   □公开查阅点  ■政务服务中心                                                                                                                                                                                                    □便民服务站  □入户/现场                                                                                                                                                                                                   □社区/企事业单位/村公示栏\n（电子屏）                                                                                                                                                                                          □精准推送    □其他",null,"□政府网站    □政府公报                                                                                                                                                                                                                □两微一端    □发布会/听证会                                                                                                                                                                                              □广播电视    □纸质媒体                                                                                                                                                                                                   □公开查阅点  □政务服务中心                                                                                                                                                                                                    □便民服务站  □入户/现场                                                                                                                                                                                                   □社区/企事业单位/村公示栏\n（电子屏）                                                                                                                                                                                          □精准推送    □其他"]
[{"$nulls":4},"●主体信息；\n●案由；\n●处罚依据；\n●处罚结果。","行政处罚决定书",null,"决定作出之日起7个工作日内公开"]
[103,"行政\n处罚","对非演出场所经营单位擅自举办演出的处罚","政务服务事项","●事项名称\n●设定依据\n●行政相对人权利\n●是否适用简易程序\n●结果送达方式\n●办理地点\n●办理机构\n●办理时间\n●联系电话\n●办理流程\n●自由裁量标准","对非演出场所经营单位擅自举办演出的处罚 ","●《中华人民共和国政府信息公开条例》（中华人民共和国国务院令第711号）\n●《国务院关于促进市场公平竞争维护市场正常秩序的若干意见》（国发〔2014〕20号）\n●《国务院办公厅关于全面推行行政执法公示制度执法全过程记录制度重大执法决定法制审核制度的指导意见》（国办发〔2018〕118号）\n","  信息形成或者变更之日起20个工作日内","双牌县文化旅游广电体育局","√",null,"√",null,"√","■政府网站    □政府公报                                                                                                                                                                                                                □两微一端    □发布会/听证会                                                                                                                                                                                              □广播电视    □纸质媒体                                                                                                                                                                                                   □公开查阅点  ■政务服务中心                                                                                                                                                                                                    □便民服务站  □入户/现场                                                                                                                                                                                                   □社区/企事业单位/村公示栏\n（电子屏）                                                                                                                                                                                          □精准推送    □其他",null,"□政府网站    □政府公报                                                                                                                                                                                                                □两微一端    □发布会/听证会                                                                                                                                                                                              □广播电视    □纸质媒体                                                                                                                                                                                                   □公开查阅点  □政务服务中心                                                                                                                                                                                                    □便民服务站  □入户/现场                                                                                                                                                                                                   □社区/企事业单位/村公示栏\n（电子屏）                                                                                                                                                                                          □精准推送    □其他"]
[{"$nulls":4},"●主体信息；\n●案由；\n●处罚依据；\n●处罚结果。","行政处罚决定书",null,"决定作出之日起7个工作日内公开"]
[104,"行政\n处罚","对经批准的进口网络游戏、已备案的国产网络游戏未在其运营网站指定位置及游戏内显著位置标明批准文号、备案编号的处罚","政务服务事项","●事项名称\n●设定依据\n●行政相对人权利\n●是否适用简易程序\n●结果送达方式\n●办理地点\n●办理机构\n●办理时间\n●联系电话\n●办理流程\n●自由裁量标准","对经批准的进口网络游戏、已备案的国产网络游戏未在其运营网站指定位置及游戏内显著位置标明批准文号、备案编号的处罚 ","●《中华人民共和国政府信息公开条例》（中华人民共和国国务院令第711号）\n●《国务院关于促进市场公平竞争维护市场正常秩序的若干意见》（国发〔2014〕20号）\n●《国务院办公厅关于全面推行行政执法公示制度执法全过程记录制度重大执法决定法制审核制度的指导意见》（国办发〔2018〕118号）\n","  信息形成或者变更之日起20个工作日内","双牌县文化旅游广电体育局","√",null,"√",null,"√","■政府网站    □政府公报                                                                                                                                                                                                                □两微一端    □发布会/听证会                                                                                                                                                                                              □广播电视    □纸质媒体                                                                                                                                                                                                   □公开查阅点  ■政务服务中心                                                                                                                                                                                                    □便民服务站  □入户/现场                                                                                                                                                                                                   □社区/企事业单位/村公示栏\n（电子屏）                                                                                                                                                                                          □精准推送    □其他",null,"□政府网站    □政府公报                                                                                                                                                                                                                □两微一端    □发布会/听证会                                                                                                                                                                                              □广播电视    □纸质媒体                                                                                                                                                                                                   □公开查阅点  □政务服务中心                                                                                                                                                                                                    □便民服务站  □入户/现场                                                                                                                                                                                                   □社区/企事业单位/村公示栏\n（电子屏）                                                                                                                                                                                          □精准推送    □其他"]
[{"$nulls":4},"●主体信息；\n●案由；\n●处罚依据；\n●处罚结果。","行政处罚决定书",null,"决定作出之日起7个工作日内公开"]
[105,"行政\n处罚","娱乐场所实施国家禁止的行为且情节严重的处罚","政务服务事项","●事项名称\n●设定依据\n●行政相对人权利\n●是否适用简易程序\n●结果送达方式\n●办理地点\n●办理机构\n●办理时间\n●联系电话\n●办理流程\n●自由裁量标准","娱乐场所实施国家禁止的行为且情节严重的处罚 ","●《中华人民共和国政府信息公开条例》（中华人民共和国国务院令第711号）\n●《国务院关于促进市场公平竞争维护市场正常秩序的若干意见》（国发〔2014〕20号）\n●《国务院办公厅关于全面推行行政执法公示制度执法全过程记录制度重大执法决定法制审核制度的指导意见》（国办发〔2018〕118号）\n","  信息形成或者变更之日起20个工作日内","双牌县文化旅游广电体育局","√",null,"√",null,"√","■政府网站    □政府公报                                                                                                                                                                                                                □两微一端    □发布会/听证会                                                                                                                                                                                              □广播电视    □纸质媒体                                                                                                                                                                                                   □公开查阅点  ■政务服务中心                                                                                                                                                                                                    □便民服务站  □入户/现场                                                                                                                                                                                                   □社区/企事业单位/村公示栏\n（电子屏）                                                                                                                                                                                          □精准推送    □其他",null,"□政府网站    □政府公报                                                                                                                                                                                                                □两微一端    □发布会/听证会                                                                                                                                                                                              □广播电视    □纸质媒体                                                                                                                                                                                                   □公开查阅点  □政务服务中心                                                                                                                                                                                                    □便民服务站  □入户/现场                                                                                                                                                                                                   □社区/企事业单位/村公示栏\n（电子屏）                                                                                                                                                                                          □精准推送    □其他"]
[{"$nulls":4},"●主体信息；\n●案由；\n●处罚依据；\n●处罚结果。","行政处罚决定书",null,"决定作出之日起7个工作日内公开"]
[106,"行政\n处罚","擅自设立文艺表演团体、演出经纪机构或擅自从事或超范围从事营业性演出经营活动、变更营业性演出经营项目未向原发证机关申请换证的处罚","政务服务事项","●事项名称\n●设定依据\n●行政相对人权利\n●是否适用简易程序\n●结果送达方式\n●办理地点\n●办理机构\n●办理时间\n●联系电话\n●办理流程\n●自由裁量标准","擅自设立文艺表演团体、演出经纪机构或擅自从事或超范围从事营业性演出经营活动、变更营业性演出经营项目未向原发证机关申请换证的处罚 ","●《中华人民共和国政府信息公开条例》（中华人民共和国国务院令第711号）\n●《国务院关于促进市场公平竞争维护市场正常秩序的若干意见》（国发〔2014〕20号）\n●《国务院办公厅关于全面推行行政执法公示制度执法全过程记录制度重大执法决定法制审核制度的指导意见》（国办发〔2018〕118号）\n","  信息形成或者变更之日起20个工作日内","双牌县文化旅游广电体育局","√",null,"√",null,"√","■政府网站    □政府公报                                                                                                                                                                                                                □两微一端    □发布会/听证会                                                                                                                                                                                              □广播电视    □纸质媒体                                                                                                                                                                                                   □公开查阅点  ■政务服务中心                                                                                                                                                                                                    □便民服务站  □入户/现场                                                                                                                                                                                                   □社区/企事业单位/村公示栏\n（电子屏）                                                                                                                                                                                          □精准推送    □其他",null,"□政府网站    □政府公报                                                                                                                                                                                                                □两微一端    □发布会/听证会                                                                                                                                                                                              □广播电视    □纸质媒体                                                                                                                                                                                                   □公开查阅点  □政务服务中心                                                                                                                                                                                                    □便民服务站  □入户/现场                                                                                                                                                                                                   □社区/企事业单位/村公示栏\n（电子屏）                                                                                                                                                                                          □精准推送    □其他"]
[{"$nulls":4},"●主体信息；\n●案由；\n●处罚依据；\n●处罚结果。","行政处罚决定书",null,"决定作出之日起7个工作日内公开"]
[107,"行政\n处罚","演出举办单位拒不接受营业性演出现场检查的处罚","政务服务事项","●事项名称\n●设定依据\n●行政相对人权利\n●是否适用简易程序\n●结果送达方式\n●办理地点\n●办理机构\n●办理时间\n●联系电话\n●办理流程\n●自由裁量标准","演出举办单位拒不接受营业性演出现场检查的处罚 ","●《中华人民共和国政府信息公开条例》（中华人民共和国国务院令第711号）\n●《国务院关于促进市场公平竞争维护市场正常秩序的若干意见》（国发〔2014〕20号）\n●《国务院办公厅关于全面推行行政执法公示制度执法全过程记录制度重大执法决定法制审核制度的指导意见》（国办发〔2018〕118号）\n","  信息形成或者变更之日起20个工作日内","双牌县文化旅游广电体育局","√",null,"√",null,"√","■政府网站    □政府公报                                                                                                                                                                                                                □两微一端    □发布会/听证会                                                                                                                                                                                              □广播电视    □纸质媒体                                                                                                                                                                                                   □公开查阅点  ■政务服务中心                                                                                                                                                                                                    □便民服务站  □入户/现场                                                                                                                                                                                                   □社区/企事业单位/村公示栏\n（电子屏）                                                                                                                                                                                          □精准推送    □其他",null,"□政府网站    □政府公报                                                                                                                                                                                                                □两微一端    □发布会/听证会                                                                                                                                                                                              □广播电视    □纸质媒体                                                                                                                                                                                                   □公开查阅点  □政务服务中心                                                                                                                                                                                                    □便民服务站  □入户/现场                                                                                                                                                                                                   □社区/企事业单位/村公示栏\n（电子屏）                                                                                                                                                                                          □精准推送    □其他"]
[{"$nulls":4},"●主体信息；\n●案由；\n●处罚依据；\n●处罚结果。","行政处罚决定书",null,"决定作出之日起7个工作日内公开"]
[108,"行政\n处罚","对违规举办临时搭建舞台、看台营业性演出的处罚","政务服务事项","●事项名称\n●设定依据\n●行政相对人权利\n●是否适用简易程序\n●结果送达方式\n●办理地点\n●办理机构\n●办理时间\n●联系电话\n●办理流程\n●自由裁量标准","对违规举办临时搭建舞台、看台营业性演出的处罚 ","●《中华人民共和国政府信息公开条例》（中华人民共和国国务院令第711号）\n●《国务院关于促进市场公平竞争维护市场正常秩序的若干意见》（国发〔2014〕20号）\n●《国务院办公厅关于全面推行行政执法公示制度执法全过程记录制度重大执法决定法制审核制度的指导意见》（国办发〔2018〕118号）\n","  信息形成或者变更之日起20个工作日内","双牌县文化旅游广电体育局","√",null,"√",null,"√","■政府网站    □政府公报                                                                                                                                                                                                                □两微一端    □发布会/听证会                                                                                                                                                                                              □广播电视    □纸质媒体                                                                                                                                                                                                   □公开查阅点  ■政务服务中心                                                                                                                                                                                                    □便民服务站  □入户/现场                                                                                                                                                                                                   □社区/企事业单位/村公示栏\n（电子屏）                                                                                                                                                                                          □精准推送    □其他",null,"□政府网站    □政府公报                                                                                                                                                                                                                □两微一端    □发布会/听证会                                                                                                                                                                                              □广播电视    □纸质媒体                                                                                                                                                                                                   □公开查阅点  □政务服务中心                                                                                                                                                                                                    □便民服务站  □入户/现场                                                                                                                                                                                                   □社区/企事业单位/村公示栏\n（电子屏）                                                                                                                                                                                          □精准推送    □其他"]
[{"$nulls":4},"●主体信息；\n●案由；\n●处罚依据；\n●处罚结果。","行政处罚决定书",null,"决定作出之日起7个工作日内公开"]
[109,"行政\n处罚","对擅自在文物保护单位的保护范围内进行建设工程或者爆破、钻探、挖掘等作业的行为进行处罚","政务服务事项","●事项名称\n●设定依据\n●行政相对人权利\n●是否适用简易程序\n●结果送达方式\n●办理地点\n●办理机构\n●办理时间\n●联系电话\n●办理流程\n●自由裁量标准","对擅自在文物保护单位的保护范围内进行建设工程或者爆破、钻探、挖掘等作业的行为进行处罚 ","●《中华人民共和国政府信息公开条例》（中华人民共和国国务院令第711号）\n●《国务院关于促进市场公平竞争维护市场正常秩序的若干意见》（国发〔2014〕20号）\n●《国务院办公厅关于全面推行行政执法公示制度执法全过程记录制度重大执法决定法制审核制度的指导意见》（国办发〔2018〕118号）\n","  信息形成或者变更之日起20个工作日内","双牌县文化旅游广电体育局","√",null,"√",null,"√","■政府网站    □政府公报                                                                                                                                                                                                                □两微一端    □发布会/听证会                                                                                                                                                                                              □广播电视    □纸质媒体                                                                                                                                                                                                   □公开查阅点  ■政务服务中心                                                                                                                                                                                                    □便民服务站  □入户/现场                                                                                                                                                                                                   □社区/企事业单位/村公示栏\n（电子屏）                                                                                                                                                                                          □精准推送    □其他",null,"□政府网站    □政府公报                                                                                                                                                                                                                □两微一端    □发布会/听证会                                                                                                                                                                                              □广播电视    □纸质媒体                                                                                                                                                                                                   □公开查阅点  □政务服务中心                                                                                                                                                                                                    □便民服务站  □入户/现场                                                                                                                                                                                                   □社区/企事业单位/村公示栏\n（电子屏）                                                                                                                                                                                          □精准推送    □其他"]
[{"$nulls":4},"●主体信息；\n●案由；\n●处罚依据；\n●处罚结果。","行政处罚决定书",null,"决定作出之日起7个工作日内公开"]
[110,"行政\n处罚","对在文物保护单位的建设控制地带内进行建设工程，其工程设计方案未经文物行政部门同意、报城乡建设规划部门批准，对文物保护单位的历史风貌造成破坏的行为进行处罚","政务服务事项","●事项名称\n●设定依据\n●行政相对人权利\n●是否适用简易程序\n●结果送达方式\n●办理地点\n●办理机构\n●办理时间\n●联系电话\n●办理流程\n●自由裁量标准","对在文物保护单位的建设控制地带内进行建设工程，其工程设计方案未经文物行政部门同意、报城乡建设规划部门批准，对文物保护单位的历史风貌造成破坏的行为进行处罚 ","●《中华人民共和国政府信息公开条例》（中华人民共和国国务院令第711号）\n●《国务院关于促进市场公平竞争维护市场正常秩序的若干意见》（国发〔2014〕20号）\n●《国务院办公厅关于全面推行行政执法公示制度执法全过程记录制度重大执法决定法制审核制度的指导意见》（国办发〔2018〕118号）\n","  信息形成或者变更之日起20个工作日内","双牌县文化旅游广电体育局","√",null,"√",null,"√","■政府网站    □政府公报                                                                                                                                                                                                                □两微一端    □发布会/听证会                                                                                                                                                                                              □广播电视    □纸质媒体                                                                                                                                                                                                   □公开查阅点  ■政务服务中心                                                                                                                                                                                                    □便民服务站  □入户/现场                                                                                                                                                                                                   □社区/企事业单位/村公示栏\n（电子屏）                                                                                                                                                                                          □精准推送    □其他",null,"□政府网站    □政府公报                                                                                                                                                                                                                □两微一端    □发布会/听证会                                                                                                                                                                                              □广播电视    □纸质媒体                                                                                                                                                                                                   □公开查阅点  □政务服务中心                                                                                                                                                                                                    □便民服务站  □入户/现场                                                                                                                                                                                                   □社区/企事业单位/村公示栏\n（电子屏）                                                                                                                                                                                          □精准推送    □其他"]
[{"$nulls":4},"●主体信息；\n●案由；\n●处罚依据；\n●处罚结果。","行政处罚决定书",null,"决定作出之日起7个工作日内公开"]
[111,"行政\n处罚","对擅自迁移、拆除不可移动文物的行为进行处罚","政务服务事项","●事项名称\n●设定依据\n●行政相对人权利\n●是否适用简易程序\n●结果送达方式\n●办理地点\n●办理机构\n●办理时间\n●联系电话\n●办理流程\n●自由裁量标准","对擅自迁移、拆除不可移动文物的行为进行处罚 ","●《中华人民共和国政府信息公开条例》（中华人民共和国国务院令第711号）\n●《国务院关于促进市场公平竞争维护市场正常秩序的若干意见》（国发〔2014〕20号）\n●《国务院办公厅关于全面推行行政执法公示制度执法全过程记录制度重大执法决定法制审核制度的指导意见》（国办发〔2018〕118号）\n","  信息形成或者变更之日起20个工作日内","双牌县文化旅游广电体育局","√",null,"√",null,"√","■政府网站    □政府公报                                                                                                                                                                                                                □两微一端    □发布会/听证会                                                                                                                                                                                              □广播电视    □纸质媒体                                                                                                                                                                                                   □公开查阅点  ■政务服务中心                                                                                                                                                                                                    □便民服务站  □入户/现场                                                                                                                                                                                                   □社区/企事业单位/村公示栏\n（电子屏）                                                                                                                                                                                          □精准推送    □其他",null,"□政府网站    □政府公报                                                                                                                                                                                                                □两微一端    □发布会/听证会                                                                                                                                                                                              □广播电视    □纸质媒体                                                                                                                                                                                                   □公开查阅点  □政务服务中心                                                                                                                                                                                                    □便民服务站  □入户/现场                                                                                                                                                                                                   □社区/企事业单位/村公示栏\n（电子屏）                                                                                                                                                                                          □精准推送    □其他"]
[{"$nulls":4},"●主体信息；\n●案由；\n●处罚依据；\n●处罚结果。","行政处罚决定书",null,"决定作出之日起7个工作日内公开"]
[112,"行政\n处罚","对擅自修缮不可移动文物，明显改变文物原状的行为进行处罚","政务服务事项","●事项名称\n●设定依据\n●行政相对人权利\n●是否适用简易程序\n●结果送达方式\n●办理地点\n●办理机构\n●办理时间\n●联系电话\n●办理流程\n●自由裁量标准","对擅自修缮不可移动文物，明显改变文物原状\n的行为进行处罚 ","●《中华人民共和国政府信息公开条例》（中华人民共和国国务院令第711号）\n●《国务院关于促进市场公平竞争维护市场正常秩序的若干意见》（国发〔2014〕20号）\n●《国务院办公厅关于全面推行行政执法公示制度执法全过程记录制度重大执法决定法制审核制度的指导意见》（国办发〔2018〕118号）\n","  信息形成或者变更之日起20个工作日内","双牌县文化旅游广电体育局","√",null,"√",null,"√","■政府网站    □政府公报                                                                                                                                                                                                                □两微一端    □发布会/听证会                                                                                                                                                                                              □广播电视    □纸质媒体                                                                                                                                                                                                   □公开查阅点  ■政务服务中心                                                                                                                                                                                                    □便民服务站  □入户/现场                                                                                                                                                                                                   □社区/企事业单位/村公示栏\n（电子屏）                                                                                                                                                                                          □精准推送    □其他",null,"□政府网站    □政府公报                                                                                                                                                                                                                □两微一端    □发布会/听证会                                                                                                                                                                                              □广播电视    □纸质媒体                                                                                                                                                                                                   □公开查阅点  □政务服务中心                                                                                                                                                                                                    □便民服务站  □入户/现场                                                                                                                                                                                                   □社区/企事业单位/村公示栏\n（电子屏）                                                                                                                                                                                          □精准推送    □其他"]
[{"$nulls":4},"●主体信息；\n●案由；\n●处罚依据；\n●处罚结果。","行政处罚决定书",null,"决定作出之日起7个工作日内公开"]
[113,"行政\n处罚","对擅自在原址重建已全部毁坏的不可移动文物，造成文物破坏的行为进行处罚","政务服务事项","●事项名称\n●设定依据\n●行政相对人权利\n●是否适用简易程序\n●结果送达方式\n●办理地点\n●办理机构\n●办理时间\n●联系电话\n●办理流程\n●自由裁量标准","对擅自在原址重建已全部毁坏的不可移动文物，造成文物破坏的行为进行处罚 ","●《中华人民共和国政府信息公开条例》（中华人民共和国国务院令第711号）\n●《国务院关于促进市场公平竞争维护市场正常秩序的若干意见》（国发〔2014〕20号）\n●《国务院办公厅关于全面推行行政执法公示制度执法全过程记录制度重大执法决定法制审核制度的指导意见》（国办发〔2018〕118号）\n","  信息形成或者变更之日起20个工作日内","双牌县文化旅游广电体育局","√",null,"√",null,"√","■政府网站    □政府公报                                                                                                                                                                                                                □两微一端    □发布会/听证会                                                                                                                                                                                              □广播电视    □纸质媒体                                                                                                                                                                                                   □公开查阅点  ■政务服务中心                                                                                                                                                                                                    □便民服务站  □入户/现场                                                                                                                                                                                                   □社区/企事业单位/村公示栏\n（电子屏）                                                                                                                                                                                          □精准推送    □其他",null,"□政府网站    □政府公报                                                                                                                                                                                                                □两微一端    □发布会/听证会                                                                                                                                                                                              □广播电视    □纸质媒体                                                                                                                                                                                                   □公开查阅点  □政务服务中心                                                                                                                                                                                                    □便民服务站  □入户/现场                                                                                                                                                                                                   □社区/企事业单位/村公示栏\n（电子屏）                                                                                                                                                                                          □精准推送    □其他"]
[{"$nulls":4},"●主体信息；\n●案由；\n●处罚依据；\n●处罚结果。","行政处罚决定书",null,"决定作出之日起7个工作日内公开"]
[114,"行政\n处罚","对施工单位未取得文物保护工程资质证书，擅自从事文物修缮、迁移、重建的行为进行处罚","政务服务事项","●事项名称\n●设定依据\n●行政相对人权利\n●是否适用简易程序\n●结果送达方式\n●办理地点\n●办理机构\n●办理时间\n●联系电话\n●办理流程\n●自由裁量标准","对施工单位未取得文物保护工程资质证书，擅自从事文物修缮、迁移、重建的行为进行处罚 ","●《中华人民共和国政府信息公开条例》（中华人民共和国国务院令第711号）\n●《国务院关于促进市场公平竞争维护市场正常秩序的若干意见》（国发〔2014〕20号）\n●《国务院办公厅关于全面推行行政执法公示制度执法全过程记录制度重大执法决定法制审核制度的指导意见》（国办发〔2018〕118号）\n","  信息形成或者变更之日起20个工作日内","双牌县文化旅游广电体育局","√",null,"√",null,"√","■政府网站    □政府公报                                                                                                                                                                                                                □两微一端    □发布会/听证会                                                                                                                                                                                              □广播电视    □纸质媒体                                                                                                                                                                                                   □公开查阅点  ■政务服务中心                                                                                                                                                                                                    □便民服务站  □入户/现场                                                                                                                                                                                                   □社区/企事业单位/村公示栏\n（电子屏）                                                                                                                                                                                          □精准推送    □其他",null,"□政府网站    □政府公报                                                                                                                                                                                                                □两微一端    □发布会/听证会                                                                                                                                                                                              □广播电视    □纸质媒体                                                                                                                                                                                                   □公开查阅点  □政务服务中心                                                                                                                                                                                                    □便民服务站  □入户/现场                                                                                                                                                                                                   □社区/企事业单位/村公示栏\n（电子屏）                                                                                                                                                                                          □精准推送    □其他"]
[{"$nulls":4},"●主体信息；\n●案由；\n●处罚依据；\n●处罚结果。","行政处罚决定书",null,"决定作出之日起7个工作日内公开"]
[115,"行政\n处罚","对转让或者抵押国有不可移动文物的行为进行处罚","政务服务事项","●事项名称\n●设定依据\n●行政相对人权利\n●是否适用简易程序\n●结果送达方式\n●办理地点\n●办理机构\n●办理时间\n●联系电话\n●办理流程\n●自由裁量标准","对转让或者抵押国有不可移动文物的行为进行处罚 ","●《中华人民共和国政府信息公开条例》（中华人民共和国国务院令第711号）\n●《国务院关于促进市场公平竞争维护市场正常秩序的若干意见》（国发〔2014〕20号）\n●《国务院办公厅关于全面推行行政执法公示制度执法全过程记录制度重大执法决定法制审核制度的指导意见》（国办发〔2018〕118号）\n","  信息形成或者变更之日起20个工作日内","双牌县文化旅游广电体育局","√",null,"√",null,"√","■政府网站    □政府公报                                                                                                                                                                                                                □两微一端    □发布会/听证会                                                                                                                                                                                              □广播电视    □纸质媒体                                                                                                                                                                                                   □公开查阅点  ■政务服务中心                                                                                                                                                                                                    □便民服务站  □入户/现场                                                                                                                                                                                                   □社区/企事业单位/村公示栏\n（电子屏）                                                                                                                                                                                          □精准推送    □其他",null,"□政府网站    □政府公报                                                                                                                                                                                                                □两微一端    □发布会/听证会                                                                                                                                                                                              □广播电视    □纸质媒体                                                                                                                                                                                                   □公开查阅点  □政务服务中心                                                                                                                                                                                                    □便民服务站  □入户/现场                                                                                                                                                                                                   □社区/企事业单位/村公示栏\n（电子屏）                                                                                                                                                                                          □精准推送    □其他"]
[{"$nulls":4},"●主体信息；\n●案由；\n●处罚依据；\n●处罚结果。","行政处罚决定书",null,"决定作出之日起7个工作日内公开"]
[116,"行政\n处罚","对将国有不可移动文物作为企业资产经营的行为进行处罚","政务服务事项","●事项名称\n●设定依据\n●行政相对人权利\n●是否适用简易程序\n●结果送达方式\n●办理地点\n●办理机构\n●办理时间\n●联系电话\n●办理流程\n●自由裁量标准","对将国有不可移动文物作为企业资产经营的行为进行处罚 ","●《中华人民共和国政府信息公开条例》（中华人民共和国国务院令第711号）\n●《国务院关于促进市场公平竞争维护市场正常秩序的若干意见》（国发〔2014〕20号）\n●《国务院办公厅关于全面推行行政执法公示制度执法全过程记录制度重大执法决定法制审核制度的指导意见》（国办发〔2018〕118号）\n","  信息形成或者变更之日起20个工作日内","双牌县文化旅游广电体育局","√",null,"√",null,"√","■政府网站    □政府公报                                                                                                                                                                                                                □两微一端    □发布会/听证会                                                                                                                                                                                              □广播电视    □纸质媒体                                                                                                                                                                                                   □公开查阅点  ■政务服务中心                                                                                                                                                                                                    □便民服务站  □入户/现场                                                                                                                                                                                                   □社区/企事业单位/村公示栏\n（电子屏）                                                                                                                                                                                          □精准推送    □其他",null,"□政府网站    □政府公报                                                                                                                                                                                                                □两微一端    □发布会/听证会                                                                                                                                                                                              □广播电视    □纸质媒体                                                                                                                                                                                                   □公开查阅点  □政务服务中心                                                                                                                                                                                                    □便民服务站  □入户/现场                                                                                                                                                                                                   □社区/企事业单位/村公示栏\n（电子屏）                                                                                                                                                                                          □精准推送    □其他"]
[{"$nulls":4},"●主体信息；\n●案由；\n●处罚依据；\n●处罚结果。","行政处罚决定书",null,"决定作出之日起7个工作日内公开"]
[117,"行政\n处罚","对将非国有不可移动文物转让或者抵押给外国人的行为进行处罚","政务服务事项","●事项名称\n●设定依据\n●行政相对人权利\n●是否适用简易程序\n●结果送达方式\n●办理地点\n●办理机构\n●办理时间\n●联系电话\n●办理流程\n●自由裁量标准","对将非国有不可移动文物转让或者抵押给外国人的行为进行处罚 ","●《中华人民共和国政府信息公开条例》（中华人民共和国国务院令第711号）\n●《国务院关于促进市场公平竞争维护市场正常秩序的若干意见》（国发〔2014〕20号）\n●《国务院办公厅关于全面推行行政执法公示制度执法全过程记录制度重大执法决定法制审核制度的指导意见》（国办发〔2018〕118号）\n","  信息形成或者变更之日起20个工作日内","双牌县文化旅游广电体育局","√",null,"√",null,"√","■政府网站    □政府公报                                                                                                                                                                                                                □两微一端    □发布会/听证会                                                                                                                                                                                              □广播电视    □纸质媒体                                                                                                                                                                                                   □公开查阅点  ■政务服务中心                                                                                                                                                                                                    □便民服务站  □入户/现场                                                                                                                                                                                                   □社区/企事业单位/村公示栏\n（电子屏）                                                                                                                                                                                          □精准推送    □其他",null,"□政府网站    □政府公报                                                                                                                                                                                                                □两微一端    □发布会/听证会                                                                                                                                                                                              □广播电视    □纸质媒体                                                                                                                                                                                                   □公开查阅点  □政务服务中心                                                                                                                                                                                                    □便民服务站  □入户/现场                                                                                                                                                                                                   □社区/企事业单位/村公示栏\n（电子屏）                                                                                                                                                                                          □精准推送    □其他"]
[{"$nulls":4},"●主体信息；\n●案由；\n●处罚依据；\n●处罚结果。","行政处罚决定书",null,"决定作出之日起7个工作日内公开"]
[118,"行政\n处罚","对擅自改变国有文物保护单位用途的行为进行处罚","政务服务事项","●事项名称\n●设定依据\n●行政相对人权利\n●是否适用简易程序\n●结果送达方式\n●办理地点\n●办理机构\n●办理时间\n●联系电话\n●办理流程\n●自由裁量标准","对擅自改变国有文物保护单位用途的行为进行处罚 ","●《中华人民共和国政府信息公开条例》（中华人民共和国国务院令第711号）\n●《国务院关于促进市场公平竞争维护市场正常秩序的若干意见》（国发〔2014〕20号）\n●《国务院办公厅关于全面推行行政执法公示制度执法全过程记录制度重大执法决定法制审核制度的指导意见》（国办发〔2018〕118号）\n","  信息形成或者变更之日起20个工作日内","双牌县文化旅游广电体育局","√",null,"√",null,"√","■政府网站    □政府公报                                                                                                                                                                                                                □两微一端    □发布会/听证会                                                                                                                                                                                              □广播电视    □纸质媒体                                                                                                                                                                                                   □公开查阅点  ■政务服务中心                                                                                                                                                                                                    □便民服务站  □入户/现场                                                                                                                                                                                                   □社区/企事业单位/村公示栏\n（电子屏）                                                                                                                                                                                          □精准推送    □其他",null,"□政府网站    □政府公报                                                                                                                                                                                                                □两微一端    □发布会/听证会                                                                                                                                                                                              □广播电视    □纸质媒体                                                                                                                                                                                                   □公开查阅点  □政务服务中心                                                                                                                                                                                                    □便民服务站  □入户/现场                                                                                                                                                                                                   □社区/企事业单位/村公示栏\n（电子屏）                                                                                                                                                                                          □精准推送    □其他"]
[{"$nulls":4},"●主体信息；\n●案由；\n●处罚依据；\n●处罚结果。","行政处罚决定书",null,"决定作出之日起7个工作日内公开"]
[119,"行政\n处罚","对文物收藏单位未按照国家有关规定配备防火、防盗、防自然损坏的设施的行为进行处罚","政务服务事项","●事项名称\n●设定依据\n●行政相对人权利\n●是否适用简易程序\n●结果送达方式\n●办理地点\n●办理机构\n●办理时间\n●联系电话\n●办理流程\n●自由裁量标准","对文物收藏单位未按照国家有关规定配备防火、防盗、防自然损坏的设施的行为进行处罚 ","●《中华人民共和国政府信息公开条例》（中华人民共和国国务院令第711号）\n●《国务院关于促进市场公平竞争维护市场正常秩序的若干意见》（国发〔2014〕20号）\n●《国务院办公厅关于全面推行行政执法公示制度执法全过程记录制度重大执法决定法制审核制度的指导意见》（国办发〔2018〕118号）\n","  信息形成或者变更之日起20个工作日内","双牌县文化旅游广电体育局","√",null,"√",null,"√","■政府网站    □政府公报                                                                                                                                                                                                                □两微一端    □发布会/听证会                                                                                                                                                                                              □广播电视    □纸质媒体                                                                                                                                                                                                   □公开查阅点  ■政务服务中心                                                                                                                                                                                                    □便民服务站  □入户/现场                                                                                                                                                                                                   □社区/企事业单位/村公示栏\n（电子屏）                                                                                                                                                                                          □精准推送    □其他",null,"□政府网站    □政府公报                                                                                                                                                                                                                □两微一端    □发布会/听证会                                                                                                                                                                                              □广播电视    □纸质媒体                                                                                                                                                                                                   □公开查阅点  □政务服务中心                                                                                                                                                                                                    □便民服务站  □入户/现场                                                                                                                                                                                                   □社区/企事业单位/村公示栏\n（电子屏）                                                                                                                                                                                          □精准推送    □其他"]
[{"$nulls":4},"●主体信息；\n●案由；\n●处罚依据；\n●处罚结果。","行政处罚决定书",null,"决定作出之日起7个工作日内公开"]
[120,"行政\n处罚","对国有文物收藏单位法定代表人离任时未按照馆藏文物档案移交馆藏文物，或者所移交的馆藏文物与馆藏文物档案不符的行为进行处罚","政务服务事项","●事项名称\n●设定依据\n●行政相对人权利\n●是否适用简易程序\n●结果送达方式\n●办理地点\n●办理机构\n●办理时间\n●联系电话\n●办理流程\n●自由裁量标准","对国有文物收藏单位法定代表人离任时未按照馆藏文物档案移交馆藏文物，或者所移交的馆藏文物与馆藏文物档案不符的行为进行处罚 ","●《中华人民共和国政府信息公开条例》（中华人民共和国国务院令第711号）\n●《国务院关于促进市场公平竞争维护市场正常秩序的若干意见》（国发〔2014〕20号）\n●《国务院办公厅关于全面推行行政执法公示制度执法全过程记录制度重大执法决定法制审核制度的指导意见》（国办发〔2018〕118号）\n","  信息形成或者变更之日起20个工作日内","双牌县文化旅游广电体育局","√",null,"√",null,"√","■政府网站    □政府公报                                                                                                                                                                                                                □两微一端    □发布会/听证会                                                                                                                                                                                              □广播电视    □纸质媒体                                                                                                                                                                                                   □公开查阅点  ■政务服务中心                                                                                                                                                                                                    □便民服务站  □入户/现场                                                                                                                                                                                                   □社区/企事业单位/村公示栏\n（电子屏）                                                                                                                                                                                          □精准推送    □其他",null,"□政府网站    □政府公报                                                                                                                                                                                                                □两微一端    □发布会/听证会                                                                                                                                                                                              □广播电视    □纸质媒体                                                                                                                                                                                                   □公开查阅点  □政务服务中心                                                                                                                                                                                                    □便民服务站  □入户/现场                                                                                                                                                                                                   □社区/企事业单位/村公示栏\n（电子屏）                                                                                                                                                                                          □精准推送    □其他"]
[{"$nulls":4},"●主体信息；\n●案由；\n●处罚依据；\n●处罚结果。","行政处罚决定书",null,"决定作出之日起7个工作日内公开"]
[121,"行政\n处罚","对将国有馆藏文物赠与、出租或者出售给其他单位、个人的行为进行处罚","政务服务事项","●事项名称\n●设定依据\n●行政相对人权利\n●是否适用简易程序\n●结果送达方式\n●办理地点\n●办理机构\n●办理时间\n●联系电话\n●办理流程\n●自由裁量标准","对将国有馆藏文物赠与、出租或者出售给其他单位、个人的行为进行处罚 ","●《中华人民共和国政府信息公开条例》（中华人民共和国国务院令第711号）\n●《国务院关于促进市场公平竞争维护市场正常秩序的若干意见》（国发〔2014〕20号）\n●《国务院办公厅关于全面推行行政执法公示制度执法全过程记录制度重大执法决定法制审核制度的指导意见》（国办发〔2018〕118号）\n","  信息形成或者变更之日起20个工作日内","双牌县文化旅游广电体育局","√",null,"√",null,"√","■政府网站    □政府公报                                                                                                                                                                                                                □两微一端    □发布会/听证会                                                                                                                                                                                              □广播电视    □纸质媒体                                                                                                                                                                                                   □公开查阅点  ■政务服务中心                                                                                                                                                                                                    □便民服务站  □入户/现场                                                                                                                                                                                                   □社区/企事业单位/村公示栏\n（电子屏）                                                                                                                                                                                          □精准推送    □其他",null,"□政府网站    □政府公报                                                                                                                                                                                                                □两微一端    □发布会/听证会                                                                                                                                                                                              □广播电视    □纸质媒体                                                                                                                                                                                                   □公开查阅点  □政务服务中心                                                                                                                                                                                                    □便民服务站  □入户/现场                                                                                                                                                                                                   □社区/企事业单位/村公示栏\n（电子屏）                                                                                                                                                                                          □精准推送    □其他"]
[{"$nulls":4},"●主体信息；\n●案由；\n●处罚依据；\n●处罚结果。","行政处罚决定书",null,"决定作出之日起7个工作日内公开"]
[122,"行政\n处罚","对违法借用、交换、处置国有馆藏文物的行为进行处罚","政务服务事项","●事项名称\n●设定依据\n●行政相对人权利\n●是否适用简易程序\n●结果送达方式\n●办理地点\n●办理机构\n●办理时间\n●联系电话\n●办理流程\n●自由裁量标准","对违法借用、交换、处置国有馆藏文物的行为进行处罚 ","●《中华人民共和国政府信息公开条例》（中华人民共和国国务院令第711号）\n●《国务院关于促进市场公平竞争维护市场正常秩序的若干意见》（国发〔2014〕20号）\n●《国务院办公厅关于全面推行行政执法公示制度执法全过程记录制度重大执法决定法制审核制度的指导意见》（国办发〔2018〕118号）\n","  信息形成或者变更之日起20个工作日内","双牌县文化旅游广电体育局","√",null,"√",null,"√","■政府网站    □政府公报                                                                                                                                                                                                                □两微一端    □发布会/听证会                                                                                                                                                                                              □广播电视    □纸质媒体                                                                                                                                                                                                   □公开查阅点  ■政务服务中心                                                                                                                                                                                                    □便民服务站  □入户/现场                                                                                                                                                                                                   □社区/企事业单位/村公示栏\n（电子屏）                                                                                                                                                                                          □精准推送    □其他",null,"□政府网站    □政府公报                                                                                                                                                                                                                □两微一端    □发布会/听证会                                                                                                                                                                                              □广播电视    □纸质媒体                                                                                                                                                                                                   □公开查阅点  □政务服务中心                                                                                                                                                                                                    □便民服务站  □入户/现场                                                                                                                                                                                                   □社区/企事业单位/村公示栏\n（电子屏）                                                                                                                                                                                          □精准推送    □其他"]
[{"$nulls":4},"●主体信息；\n●案由；\n●处罚依据；\n●处罚结果。","行政处罚决定书",null,"决定作出之日起7个工作日内公开"]
[123,"行政\n处罚","对违法挪用或者侵占依法调拨、交换、出借文物所得补偿费用的行为进行处罚","政务服务事项","●事项名称\n●设定依据\n●行政相对人权利\n●是否适用简易程序\n●结果送达方式\n●办理地点\n●办理机构\n●办理时间\n●联系电话\n●办理流程\n●自由裁量标准","对违法挪用或者侵占依法调拨、交换、出借文物所得补偿费用的行为进行处罚 ","●《中华人民共和国政府信息公开条例》（中华人民共和国国务院令第711号）\n●《国务院关于促进市场公平竞争维护市场正常秩序的若干意见》（国发〔2014〕20号）\n●《国务院办公厅关于全面推行行政执法公示制度执法全过程记录制度重大执法决定法制审核制度的指导意见》（国办发〔2018〕118号）\n","  信息形成或者变更之日起20个工作日内","双牌县文化旅游广电体育局","√",null,"√",null,"√","■政府网站    □政府公报                                                                                                                                                                                                                □两微一端    □发布会/听证会                                                                                                                                                                                              □广播电视    □纸质媒体                                                                                                                                                                                                   □公开查阅点  ■政务服务中心                                                                                                                                                                                                    □便民服务站  □入户/现场                                                                                                                                                                                                   □社区/企事业单位/村公示栏\n（电子屏）                                                                                                                                                                                          □精准推送    □其他",null,"□政府网站    □政府公报                                                                                                                                                                                                                □两微一端    □发布会/听证会                                                                                                                                                                                              □广播电视    □纸质媒体                                                                                                                                                                                                   □公开查阅点  □政务服务中心                                                                                                                                                                                                    □便民服务站  □入户/现场                                                                                                                                                                                                   □社区/企事业单位/村公示栏\n（电子屏）                                                                                                                                                                                          □精准推送    □其他"]
[{"$nulls":4},"●主体信息；\n●案由；\n●处罚依据；\n●处罚结果。","行政处罚决定书",null,"决定作出之日起7个工作日内公开"]
[124,"行政\n处罚","对发现文物隐匿不报，或者拒不上交的行为进行处罚","政务服务事项","●事项名称\n●设定依据\n●行政相对人权利\n●是否适用简易程序\n●结果送达方式\n●办理地点\n●办理机构\n●办理时间\n●联系电话\n●办理流程\n●自由裁量标准","对发现文物隐匿不报，或者拒不上交的行为进行处罚 ","●《中华人民共和国政府信息公开条例》（中华人民共和国国务院令第711号）\n●《国务院关于促进市场公平竞争维护市场正常秩序的若干意见》（国发〔2014〕20号）\n●《国务院办公厅关于全面推行行政执法公示制度执法全过程记录制度重大执法决定法制审核制度的指导意见》（国办发〔2018〕118号）\n","  信息形成或者变更之日起20个工作日内","双牌县文化旅游广电体育局","√",null,"√",null,"√","■政府网站    □政府公报                                                                                                                                                                                                                □两微一端    □发布会/听证会                                                                                                                                                                                              □广播电视    □纸质媒体                                                                                                                                                                                                   □公开查阅点  ■政务服务中心                                                                                                                                                                                                    □便民服务站  □入户/现场                                                                                                                                                                                                   □社区/企事业单位/村公示栏\n（电子屏）                                                                                                                                                                                          □精准推送    □其他",null,"□政府网站    □政府公报                                                                                                                                                                                                                □两微一端    □发布会/听证会                                                                                                                                                                                              □广播电视    □纸质媒体                                                                                                                                                                                                   □公开查阅点  □政务服务中心                                                                                                                                                                                                    □便民服务站  □入户/现场                                                                                                                                                                                                   □社区/企事业单位/村公示栏\n（电子屏）                                                                                                                                                                                          □精准推送    □其他"]
[{"$nulls":4},"●主体信息；\n●案由；\n●处罚依据；\n●处罚结果。","行政处罚决定书",null,"决定作出之日起7个工作日内公开"]
[125,"行政\n处罚","对未按照规定移交拣选文物的行为进行处罚","政务服务事项","●事项名称\n●设定依据\n●行政相对人权利\n●是否适用简易程序\n●结果送达方式\n●办理地点\n●办理机构\n●办理时间\n●联系电话\n●办理流程\n●自由裁量标准","对未按照规定移交拣选文物的行为进行处罚 ","●《中华人民共和国政府信息公开条例》（中华人民共和国国务院令第711号）\n●《国务院关于促进市场公平竞争维护市场正常秩序的若干意见》（国发〔2014〕20号）\n●《国务院办公厅关于全面推行行政执法公示制度执法全过程记录制度重大执法决定法制审核制度的指导意见》（国办发〔2018〕118号）\n","  信息形成或者变更之日起20个工作日内","双牌县文化旅游广电体育局","√",null,"√",null,"√","■政府网站    □政府公报                                                                                                                                                                                                                □两微一端    □发布会/听证会                                                                                                                                                                                              □广播电视    □纸质媒体                                                                                                                                                                                                   □公开查阅点  ■政务服务中心                                                                                                                                                                                                    □便民服务站  □入户/现场                                                                                                                                                                                                   □社区/企事业单位/村公示栏\n（电子屏）                                                                                                                                                                                          □精准推送    □其他",null,"□政府网站    □政府公报                                                                                                                                                                                                                □两微一端    □发布会/听证会                                                                                                                                                                                              □广播电视    □纸质媒体                                                                                                                                                                                                   □公开查阅点  □政务服务中心                                                                                                                                                                                                    □便民服务站  □入户/现场                                                                                                                                                                                                   □社区/企事业单位/村公示栏\n（电子屏）                                                                                                                                                                                          □精准推送    □其他"]
[{"$nulls":4},"●主体信息；\n●案由；\n●处罚依据；\n●处罚结果。","行政处罚决定书",null,"决定作出之日起7个工作日内公开"]
[126,"行政\n处罚","对未取得相应等级的文物保护工程资质证书，擅自承担文物保护单位的修缮、迁移、重建工程逾期不改正，或者造成严重后果的行为进行处罚","政务服务事项","●事项名称\n●设定依据\n●行政相对人权利\n●是否适用简易程序\n●结果送达方式\n●办理地点\n●办理机构\n●办理时间\n●联系电话\n●办理流程\n●自由裁量标准","对未取得相应等级的文物保护工程资质证书，擅自承担文物保护单位的修缮、迁移、重建工程逾期不改正，或者造成严重后果的行为进行处罚 ","●《中华人民共和国政府信息公开条例》（中华人民共和国国务院令第711号）\n●《国务院关于促进市场公平竞争维护市场正常秩序的若干意见》（国发〔2014〕20号）\n●《国务院办公厅关于全面推行行政执法公示制度执法全过程记录制度重大执法决定法制审核制度的指导意见》（国办发〔2018〕118号）\n","  信息形成或者变更之日起20个工作日内","双牌县文化旅游广电体育局","√",null,"√",null,"√","■政府网站    □政府公报                                                                                                                                                                                                                □两微一端    □发布会/听证会                                                                                                                                                                                              □广播电视    □纸质媒体                                                                                                                                                                                                   □公开查阅点  ■政务服务中心                                                                                                                                                                                                    □便民服务站  □入户/现场                                                                                                                                                                                                   □社区/企事业单位/村公示栏\n（电子屏）                                                                                                                                                                                          □精准推送    □其他",null,"□政府网站    □政府公报                                                                                                                                                                                                                □两微一端    □发布会/听证会                                                                                                                                                                                              □广播电视    □纸质媒体                                                                                                                                                                                                   □公开查阅点  □政务服务中心                                                                                                                                                                                                    □便民服务站  □入户/现场                                                                                                                                                                                                   □社区/企事业单位/村公示栏\n（电子屏）                                                                                                                                                                                          □精准推送    □其他"]
[{"$nulls":4},"●主体信息；\n●案由；\n●处罚依据；\n●处罚结果。","行政处罚决定书",null,"决定作出之日起7个工作日内公开"]
[127,"行政\n处罚","对未取得资质证书，擅自从事馆藏文物的修复、复制、拓印活动的行为进行处罚","政务服务事项","●事项名称\n●设定依据\n●行政相对人权利\n●是否适用简易程序\n●结果送达方式\n●办理地点\n●办理机构\n●办理时间\n●联系电话\n●办理流程\n●自由裁量标准","对未取得资质证书，擅自从事馆藏文物的修复、复制、拓印活动的行为进行处罚 ","●《中华人民共和国政府信息公开条例》（中华人民共和国国务院令第711号）\n●《国务院关于促进市场公平竞争维护市场正常秩序的若干意见》（国发〔2014〕20号）\n●《国务院办公厅关于全面推行行政执法公示制度执法全过程记录制度重大执法决定法制审核制度的指导意见》（国办发〔2018〕118号）\n","  信息形成或者变更之日起20个工作日内","双牌县文化旅游广电体育局","√",null,"√",null,"√","■政府网站    □政府公报                                                                                                                                                                                                                □两微一端    □发布会/听证会                                                                                                                                                                                              □广播电视    □纸质媒体                                                                                                                                                                                                   □公开查阅点  ■政务服务中心                                                                                                                                                                                                    □便民服务站  □入户/现场                                                                                                                                                                                                   □社区/企事业单位/村公示栏\n（电子屏）                                                                                                                                                                                          □精准推送    □其他",null,"□政府网站    □政府公报                                                                                                                                                                                                                □两微一端    □发布会/听证会                                                                                                                                                                                              □广播电视    □纸质媒体                                                                                                                                                                                                   □公开查阅点  □政务服务中心                                                                                                                                                                                                    □便民服务站  □入户/现场                                                                                                                                                                                                   □社区/企事业单位/村公示栏\n（电子屏）                                                                                                                                                                                          □精准推送    □其他"]
[{"$nulls":4},"●主体信息；\n●案由；\n●处罚依据；\n●处罚结果。","行政处罚决定书",null,"决定作出之日起7个工作日内公开"]
[128,"行政\n处罚","对擅自修复、复制、拓印馆藏珍贵文物的行为进行处罚","政务服务事项","●事项名称\n●设定依据\n●行政相对人权利\n●是否适用简易程序\n●结果送达方式\n●办理地点\n●办理机构\n●办理时间\n●联系电话\n●办理流程\n●自由裁量标准","对擅自修复、复制、拓印馆藏珍贵文物的行为进行处罚 ","●《中华人民共和国政府信息公开条例》（中华人民共和国国务院令第711号）\n●《国务院关于促进市场公平竞争维护市场正常秩序的若干意见》（国发〔2014〕20号）\n●《国务院办公厅关于全面推行行政执法公示制度执法全过程记录制度重大执法决定法制审核制度的指导意见》（国办发〔2018〕118号）\n","  信息形成或者变更之日起20个工作日内","双牌县文化旅游广电体育局","√",null,"√",null,"√","■政府网站    □政府公报                                                                                                                                                                                                                □两微一端    □发布会/听证会                                                                                                                                                                                              □广播电视    □纸质媒体                                                                                                                                                                                                   □公开查阅点  ■政务服务中心                                                                                                                                                                                                    □便民服务站  □入户/现场                                                                                                                                                                                                   □社区/企事业单位/村公示栏\n（电子屏）                                                                                                                                                                                          □精准推送    □其他",null,"□政府网站    □政府公报                                                                                                                                                                                                                □两微一端    □发布会/听证会                                                                                                                                                                                              □广播电视    □纸质媒体                                                                                                                                                                                                   □公开查阅点  □政务服务中心                                                                                                                                                                                                    □便民服务站  □入户/现场                                                                                                                                                                                                   □社区/企事业单位/村公示栏\n（电子屏）                                                                                                                                                                                          □精准推送    □其他"]
[{"$nulls":4},"●主体信息；\n●案由；\n●处罚依据；\n●处罚结果。","行政处罚决定书",null,"决定作出之日起7个工作日内公开"]
[129,"行政\n强制","违反规定擅自从事互联网上网服务经营活动的查封、扣押","政务服务事项","●事项名称\n●设定依据\n●行政相对人权利\n●是否适用简易程序\n●结果送达方式\n●办理地点\n●办理机构\n●办理时间\n●联系电话\n●办理流程\n●自由裁量标准","违反规定擅自从事互联网上网服务经营活动的查封、扣押 ","●《中华人民共和国政府信息公开条例》（中华人民共和国国务院令第711号）\n●《国务院关于促进市场公平竞争维护市场正常秩序的若干意见》（国发〔2014〕20号）\n●《国务院办公厅关于全面推行行政执法公示制度执法全过程记录制度重大执法决定法制审核制度的指导意见》（国办发〔2018〕118号）\n","  信息形成或变更之日起20个工作日内公开","双牌县文化旅游广电体育局","√",null,"√",null,"√","■政府网站    □政府公报                                                                                                                                                                                                                □两微一端    □发布会/听证会                                                                                                                                                                                              □广播电视    □纸质媒体                                                                                                                                                                                                   □公开查阅点  ■政务服务中心                                                                                                                                                                                                    □便民服务站  □入户/现场                                                                                                                                                                                                   □社区/企事业单位/村公示栏\n（电子屏）                                                                                                                                                                                          □精准推送    □其他",null,"□政府网站    □政府公报                                                                                                                                                                                                                □两微一端    □发布会/听证会                                                                                                                                                                                              □广播电视    □纸质媒体                                                                                                                                                                                                   □公开查阅点  □政务服务中心                                                                                                                                                                                                    □便民服务站  □入户/现场                                                                                                                                                                                                   □社区/企事业单位/村公示栏\n（电子屏）                                                                                                                                                                                          □精准推送    □其他"]
[{"$nulls":4},"●主体信息；\n●案由；\n●处罚依据；\n●处罚结果。","查封（扣押）决定书"]
[130,"行政检查","对艺术考级活动的监督检查","政务服务事项","●事项名称\n●办理机构\n●设定依据\n●行政相对人权利\n●检查对象\n●检查事项\n●结果送达方式\n●办理地点\n●办理机构\n●办理时间\n●联系电话\n●办理流程","对艺术考级活动的监督检查 ","●《中华人民共和国政府信息公开条例》（中华人民共和国国务院令第711号）","  信息形成或变更之日起20个工作日内公开","双牌县文化旅游广电体育局","√",null,"√",null,"√","■政府网站    □政府公报                                                                                                                                                                                                                □两微一端    □发布会/听证会                                                                                                                                                                                              □广播电视    □纸质媒体                                                                                                                                                                                                   □公开查阅点  ■政务服务中心                                                                                                                                                                                                    □便民服务站  □入户/现场                                                                                                                                                                                                   □社区/企事业单位/村公示栏\n（电子屏）                                                                                                                                                                                          □精准推送    □其他",null,"□政府网站    □政府公报                                                                                                                                                                                                                □两微一端    □发布会/听证会                                                                                                                                                                                              □广播电视    □纸质媒体                                                                                                                                                                                                   □公开查阅点  □政务服务中心                                                                                                                                                                                                    □便民服务站  □入户/现场                                                                                                                                                                                                   □社区/企事业单位/村公示栏\n（电子屏）                                                                                                                                                                                          □精准推送    □其他"]
[131,"行政检查","对娱乐场所经营活动、文化产品内容的检查","政务服务事项","●事项名称\n●办理机构\n●设定依据\n●行政相对人权利\n●检查对象\n●检查事项\n●结果送达方式\n●办理地点\n●办理机构\n●办理时间\n●联系电话\n●办理流程","对娱乐场所经营活动、文化产品内容的检查 ","●《中华人民共和国政府信息公开条例》（中华人民共和国国务院令第711号）","  信息形成或变更之日起20个工作日内公开","双牌县文化旅游广电体育局","√",null,"√",null,"√","■政府网站    □政府公报                                                                                                                                                                                                                □两微一端    □发布会/听证会                                                                                                                                                                                              □广播电视    □纸质媒体                                                                                                                                                                                                   □公开查阅点  ■政务服务中心                                                                                                                                                                                                    □便民服务站  □入户/现场                                                                                                                                                                                                   □社区/企事业单位/村公示栏\n（电子屏）                                                                                                                                                                                          □精准推送    □其他",null,"□政府网站    □政府公报                                                                                                                                                                                                                □两微一端    □发布会/听证会                                                                                                                                                                                              □广播电视    □纸质媒体                                                                                                                                                                                                   □公开查阅点  □政务服务中心                                                                                                                                                                                                    □便民服务站  □入户/现场                                                                                                                                                                                                   □社区/企事业单位/村公示栏\n（电子屏）                                                                                                                                                                                          □精准推送    □其他"]
[132,"行政检查","公共文化体育设施、公共文化体育设施管理单位收支的监督检查","政务服务事项","●事项名称\n●办理机构\n●设定依据\n●行政相对人权利\n●检查对象\n●检查事项\n●结果送达方式\n●办理地点\n●办理机构\n●办理时间\n●联系电话\n●办理流程","公共文化体育设施、公共文化体育设施管理单位收支的监督检查 ","●《中华人民共和国政府信息公开条例》（中华人民共和国国务院令第711号）","  信息形成或变更之日起20个工作日内公开","双牌县文化旅游广电体育局","√",null,"√",null,"√","■政府网站    □政府公报                                                                                                                                                                                                                □两微一端    □发布会/听证会                                                                                                                                                                                              □广播电视    □纸质媒体                                                                                                                                                                                                   □公开查阅点  ■政务服务中心                                                                                                                                                                                                    □便民服务站  □入户/现场                                                                                                                                                                                                   □社区/企事业单位/村公示栏\n（电子屏）                                                                                                                                                                                          □精准推送    □其他",null,"□政府网站    □政府公报                                                                                                                                                                                                                □两微一端    □发布会/听证会                                                                                                                                                                                              □广播电视    □纸质媒体                                                                                                                                                                                                   □公开查阅点  □政务服务中心                                                                                                                                                                                                    □便民服务站  □入户/现场                                                                                                                                                                                                   □社区/企事业单位/村公示栏\n（电子屏）                                                                                                                                                                                          □精准推送    □其他"]
[133,"行政检查","艺术品经营单位的监督检查","政务服务事项","●事项名称\n●办理机构\n●设定依据\n●行政相对人权利\n●检查对象\n●检查事项\n●结果送达方式\n●办理地点\n●办理机构\n●办理时间\n●联系电话\n●办理流程","艺术品经营单位的监督检查 ","●《中华人民共和国政府信息公开条例》（中华人民共和国国务院令第711号）","  信息形成或变更之日起20个工作日内公开","双牌县文化旅游广电体育局","√",null,"√",null,"√","■政府网站    □政府公报                                                                                                                                                                                                                □两微一端    □发布会/听证会                                                                                                                                                                                              □广播电视    □纸质媒体                                                                                                                                                                                                   □公开查阅点  ■政务服务中心                                                                                                                                                                                                    □便民服务站  □入户/现场                                                                                                                                                                                                   □社区/企事业单位/村公示栏\n（电子屏）                                                                                                                                                                                          □精准推送    □其他",null,"□政府网站    □政府公报                                                                                                                                                                                                                □两微一端    □发布会/听证会                                                                                                                                                                                              □广播电视    □纸质媒体                                                                                                                                                                                                   □公开查阅点  □政务服务中心                                                                                                                                                                                                    □便民服务站  □入户/现场                                                                                                                                                                                                   □社区/企事业单位/村公示栏\n（电子屏）                                                                                                                                                                                          □精准推送    □其他"]
[134,"行政检查","对外国的或者港澳台地区的文艺表演团体、个人参加的营业性演出和临时搭建舞台、看台的营业性演出的实地检查；对其他营业性演出的抽样检查","政务服务事项","●事项名称\n●办理机构\n●设定依据\n●行政相对人权利\n●检查对象\n●检查事项\n●结果送达方式\n●办理地点\n●办理机构\n●办理时间\n●联系电话\n●办理流程","对外国的或者港澳台地区的文艺表演团体、个人参加的营业性演出和临时搭建舞台、看台的营业性演出的实地检查；对其他营业性演出的抽样检查 ","●《中华人民共和国政府信息公开条例》（中华人民共和国国务院令第711号）","  信息形成或变更之日起20个工作日内公开",{"$f":"$I$10","v":"双牌县文化旅游广电体育局"},"√",null,"√",null,"√","■政府网站    □政府公报                                                                                                                                                                                                                □两微一端    □发布会/听证会                                                                                                                                                                                              □广播电视    □纸质媒体                                                                                                                                                                                                   □公开查阅点  ■政务服务中心                                                                                                                                                                                                    □便民服务站  □入户/现场                                                                                                                                                                                                   □社区/企事业单位/村公示栏\n（电子屏）                                                                                                                                                                                          □精准推送    □其他",null,"□政府网站    □政府公报                                                                                                                                                                                                                □两微一端    □发布会/听证会                                                                                                                                                                                              □广播电视    □纸质媒体                                                                                                                                                                                                   □公开查阅点  □政务服务中心                                                                                                                                                                                                    □便民服务站  □入户/现场                                                                                                                                                                                                   □社区/企事业单位/村公示栏\n（电子屏）                                                                                                                                                                                          □精准推送    □其他"]
[135,"行政检查","互联网文化活动的监督检查","政务服务事项","●事项名称\n●办理机构\n●设定依据\n●行政相对人权利\n●检查对象\n●检查事项\n●结果送达方式\n●办理地点\n●办理机构\n●办理时间\n●联系电话\n●办理流程","互联网文化活动的监督检查 ","●《中华人民共和国政府信息公开条例》（中华人民共和国国务院令第711号）","  信息形成或变更之日起20个工作日内公开","双牌县文化旅游广电体育局","√",null,"√",null,"√","■政府网站    □政府公报                                                                                                                                                                                                                □两微一端    □发布会/听证会                                                                                                                                                                                              □广播电视    □纸质媒体                                                                                                                                                                                                   □公开查阅点  ■政务服务中心                                                                                                                                                                                                    □便民服务站  □入户/现场                                                                                                                                                                                                   □社区/企事业单位/村公示栏\n（电子屏）                                                                                                                                                                                          □精准推送    □其他",null,"□政府网站    □政府公报                                                                                                                                                                                                                □两微一端    □发布会/听证会                                                                                                                                                                                              □广播电视    □纸质媒体                                                                                                                                                                                                   □公开查阅点  □政务服务中心                                                                                                                                                                                                    □便民服务站  □入户/现场                                                                                                                                                                                                   □社区/企事业单位/村公示栏\n（电子屏）                                                                                                                                                                                          □精准推送    □其他"]
[136,"行政检查","互联网上网服务营业场所经营单位经营活动的监督检查","政务服务事项","●事项名称\n●办理机构\n●设定依据\n●行政相对人权利\n●检查对象\n●检查事项\n●结果送达方式\n●办理地点\n●办理机构\n●办理时间\n●联系电话\n●办理流程","互联网上网服务营业场所经营单位经营活动的监督检查 ","●《中华人民共和国政府信息公开条例》（中华人民共和国国务院令第711号）","  信息形成或变更之日起20个工作日内公开","双牌县文化旅游广电体育局","√",null,"√",null,"√","■政府网站    □政府公报                                                                                                                                                                                                                □两微一端    □发布会/听证会                                                                                                                                                                                              □广播电视    □纸质媒体                                                                                                                                                                                                   □公开查阅点  ■政务服务中心                                                                                                                                                                                                    □便民服务站  □入户/现场                                                                                                                                                                                                   □社区/企事业单位/村公示栏\n（电子屏）                                                                                                                                                                                          □精准推送    □其他",null,"□政府网站    □政府公报                                                                                                                                                                                                                □两微一端    □发布会/听证会                                                                                                                                                                                              □广播电视    □纸质媒体                                                                                                                                                                                                   □公开查阅点  □政务服务中心                                                                                                                                                                                                    □便民服务站  □入户/现场                                                                                                                                                                                                   □社区/企事业单位/村公示栏\n（电子屏）                                                                                                                                                                                          □精准推送    □其他"]
[137,"行政检查","对歌舞娱乐场所使用的歌曲点播系统和游艺娱乐场所使用的游戏游艺设备的内容的核查","政务服务事项","●事项名称\n●办理机构\n●设定依据\n●行政相对人权利\n●检查对象\n●检查事项\n●结果送达方式\n●办理地点\n●办理机构\n●办理时间\n●联系电话\n●办理流程","对歌舞娱乐场所使用的歌曲点播系统和游艺娱乐场所使用的游戏游艺设备的内容的核查 ","●《中华人民共和国政府信息公开条例》（中华人民共和国国务院令第711号）","  信息形成或变更之日起20个工作日内公开","双牌县文化旅游广电体育局","√",null,"√",null,"√","■政府网站    □政府公报                                                                                                                                                                                                                □两微一端    □发布会/听证会                                                                                                                                                                                              □广播电视    □纸质媒体                                                                                                                                                                                                   □公开查阅点  ■政务服务中心                                                                                                                                                                                                    □便民服务站  □入户/现场                                                                                                                                                                                                   □社区/企事业单位/村公示栏\n（电子屏）                                                                                                                                                                                          □精准推送    □其他",null,"□政府网站    □政府公报                                                                                                                                                                                                                □两微一端    □发布会/听证会                                                                                                                                                                                              □广播电视    □纸质媒体                                                                                                                                                                                                   □公开查阅点  □政务服务中心                                                                                                                                                                                                    □便民服务站  □入户/现场                                                                                                                                                                                                   □社区/企事业单位/村公示栏\n（电子屏）                                                                                                                                                                                          □精准推送    □其他"]
[138,"行政检查","对营业性演出活动的监督检查","政务服务事项","●事项名称\n●办理机构\n●设定依据\n●行政相对人权利\n●检查对象\n●检查事项\n●结果送达方式\n●办理地点\n●办理机构\n●办理时间\n●联系电话\n●办理流程","对营业性演出活动的监督检查 ","●《中华人民共和国政府信息公开条例》（中华人民共和国国务院令第711号）","  信息形成或变更之日起20个工作日内公开","双牌县文化旅游广电体育局","√",null,"√",null,"√","■政府网站    □政府公报                                                                                                                                                                                                                □两微一端    □发布会/听证会                                                                                                                                                                                              □广播电视    □纸质媒体                                                                                                                                                                                                   □公开查阅点  ■政务服务中心                                                                                                                                                                                                    □便民服务站  □入户/现场                                                                                                                                                                                                   □社区/企事业单位/村公示栏\n（电子屏）                                                                                                                                                                                          □精准推送    □其他",null,"□政府网站    □政府公报                                                                                                                                                                                                                □两微一端    □发布会/听证会                                                                                                                                                                                              □广播电视    □纸质媒体                                                                                                                                                                                                   □公开查阅点  □政务服务中心                                                                                                                                                                                                    □便民服务站  □入户/现场                                                                                                                                                                                                   □社区/企事业单位/村公示栏\n（电子屏）                                                                                                                                                                                          □精准推送    □其他"]
[139,"行政检查","网络游戏的监督检查","政务服务事项","●事项名称\n●办理机构\n●设定依据\n●行政相对人权利\n●检查对象\n●检查事项\n●结果送达方式\n●办理地点\n●办理机构\n●办理时间\n●联系电话\n●办理流程","网络游戏的监督检查 ","●《中华人民共和国政府信息公开条例》（中华人民共和国国务院令第711号）","  信息形成或变更之日起20个工作日内公开","双牌县文化旅游广电体育局","√",null,"√",null,"√","■政府网站    □政府公报                                                                                                                                                                                                                □两微一端    □发布会/听证会                                                                                                                                                                                              □广播电视    □纸质媒体                                                                                                                                                                                                   □公开查阅点  ■政务服务中心                                                                                                                                                                                                    □便民服务站  □入户/现场                                                                                                                                                                                                   □社区/企事业单位/村公示栏\n（电子屏）                                                                                                                                                                                          □精准推送    □其他",null,"□政府网站    □政府公报                                                                                                                                                                                                                □两微一端    □发布会/听证会                                                                                                                                                                                              □广播电视    □纸质媒体                                                                                                                                                                                                   □公开查阅点  □政务服务中心                                                                                                                                                                                                    □便民服务站  □入户/现场                                                                                                                                                                                                   □社区/企事业单位/村公示栏\n（电子屏）                                                                                                                                                                                          □精准推送    □其他"]
[140,"行政确认","对非遗代表性项目名录进行认定","政务服务事项","●事项名称\n●设定依据\n●申请条件\n●办理材料\n●办理地点\n●办理机构\n●收费标准\n●办理时间\n●联系电话\n●办理流程","对非遗代表性项目名录进行认定 （办事指南）","●《中华人民共和国政府信息公开条例》（中华人民共和国国务院令第711号）","  信息形成或变更之日起20个工作日内公开","双牌县文化旅游广电体育局","√",null,"√",null,"√","■政府网站    □政府公报                                                                                                                                                                                                                □两微一端    □发布会/听证会                                                                                                                                                                                              □广播电视    □纸质媒体                                                                                                                                                                                                   □公开查阅点  ■政务服务中心                                                                                                                                                                                                    □便民服务站  □入户/现场                                                                                                                                                                                                   □社区/企事业单位/村公示栏\n（电子屏）                                                                                                                                                                                          □精准推送    □其他",null,"□政府网站    □政府公报                                                                                                                                                                                                                □两微一端    □发布会/听证会                                                                                                                                                                                              □广播电视    □纸质媒体                                                                                                                                                                                                   □公开查阅点  □政务服务中心                                                                                                                                                                                                    □便民服务站  □入户/现场                                                                                                                                                                                                   □社区/企事业单位/村公示栏\n（电子屏）                                                                                                                                                                                          □精准推送    □其他"]
[141,"行政确认","对非物质文化遗产代表性传承人的组织推荐评审认定","政务服务事项","●事项名称\n●设定依据\n●申请条件\n●办理材料\n●办理地点\n●办理机构\n●收费标准\n●办理时间\n●联系电话\n●办理流程","对非物质文化遗产代表性传承人的组织推荐评审认定 （办事指南）","●《中华人民共和国政府信息公开条例》（中华人民共和国国务院令第711号）","  信息形成或变更之日起20个工作日内公开","双牌县文化旅游广电体育局","√",null,"√",null,"√","■政府网站    □政府公报                                                                                                                                                                                                                □两微一端    □发布会/听证会                                                                                                                                                                                              □广播电视    □纸质媒体                                                                                                                                                                                                   □公开查阅点  ■政务服务中心                                                                                                                                                                                                    □便民服务站  □入户/现场                                                                                                                                                                                                   □社区/企事业单位/村公示栏\n（电子屏）                                                                                                                                                                                          □精准推送    □其他",null,"□政府网站    □政府公报                                                                                                                                                                                                                □两微一端    □发布会/听证会                                                                                                                                                                                              □广播电视    □纸质媒体                                                                                                                                                                                                   □公开查阅点  □政务服务中心                                                                                                                                                                                                    □便民服务站  □入户/现场                                                                                                                                                                                                   □社区/企事业单位/村公示栏\n（电子屏）                                                                                                                                                                                          □精准推送    □其他"]
[142,"行政确认","文物的认定","政务服务事项","●事项名称\n●设定依据\n●申请条件\n●办理材料\n●办理地点\n●办理机构\n●收费标准\n●办理时间\n●联系电话\n●办理流程","文物的认定 （办事指南）","●《中华人民共和国政府信息公开条例》（中华人民共和国国务院令第711号）","  信息形成或变更之日起20个工作日内公开","双牌县文化旅游广电体育局","√",null,"√",null,"√","■政府网站    □政府公报                                                                                                                                                                                                                □两微一端    □发布会/听证会                                                                                                                                                                                              □广播电视    □纸质媒体                                                                                                                                                                                                   □公开查阅点  ■政务服务中心                                                                                                                                                                                                    □便民服务站  □入户/现场                                                                                                                                                                                                   □社区/企事业单位/村公示栏\n（电子屏）                                                                                                                                                                                          □精准推送    □其他",null,"□政府网站    □政府公报                                                                                                                                                                                                                □两微一端    □发布会/听证会                                                                                                                                                                                              □广播电视    □纸质媒体                                                                                                                                                                                                   □公开查阅点  □政务服务中心                                                                                                                                                                                                    □便民服务站  □入户/现场                                                                                                                                                                                                   □社区/企事业单位/村公示栏\n（电子屏）                                                                                                                                                                                          □精准推送    □其他"]
[143,"行政确认","对尚未核定公布为文物保护单位的不可移动文物的登记","政务服务事项","●事项名称\n●设定依据\n●申请条件\n●办理材料\n●办理地点\n●办理机构\n●收费标准\n●办理时间\n●联系电话\n●办理流程","对尚未核定公布为文物保护单位的不可移动文物的登记 （办事指南）","●《中华人民共和国政府信息公开条例》（中华人民共和国国务院令第711号）","  信息形成或变更之日起20个工作日内公开","双牌县文化旅游广电体育局","√",null,"√",null,"√","■政府网站    □政府公报                                                                                                                                                                                                                □两微一端    □发布会/听证会                                                                                                                                                                                              □广播电视    □纸质媒体                                                                                                                                                                                                   □公开查阅点  ■政务服务中心                                                                                                                                                                                                    □便民服务站  □入户/现场                                                                                                                                                                                                   □社区/企事业单位/村公示栏\n（电子屏）                                                                                                                                                                                          □精准推送    □其他",null,"□政府网站    □政府公报                                                                                                                                                                                                                □两微一端    □发布会/听证会                                                                                                                                                                                              □广播电视    □纸质媒体                                                                                                                                                                                                   □公开查阅点  □政务服务中心                                                                                                                                                                                                    □便民服务站  □入户/现场                                                                                                                                                                                                   □社区/企事业单位/村公示栏\n（电子屏）                                                                                                                                                                                          □精准推送    □其他"]
[144,"其他行政权力","艺术品经营单位备案","政务服务事项","●事项名称\n●设定依据\n●申请条件\n●办理材料\n●办理地点\n●办理机构\n●收费标准\n●办理时间\n●联系电话\n●办理流程","艺术品经营单位备案 （办事指南）","●《中华人民共和国政府信息公开条例》（中华人民共和国国务院令第711号）","  信息形成或变更之日起20个工作日内公开","双牌县文化旅游广电体育局","√",null,"√",null,"√","■政府网站    □政府公报                                                                                                                                                                                                                □两微一端    □发布会/听证会                                                                                                                                                                                              □广播电视    □纸质媒体                                                                                                                                                                                                   □公开查阅点  ■政务服务中心                                                                                                                                                                                                    □便民服务站  □入户/现场                                                                                                                                                                                                   □社区/企事业单位/村公示栏\n（电子屏）                                                                                                                                                                                          □精准推送    □其他",null,"□政府网站    □政府公报                                                                                                                                                                                                                □两微一端    □发布会/听证会                                                                                                                                                                                              □广播电视    □纸质媒体                                                                                                                                                                                                   □公开查阅点  □政务服务中心                                                                                                                                                                                                    □便民服务站  □入户/现场                                                                                                                                                                                                   □社区/企事业单位/村公示栏\n（电子屏）                                                                                                                                                                                          □精准推送    □其他"]
[{"$nulls":4},"●行政许可决定 ","办件公示（双牌县政务服务网）"]
[145,"其他行政权力","营业性演出个体演员、个体演出经纪人的备案","政务服务事项","●事项名称\n●设定依据\n●申请条件\n●办理材料\n●办理地点\n●办理机构\n●收费标准\n●办理时间\n●联系电话\n●办理流程","营业性演出个体演员、个体演出经纪人的备案 （办事指南）","●《中华人民共和国政府信息公开条例》（中华人民共和国国务院令第711号）","  信息形成或变更之日起20个工作日内公开","双牌县文化旅游广电体育局","√",null,"√",null,"√","■政府网站    □政府公报                                                                                                                                                                                                                □两微一端    □发布会/听证会                                                                                                                                                                                              □广播电视    □纸质媒体                                                                                                                                                                                                   □公开查阅点  ■政务服务中心                                                                                                                                                                                                    □便民服务站  □入户/现场                                                                                                                                                                                                   □社区/企事业单位/村公示栏\n（电子屏）                                                                                                                                                                                          □精准推送    □其他",null,"□政府网站    □政府公报                                                                                                                                                                                                                □两微一端    □发布会/听证会                                                                                                                                                                                              □广播电视    □纸质媒体                                                                                                                                                                                                   □公开查阅点  □政务服务中心                                                                                                                                                                                                    □便民服务站  □入户/现场                                                                                                                                                                                                   □社区/企事业单位/村公示栏\n（电子屏）                                                                                                                                                                                          □精准推送    □其他"]
[{"$nulls":4},"●行政许可决定 ","办件公示（双牌县政务服务网）"]
[146,"其他行政权力","演出场所经营单位的备案","政务服务事项","●事项名称\n●设定依据\n●申请条件\n●办理材料\n●办理地点\n●办理机构\n●收费标准\n●办理时间\n●联系电话\n●办理流程","演出场所经营单位的备案 （办事指南）","●《中华人民共和国政府信息公开条例》（中华人民共和国国务院令第711号）","  信息形成或变更之日起20个工作日内公开","双牌县文化旅游广电体育局","√",null,"√",null,"√","■政府网站    □政府公报                                                                                                                                                                                                                □两微一端    □发布会/听证会                                                                                                                                                                                              □广播电视    □纸质媒体                                                                                                                                                                                                   □公开查阅点  ■政务服务中心                                                                                                                                                                                                    □便民服务站  □入户/现场                                                                                                                                                                                                   □社区/企事业单位/村公示栏\n（电子屏）                                                                                                                                                                                          □精准推送    □其他",null,"□政府网站    □政府公报                                                                                                                                                                                                                □两微一端    □发布会/听证会                                                                                                                                                                                              □广播电视    □纸质媒体                                                                                                                                                                                                   □公开查阅点  □政务服务中心                                                                                                                                                                                                    □便民服务站  □入户/现场                                                                                                                                                                                                   □社区/企事业单位/村公示栏\n（电子屏）                                                                                                                                                                                          □精准推送    □其他"]
[{"$nulls":4},"●行政许可决定 ","办件公示（双牌县政务服务网）"]
[147,"其他行政权力","文物商店购销文物和拍卖企业拍卖文物记录的备案","政务服务事项","●事项名称\n●设定依据\n●申请条件\n●办理材料\n●办理地点\n●办理机构\n●收费标准\n●办理时间\n●联系电话\n●办理流程","文物商店购销文物和拍卖企业拍卖文物记录的备案 （办事指南）","●《中华人民共和国政府信息公开条例》（中华人民共和国国务院令第711号）","  信息形成或变更之日起20个工作日内公开","双牌县文化旅游广电体育局","√",null,"√",null,"√","■政府网站    □政府公报                                                                                                                                                                                                                □两微一端    □发布会/听证会                                                                                                                                                                                              □广播电视    □纸质媒体                                                                                                                                                                                                   □公开查阅点  ■政务服务中心                                                                                                                                                                                                    □便民服务站  □入户/现场                                                                                                                                                                                                   □社区/企事业单位/村公示栏\n（电子屏）                                                                                                                                                                                          □精准推送    □其他",null,"□政府网站    □政府公报                                                                                                                                                                                                                □两微一端    □发布会/听证会                                                                                                                                                                                              □广播电视    □纸质媒体                                                                                                                                                                                                   □公开查阅点  □政务服务中心                                                                                                                                                                                                    □便民服务站  □入户/现场                                                                                                                                                                                                   □社区/企事业单位/村公示栏\n（电子屏）                                                                                                                                                                                          □精准推送    □其他"]
[{"$nulls":4},"●行政许可决定 ","办件公示（双牌县政务服务网）"]
[148,"其他行政权力","文化类社会团体设立前置审查","政务服务事项","●事项名称\n●设定依据\n●申请条件\n●办理材料\n●办理地点\n●办理机构\n●收费标准\n●办理时间\n●联系电话\n●办理流程","文化类社会团体设立前置审查 （办事指南）","●《中华人民共和国政府信息公开条例》（中华人民共和国国务院令第711号）","  信息形成或变更之日起20个工作日内公开","双牌县文化旅游广电体育局","√",null,"√",null,"√","■政府网站    □政府公报                                                                                                                                                                                                                □两微一端    □发布会/听证会                                                                                                                                                                                              □广播电视    □纸质媒体                                                                                                                                                                                                   □公开查阅点  ■政务服务中心                                                                                                                                                                                                    □便民服务站  □入户/现场                                                                                                                                                                                                   □社区/企事业单位/村公示栏\n（电子屏）                                                                                                                                                                                          □精准推送    □其他",null,"□政府网站    □政府公报                                                                                                                                                                                                                □两微一端    □发布会/听证会                                                                                                                                                                                              □广播电视    □纸质媒体                                                                                                                                                                                                   □公开查阅点  □政务服务中心                                                                                                                                                                                                    □便民服务站  □入户/现场                                                                                                                                                                                                   □社区/企事业单位/村公示栏\n（电子屏）                                                                                                                                                                                          □精准推送    □其他"]
[{"$nulls":4},"●行政许可决定 ","办件公示（双牌县政务服务网）"]
[149,"其他行政权力","对公共文化体育设施的名称、地址、服务项目等内容的备案","政务服务事项","●事项名称\n●设定依据\n●申请条件\n●办理材料\n●办理地点\n●办理机构\n●收费标准\n●办理时间\n●联系电话\n●办理流程","对公共文化体育设施的名称、地址、服务项目等内容的备案 （办事指南）","●《中华人民共和国政府信息公开条例》（中华人民共和国国务院令第711号）","  信息形成或变更之日起20个工作日内公开","双牌县文化旅游广电体育局","√",null,"√",null,"√","■政府网站    □政府公报                                                                                                                                                                                                                □两微一端    □发布会/听证会                                                                                                                                                                                              □广播电视    □纸质媒体                                                                                                                                                                                                   □公开查阅点  ■政务服务中心                                                                                                                                                                                                    □便民服务站  □入户/现场                                                                                                                                                                                                   □社区/企事业单位/村公示栏\n（电子屏）                                                                                                                                                                                          □精准推送    □其他",null,"□政府网站    □政府公报                                                                                                                                                                                                                □两微一端    □发布会/听证会                                                                                                                                                                                              □广播电视    □纸质媒体                                                                                                                                                                                                   □公开查阅点  □政务服务中心                                                                                                                                                                                                    □便民服务站  □入户/现场                                                                                                                                                                                                   □社区/企事业单位/村公示栏\n（电子屏）                                                                                                                                                                                          □精准推送    □其他"]
[{"$nulls":4},"●行政许可决定 "]
[150,"其他行政权力","尚未核定公布为文物保护单位的不可移动文物迁移或拆除审批","政务服务事项","●事项名称\n●设定依据\n●申请条件\n●办理材料\n●办理地点\n●办理机构\n●收费标准\n●办理时间\n●联系电话\n●办理流程","尚未核定公布为文物保护单位的不可移动文物迁移或拆除审批 （办事指南）","●《中华人民共和国政府信息公开条例》（中华人民共和国国务院令第711号）","  信息形成或变更之日起20个工作日内公开","双牌县文化旅游广电体育局","√",null,"√",null,"√","■政府网站    □政府公报                                                                                                                                                                                                                □两微一端    □发布会/听证会                                                                                                                                                                                              □广播电视    □纸质媒体                                                                                                                                                                                                   □公开查阅点  ■政务服务中心                                                                                                                                                                                                    □便民服务站  □入户/现场                                                                                                                                                                                                   □社区/企事业单位/村公示栏\n（电子屏）                                                                                                                                                                                          □精准推送    □其他",null,"□政府网站    □政府公报                                                                                                                                                                                                                □两微一端    □发布会/听证会                                                                                                                                                                                              □广播电视    □纸质媒体                                                                                                                                                                                                   □公开查阅点  □政务服务中心                                                                                                                                                                                                    □便民服务站  □入户/现场                                                                                                                                                                                                   □社区/企事业单位/村公示栏\n（电子屏）                                                                                                                                                                                          □精准推送    □其他"]
[{"$nulls":4},"●行政许可决定 ","办件公示（双牌县政务服务网）"]
[151,"其他行政权力","文物保护工程申报、审批、验收","政务服务事项","●事项名称\n●设定依据\n●申请条件\n●办理材料\n●办理地点\n●办理机构\n●收费标准\n●办理时间\n●联系电话\n●办理流程","文物保护工程申报、审批、验收 （办事指南）","●《中华人民共和国政府信息公开条例》（中华人民共和国国务院令第711号）","  信息形成或变更之日起20个工作日内公开","双牌县文化旅游广电体育局","√",null,"√",null,"√","■政府网站    □政府公报                                                                                                                                                                                                                □两微一端    □发布会/听证会                                                                                                                                                                                              □广播电视    □纸质媒体                                                                                                                                                                                                   □公开查阅点  ■政务服务中心                                                                                                                                                                                                    □便民服务站  □入户/现场                                                                                                                                                                                                   □社区/企事业单位/村公示栏\n（电子屏）                                                                                                                                                                                          □精准推送    □其他",null,"□政府网站    □政府公报                                                                                                                                                                                                                □两微一端    □发布会/听证会                                                                                                                                                                                              □广播电视    □纸质媒体                                                                                                                                                                                                   □公开查阅点  □政务服务中心                                                                                                                                                                                                    □便民服务站  □入户/现场                                                                                                                                                                                                   □社区/企事业单位/村公示栏\n（电子屏）                                                                                                                                                                                          □精准推送    □其他"]
[{"$nulls":4},"●行政许可决定 ","办件公示（双牌县政务服务网）"]
[152,"其他行政权力","国有文物收藏单位之间借出二级（含）以下馆藏文物备案","政务服务事项","●事项名称\n●设定依据\n●申请条件\n●办理材料\n●办理地点\n●办理机构\n●收费标准\n●办理时间\n●联系电话\n●办理流程","国有文物收藏单位之间借出二级（含）以下馆藏文物备案 （办事指南）","●《中华人民共和国政府信息公开条例》（中华人民共和国国务院令第711号）","  信息形成或变更之日起20个工作日内公开","双牌县文化旅游广电体育局","√",null,"√",null,"√","■政府网站    □政府公报                                                                                                                                                                                                                □两微一端    □发布会/听证会                                                                                                                                                                                              □广播电视    □纸质媒体                                                                                                                                                                                                   □公开查阅点  ■政务服务中心                                                                                                                                                                                                    □便民服务站  □入户/现场                                                                                                                                                                                                   □社区/企事业单位/村公示栏\n（电子屏）                                                                                                                                                                                          □精准推送    □其他",null,"□政府网站    □政府公报                                                                                                                                                                                                                □两微一端    □发布会/听证会                                                                                                                                                                                              □广播电视    □纸质媒体                                                                                                                                                                                                   □公开查阅点  □政务服务中心                                                                                                                                                                                                    □便民服务站  □入户/现场                                                                                                                                                                                                   □社区/企事业单位/村公示栏\n（电子屏）                                                                                                                                                                                          □精准推送    □其他"]
[{"$nulls":4},"●行政许可决定 ","办件公示（双牌县政务服务网）"]
[153,"公共服务","演艺惠民服务","政务服务事项","●活动时间；\n●活动单位；\n●活动地址；\n●联系电话；\n●临时停止活动信息。","2020年双牌县廖家村“水果节”演出活动 ","●《中华人民共和国政府信息公开条例》（中华人民共和国国务院令第711号）","  信息形成或变更之日起20个工作日内公开","双牌县文化旅游广电体育局","√",null,"√",null,"√","■政府网站    □政府公报                                                                                                                                                                                                                □两微一端    □发布会/听证会                                                                                                                                                                                              □广播电视    □纸质媒体                                                                                                                                                                                                   □公开查阅点  ■政务服务中心                                                                                                                                                                                                    □便民服务站  □入户/现场                                                                                                                                                                                                   □社区/企事业单位/村公示栏\n（电子屏）                                                                                                                                                                                          □精准推送    □其他",null,"□政府网站    □政府公报                                                                                                                                                                                                                □两微一端    □发布会/听证会                                                                                                                                                                                              □广播电视    □纸质媒体                                                                                                                                                                                                   □公开查阅点  □政务服务中心                                                                                                                                                                                                    □便民服务站  □入户/现场                                                                                                                                                                                                   □社区/企事业单位/村公示栏\n（电子屏）                                                                                                                                                                                          □精准推送    □其他"]
[154,"公共服务","文化和自然遗产日活动","政务服务事项","●活动时间；\n●活动单位；\n●活动地址；\n●联系电话；\n●临时停止活动信息。","《双牌县2020年非物质文化遗产进景区工作方案》","●《中华人民共和国政府信息公开条例》（中华人民共和国国务院令第711号）","  信息形成或变更之日起20个工作日内公开","双牌县文化旅游广电体育局","√",null,"√",null,"√","■政府网站    □政府公报                                                                                                                                                                                                                □两微一端    □发布会/听证会                                                                                                                                                                                              □广播电视    □纸质媒体                                                                                                                                                                                                   □公开查阅点  ■政务服务中心                                                                                                                                                                                                    □便民服务站  □入户/现场                                                                                                                                                                                                   □社区/企事业单位/村公示栏\n（电子屏）                                                                                                                                                                                          □精准推送    □其他",null,"□政府网站    □政府公报                                                                                                                                                                                                                □两微一端    □发布会/听证会                                                                                                                                                                                              □广播电视    □纸质媒体                                                                                                                                                                                                   □公开查阅点  □政务服务中心                                                                                                                                                                                                    □便民服务站  □入户/现场                                                                                                                                                                                                   □社区/企事业单位/村公示栏\n（电子屏）                                                                                                                                                                                          □精准推送    □其他"]
[155,"公共服务","公共图书馆设施免费开放","政务服务事项","●机构名称；\n●开放时间；\n●机构地址；\n●联系电话；\n●临时停止开放信息。","双牌县图书馆","●《公共文化服务保障法》（中华人民共和国主席令第六十号）\n●《中华人民共和国政府信息公开条例》（中华人民共和国国务院令第711号）\n●《文化部   财政部关于推进全国美术馆公共图书馆文化馆（站）免费开放工作的意见》（文财务发〔2011〕5号）\n●《文化部 财政部关于做好城市社区(街道)文化中心免费开放工作的通知》（文财务发〔2011〕5号）","  信息形成或变更之日起20个工作日内公开","双牌县文化旅游广电体育局","√",null,"√",null,"√","■政府网站    □政府公报                                                                                                                                                                                                                □两微一端    □发布会/听证会                                                                                                                                                                                              □广播电视    □纸质媒体                                                                                                                                                                                                   □公开查阅点  ■政务服务中心                                                                                                                                                                                                    □便民服务站  □入户/现场                                                                                                                                                                                                   □社区/企事业单位/村公示栏\n（电子屏）                                                                                                                                                                                          □精准推送    □其他",null,"□政府网站    □政府公报                                                                                                                                                                                                                □两微一端    □发布会/听证会                                                                                                                                                                                              □广播电视    □纸质媒体                                                                                                                                                                                                   □公开查阅点  □政务服务中心                                                                                                                                                                                                    □便民服务站  □入户/现场                                                                                                                                                                                                   □社区/企事业单位/村公示栏\n（电子屏）                                                                                                                                                                                          □精准推送    □其他"]
[156,"公共服务","公共文化馆设施免费开放","政务服务事项","●机构名称；\n●开放时间；\n●机构地址；\n●联系电话；\n●临时停止开放信息。","双牌县文化馆","●《公共文化服务保障法》（中华人民共和国主席令第六十号）\n●《中华人民共和国政府信息公开条例》（中华人民共和国国务院令第711号）\n●《文化部   财政部关于推进全国美术馆公共图书馆文化馆（站）免费开放工作的意见》（文财务发〔2011〕5号）\n●《文化部 财政部关于做好城市社区(街道)文化中心免费开放工作的通知》（文财务发〔2011〕5号）","  信息形成或变更之日起20个工作日内公开","双牌县文化旅游广电体育局","√",null,"√",null,"√","■政府网站    □政府公报                                                                                                                                                                                                                □两微一端    □发布会/听证会                                                                                                                                                                                              □广播电视    □纸质媒体                                                                                                                                                                                                   □公开查阅点  ■政务服务中心                                                                                                                                                                                                    □便民服务站  □入户/现场                                                                                                                                                                                                   □社区/企事业单位/村公示栏\n（电子屏）                                                                                                                                                                                          □精准推送    □其他",null,"□政府网站    □政府公报                                                                                                                                                                                                                □两微一端    □发布会/听证会                                                                                                                                                                                              □广播电视    □纸质媒体                                                                                                                                                                                                   □公开查阅点  □政务服务中心                                                                                                                                                                                                    □便民服务站  □入户/现场                                                                                                                                                                                                   □社区/企事业单位/村公示栏\n（电子屏）                                                                                                                                                                                          □精准推送    □其他"]
[157,"公共服务","开展群众文化活动","政务服务事项","●活动时间；\n●活动单位；\n●活动地址；\n●联系电话；\n●临时停止活动信息。","1.关于创建国家公共文化服务示范区提升基层文化服务辅导培训的工作方案\n","●《中华人民共和国政府信息公开条例》（中华人民共和国国务院令第711号）\n●《文化馆服务标准》","  信息形成或变更之日起20个工作日内公开","双牌县文化旅游广电体育局","√",null,"√",null,"√","■政府网站    □政府公报                                                                                                                                                                                                                □两微一端    □发布会/听证会                                                                                                                                                                                              □广播电视    □纸质媒体                                                                                                                                                                                                   □公开查阅点  ■政务服务中心                                                                                                                                                                                                    □便民服务站  □入户/现场                                                                                                                                                                                                   □社区/企事业单位/村公示栏\n（电子屏）                                                                                                                                                                                          □精准推送    □其他",null,"□政府网站    □政府公报                                                                                                                                                                                                                □两微一端    □发布会/听证会                                                                                                                                                                                              □广播电视    □纸质媒体                                                                                                                                                                                                   □公开查阅点  □政务服务中心                                                                                                                                                                                                    □便民服务站  □入户/现场                                                                                                                                                                                                   □社区/企事业单位/村公示栏\n（电子屏）                                                                                                                                                                                          □精准推送    □其他"]
[158,"公共服务","开展文体广新旅市场法制宣传活动","政务服务事项","●活动时间；\n●活动单位；\n●活动地址；\n●联系电话；\n●临时停止活动信息。","\n1.关于印发《双牌县文旅广体局深入推进毒品预防教育宣传专项行动方案》的通知","●《中华人民共和国政府信息公开条例》（中华人民共和国国务院令第711号）","  信息形成或变更之日起20个工作日内公开","双牌县文化旅游广电体育局","√",null,"√",null,"√","■政府网站    □政府公报                                                                                                                                                                                                                □两微一端    □发布会/听证会                                                                                                                                                                                              □广播电视    □纸质媒体                                                                                                                                                                                                   □公开查阅点  ■政务服务中心                                                                                                                                                                                                    □便民服务站  □入户/现场                                                                                                                                                                                                   □社区/企事业单位/村公示栏\n（电子屏）                                                                                                                                                                                          □精准推送    □其他",null,"□政府网站    □政府公报                                                                                                                                                                                                                □两微一端    □发布会/听证会                                                                                                                                                                                              □广播电视    □纸质媒体                                                                                                                                                                                                   □公开查阅点  □政务服务中心                                                                                                                                                                                                    □便民服务站  □入户/现场                                                                                                                                                                                                   □社区/企事业单位/村公示栏\n（电子屏）                                                                                                                                                                                          □精准推送    □其他"]
[159,"公共服务","组织送戏下乡进社区活动","政务服务事项","●活动时间；\n●活动单位；\n●活动地址；\n●联系电话；\n●临时停止活动信息。","《文化进村入户 戏曲进乡村》暨文化惠民活动","●《中华人民共和国政府信息公开条例》（中华人民共和国国务院令第711号）","  信息形成或变更之日起20个工作日内公开","双牌县文化旅游广电体育局","√",null,"√",null,"√","■政府网站    □政府公报                                                                                                                                                                                                                □两微一端    □发布会/听证会                                                                                                                                                                                              □广播电视    □纸质媒体                                                                                                                                                                                                   □公开查阅点  ■政务服务中心                                                                                                                                                                                                    □便民服务站  □入户/现场                                                                                                                                                                                                   □社区/企事业单位/村公示栏\n（电子屏）                                                                                                                                                                                          □精准推送    □其他",null,"□政府网站    □政府公报                                                                                                                                                                                                                □两微一端    □发布会/听证会                                                                                                                                                                                              □广播电视    □纸质媒体                                                                                                                                                                                                   □公开查阅点  □政务服务中心                                                                                                                                                                                                    □便民服务站  □入户/现场                                                                                                                                                                                                   □社区/企事业单位/村公示栏\n（电子屏）                                                                                                                                                                                          □精准推送    □其他"]
[160,"公共服务","艺术创作,对外交流辅导、培训","政务服务事项","●培训时间；\n●培训单位；\n●培训地址；\n●联系电话；\n●临时停止活动信息。","《双牌县文化馆2020年度秋季免费培训工作方案》","●《中华人民共和国政府信息公开条例》（中华人民共和国国务院令第711号）\n●《乡镇综合文化站管理办法》（中华人民共和国文化部令第48号）","  信息形成或变更之日起20个工作日内公开","双牌县文化旅游广电体育局","√",null,"√",null,"√","■政府网站    □政府公报                                                                                                                                                                                                                □两微一端    □发布会/听证会                                                                                                                                                                                              □广播电视    □纸质媒体                                                                                                                                                                                                   □公开查阅点  ■政务服务中心                                                                                                                                                                                                    □便民服务站  □入户/现场                                                                                                                                                                                                   □社区/企事业单位/村公示栏\n（电子屏）                                                                                                                                                                                          □精准推送    □其他",null,"□政府网站    □政府公报                                                                                                                                                                                                                □两微一端    □发布会/听证会                                                                                                                                                                                              □广播电视    □纸质媒体                                                                                                                                                                                                   □公开查阅点  □政务服务中心                                                                                                                                                                                                    □便民服务站  □入户/现场                                                                                                                                                                                                   □社区/企事业单位/村公示栏\n（电子屏）                                                                                                                                                                                          □精准推送    □其他"]
[161,"公共服务","文物保护单位对外开放","政务服务事项","●机构名称；\n●开放时间；\n●机构地址；\n●联系电话；\n●临时停止开放信息。","岁圆楼古建筑群\n阳明山古井、古塔、古石刻\n吴家大院                                访尧村古建筑群                         湘桂古道（双牌段）                      江村文塔                               鸦山文昌阁                             寨子岭商周遗址                         邓家大院古民居                             塘基上古民居群                          双牌县断桥                              周崇博墓\n   ","●《中华人民共和国政府信息公开条例》（中华人民共和国国务院令第711号）","  信息形成或变更之日起20个工作日内公开","双牌县文化旅游广电体育局","√",null,"√",null,"√","■政府网站    □政府公报                                                                                                                                                                                                                □两微一端    □发布会/听证会                                                                                                                                                                                              □广播电视    □纸质媒体                                                                                                                                                                                                   □公开查阅点  ■政务服务中心                                                                                                                                                                                                    □便民服务站  □入户/现场                                                                                                                                                                                                   □社区/企事业单位/村公示栏\n（电子屏）                                                                                                                                                                                          □精准推送    □其他",null,"□政府网站    □政府公报                                                                                                                                                                                                                □两微一端    □发布会/听证会                                                                                                                                                                                              □广播电视    □纸质媒体                                                                                                                                                                                                   □公开查阅点  □政务服务中心                                                                                                                                                                                                    □便民服务站  □入户/现场                                                                                                                                                                                                   □社区/企事业单位/村公示栏\n（电子屏）                                                                                                                                                                                          □精准推送    □其他"]
[162,"公共服务","文物保护宣传教育","政务服务事项","●活动时间；\n●活动单位；\n●活动地址；\n●联系电话；\n●临时停止活动信息。","文物保护宣传工作方案","●《中华人民共和国政府信息公开条例》（中华人民共和国国务院令第711号）","  信息形成或变更之日起20个工作日内公开","双牌县文化旅游广电体育局","√",null,"√",null,"√","■政府网站    □政府公报                                                                                                                                                                                                                □两微一端    □发布会/听证会                                                                                                                                                                                              □广播电视    □纸质媒体                                                                                                                                                                                                   □公开查阅点  ■政务服务中心                                                                                                                                                                                                    □便民服务站  □入户/现场                                                                                                                                                                                                   □社区/企事业单位/村公示栏\n（电子屏）                                                                                                                                                                                          □精准推送    □其他",null,"□政府网站    □政府公报                                                                                                                                                                                                                □两微一端    □发布会/听证会                                                                                                                                                                                              □广播电视    □纸质媒体                                                                                                                                                                                                   □公开查阅点  □政务服务中心                                                                                                                                                                                                    □便民服务站  □入户/现场                                                                                                                                                                                                   □社区/企事业单位/村公示栏\n（电子屏）                                                                                                                                                                                          □精准推送    □其他"]
[163,"公共服务","公共文化设施设备配备","政务服务事项","●设施项目\n●设施内容\n●配备标准","双牌县公共文化设施设备配备情况","●《中华人民共和国政府信息公开条例》（中华人民共和国国务院令第711号）","  信息形成或变更之日起20个工作日内公开","双牌县文化旅游广电体育局","√",null,"√",null,"√","■政府网站    □政府公报                                                                                                                                                                                                                □两微一端    □发布会/听证会                                                                                                                                                                                              □广播电视    □纸质媒体                                                                                                                                                                                                   □公开查阅点  ■政务服务中心                                                                                                                                                                                                    □便民服务站  □入户/现场                                                                                                                                                                                                   □社区/企事业单位/村公示栏\n（电子屏）                                                                                                                                                                                          □精准推送    □其他",null,"□政府网站    □政府公报                                                                                                                                                                                                                □两微一端    □发布会/听证会                                                                                                                                                                                              □广播电视    □纸质媒体                                                                                                                                                                                                   □公开查阅点  □政务服务中心                                                                                                                                                                                                    □便民服务站  □入户/现场                                                                                                                                                                                                   □社区/企事业单位/村公示栏\n（电子屏）                                                                                                                                                                                          □精准推送    □其他"]
[164,"公共服务","非物质文化艺术遗产保护和传承","政务服务事项","●项目级别\n●入选批次 \n●项目类型 \n●项目名称 \n●入选时间 \n●保护单位 ","韩家谷芽糖、象王的传说、七祖佛爷的传说、瑶族婚庆礼仪、江村剁椒河鱼、瑶族古方引子茶酿造技艺、牙山羊肉制作技艺、                 ","●《中华人民共和国政府信息公开条例》（中华人民共和国国务院令第711号）","  信息形成或变更之日起20个工作日内公开","双牌县文化旅游广电体育局","√",null,"√",null,"√","■政府网站    □政府公报                                                                                                                                                                                                                □两微一端    □发布会/听证会                                                                                                                                                                                              □广播电视    □纸质媒体                                                                                                                                                                                                   □公开查阅点  ■政务服务中心                                                                                                                                                                                                    □便民服务站  □入户/现场                                                                                                                                                                                                   □社区/企事业单位/村公示栏\n（电子屏）                                                                                                                                                                                          □精准推送    □其他",null,"□政府网站    □政府公报                                                                                                                                                                                                                □两微一端    □发布会/听证会                                                                                                                                                                                              □广播电视    □纸质媒体                                                                                                                                                                                                   □公开查阅点  □政务服务中心                                                                                                                                                                                                    □便民服务站  □入户/现场                                                                                                                                                                                                   □社区/企事业单位/村公示栏\n（电子屏）                                                                                                                                                                                          □精准推送    □其他"]
[165,"公共服务","文物保护单位信息查询","政务服务事项","●单位名称；\n●单位级别；\n●单位地址；\n●单位保护范围；\n●单位情况简介：","岁圆楼古建筑群\n阳明山古井、古塔、古石刻\n吴家大院                                访尧村古建筑群                         湘桂古道（双牌段）                      江村文塔                               鸦山文昌阁                             寨子岭商周遗址                         邓家大院古民居                             塘基上古民居群                          双牌县断桥                              周崇博墓","●《中华人民共和国政府信息公开条例》（中华人民共和国国务院令第711号）","  信息形成或变更之日起20个工作日内公开","双牌县文化旅游广电体育局","√",null,"√",null,"√","■政府网站    □政府公报                                                                                                                                                                                                                □两微一端    □发布会/听证会                                                                                                                                                                                              □广播电视    □纸质媒体                                                                                                                                                                                                   □公开查阅点  ■政务服务中心                                                                                                                                                                                                    □便民服务站  □入户/现场                                                                                                                                                                                                   □社区/企事业单位/村公示栏\n（电子屏）                                                                                                                                                                                          □精准推送    □其他",null,"□政府网站    □政府公报                                                                                                                                                                                                                □两微一端    □发布会/听证会                                                                                                                                                                                              □广播电视    □纸质媒体                                                                                                                                                                                                   □公开查阅点  □政务服务中心                                                                                                                                                                                                    □便民服务站  □入户/现场                                                                                                                                                                                                   □社区/企事业单位/村公示栏\n（电子屏）                                                                                                                                                                                          □精准推送    □其他"]